{"text_format":"1","workbook":"xlsx","n_sheets":10,"sheets":["Match Set Up","Scoresheet","Match Dues","Home Team Info","Match Total","Graph","Teams","Schedule","Treasury","User Guide"],"not_rendered":{"charts":2,"images":15,"macros":1,"external_links":0,"defined_names":114,"comments":0,"pivot_tables":0},"unopened":[],"bounds":{"document_bytes":16777216,"sheet_cells":100000,"rows_first":2000,"rows_last":500,"rows_between":2000,"halvings":0,"cell_chars":16384,"cell_head_chars":4096},"cells_cut":0,"cells_raw":0,"read":"whole","date_system":"1900"}

{"sheet":"Match Set Up","index":0,"n_rows":38,"n_cols":10,"rows_kept":38,"cut":false,"hidden":false,"merged":[[0,4,1,6],[2,4,2,6],[0,0,1,2],[2,0,2,2],[0,3,2,3]]}
[" Visitors Team Name",null,null,"WEEK","Home Team Name"]
[null,null,null,null,null,null,null,null,null,"HOME"]
[]
[]
["Players ","Avg","Due",null,"Players","Avg","Due",null,"Game Fines","Fee"]
[null,null,{"$f":"IF('Match Dues'!F21=\"\",IF('Match Dues'!M21=\"\",\"\",'Match Dues'!M21),'Match Dues'!M21)","v":{"$error":"#N/A"}},null,null,null,{"$f":"IF('Match Dues'!AA21=\"\",IF('Match Dues'!AH21=\"\",\"\",'Match Dues'!AH21),'Match Dues'!AH21)","v":{"$error":"#N/A"}},null,"Lost Beer Frame each Player",0]
[null,null,{"$f":"IF('Match Dues'!F22=\"\",IF('Match Dues'!M22=\"\",\"\",'Match Dues'!M22),'Match Dues'!M22)","v":{"$error":"#N/A"}},null,null,null,{"$f":"IF('Match Dues'!AA22=\"\",IF('Match Dues'!AH22=\"\",\"\",'Match Dues'!AH22),'Match Dues'!AH22)","v":{"$error":"#N/A"}},null,"8 Mark, from all other players",0]
[null,null,{"$f":"IF('Match Dues'!F23=\"\",IF('Match Dues'!M23=\"\",\"\",'Match Dues'!M23),'Match Dues'!M23)","v":{"$error":"#N/A"}},null,null,null,{"$f":"IF('Match Dues'!AA23=\"\",IF('Match Dues'!AH23=\"\",\"\",'Match Dues'!AH23),'Match Dues'!AH23)","v":{"$error":"#N/A"}},null,"9 Mark, from all other players",0]
[null,null,{"$f":"IF('Match Dues'!F24=\"\",IF('Match Dues'!M24=\"\",\"\",'Match Dues'!M24),'Match Dues'!M24)","v":{"$error":"#N/A"}},null,null,null,{"$f":"IF('Match Dues'!AA24=\"\",IF('Match Dues'!AH24=\"\",\"\",'Match Dues'!AH24),'Match Dues'!AH24)","v":{"$error":"#N/A"}},null,"Red 6, from all other players",0]
[null,null,{"$f":"IF('Match Dues'!F25=\"\",IF('Match Dues'!M25=\"\",\"\",'Match Dues'!M25),'Match Dues'!M25)","v":{"$error":"#N/A"}},null,null,null,{"$f":"IF('Match Dues'!AA25=\"\",IF('Match Dues'!AH25=\"\",\"\",'Match Dues'!AH25),'Match Dues'!AH25)","v":{"$error":"#N/A"}},null,"0 Mark, pays ",0.25]
[null,null,{"$f":"IF('Match Dues'!F26=\"\",IF('Match Dues'!M26=\"\",\"\",'Match Dues'!M26),'Match Dues'!M26)","v":{"$error":"#N/A"}},null,null,null,{"$f":"IF('Match Dues'!AA26=\"\",IF('Match Dues'!AH26=\"\",\"\",'Match Dues'!AH26),'Match Dues'!AH26)","v":{"$error":"#N/A"}},null,"Beer Frame Under 3",0.25]
[null,null,{"$f":"IF('Match Dues'!F27=\"\",IF('Match Dues'!M27=\"\",\"\",'Match Dues'!M27),'Match Dues'!M27)","v":{"$error":"#N/A"}},null,null,null,{"$f":"IF('Match Dues'!AA27=\"\",IF('Match Dues'!AH27=\"\",\"\",'Match Dues'!AH27),'Match Dues'!AH27)","v":{"$error":"#N/A"}},null,"Game Under Avg",0]
[null,null,{"$f":"IF('Match Dues'!F28=\"\",IF('Match Dues'!M28=\"\",\"\",'Match Dues'!M28),'Match Dues'!M28)","v":{"$error":"#N/A"}},null,null,null,{"$f":"IF('Match Dues'!AA28=\"\",IF('Match Dues'!AH28=\"\",\"\",'Match Dues'!AH28),'Match Dues'!AH28)","v":{"$error":"#N/A"}},null,"Other - see administrator"]
[null,null,{"$f":"IF('Match Dues'!F29=\"\",IF('Match Dues'!M29=\"\",\"\",'Match Dues'!M29),'Match Dues'!M29)","v":{"$error":"#N/A"}},null,null,null,{"$f":"IF('Match Dues'!AA29=\"\",IF('Match Dues'!AH29=\"\",\"\",'Match Dues'!AH29),'Match Dues'!AH29)","v":{"$error":"#N/A"}}]
[null,null,{"$f":"IF('Match Dues'!F30=\"\",IF('Match Dues'!M30=\"\",\"\",'Match Dues'!M30),'Match Dues'!M30)","v":{"$error":"#N/A"}},null,null,null,{"$f":"IF('Match Dues'!AA30=\"\",IF('Match Dues'!AH30=\"\",\"\",'Match Dues'!AH30),'Match Dues'!AH30)","v":{"$error":"#N/A"}}]
[null,null,{"$f":"IF('Match Dues'!F31=\"\",IF('Match Dues'!M31=\"\",\"\",'Match Dues'!M31),'Match Dues'!M31)","v":{"$error":"#N/A"}},null,null,null,{"$f":"IF('Match Dues'!AA31=\"\",IF('Match Dues'!AH31=\"\",\"\",'Match Dues'!AH31),'Match Dues'!AH31)","v":{"$error":"#N/A"}},null,"Match Dues / Fines","Fee"]
[null,null,{"$f":"IF('Match Dues'!F32=\"\",IF('Match Dues'!M32=\"\",\"\",'Match Dues'!M32),'Match Dues'!M32)","v":{"$error":"#N/A"}},null,null,null,{"$f":"IF('Match Dues'!AA32=\"\",IF('Match Dues'!AH32=\"\",\"\",'Match Dues'!AH32),'Match Dues'!AH32)","v":{"$error":"#N/A"}},null,"Match Dues",1]
[null,null,{"$f":"SUM(C6:C17)","v":{"$error":"#N/A"}},null,null,null,{"$f":"SUM(G6:G17)","v":{"$error":"#N/A"}},null,"Match Under Average",0.25]
[null,null,null,null,null,null,null,null,"Match High Over Average",-1]
[null,null,null,null,null,null,null,null,"Other - see administrator"]
["Beer Frames Paid",{"$f":"IF(Scoresheet!BD11=1,1,0) +IF(Scoresheet!BD22=1,1,0) +IF(Scoresheet!BD33=1,1,0)","v":0},{"$f":"B21*(J6*6)","v":0},null,null,{"$f":"IF(Scoresheet!BN11=1,1,0) +IF(Scoresheet!BN22=1,1,0) +IF(Scoresheet!BN33=1,1,0)","v":0},{"$f":"F21*(J6*6)","v":0}]
["Open Frames",{"$f":"Scoresheet!AZ41","v":0},{"$f":"B22*J10","v":0},null,null,{"$f":"Scoresheet!BJ41","v":0},{"$f":"F22*J10","v":0}]
["Beer Frame under 3",{"$f":"Scoresheet!BE41","v":0},{"$f":"B23*J11","v":0},null,null,{"$f":"Scoresheet!BO41","v":0},{"$f":"F23*J11","v":0}]
["Game Under Average",{"$f":"VisitorUnderAvg","v":0},{"$f":"B24*J12","v":0},null,null,{"$f":"HomeUnderAvg","v":0},{"$f":"F24*J12","v":0}]
["Match Under Average",{"$f":"vMatchAvg","v":0},{"$f":"B25*J18","v":0},null,null,{"$f":"hMatchAvg","v":0},{"$f":"F25*J18","v":0}]
["Red Six '",{"$f":"Scoresheet!BA41","v":0},{"$f":"B26*(J9*5)","v":0},null,null,{"$f":"Scoresheet!BK41","v":0},{"$f":"F26*(J9*5)","v":0}]
["Eight Rounds",{"$f":"Scoresheet!BB41","v":0},{"$f":"B27*(J7*5)","v":0},null,null,{"$f":"Scoresheet!BL41","v":0},{"$f":"F27*(J7*5)","v":0}]
["Nine Rounds",{"$f":"Scoresheet!BC41","v":0},{"$f":"B28*(J8*5)","v":0},null,null,{"$f":"Scoresheet!BM41","v":0},{"$f":"F28*(J8*5)","v":0}]
["Total from Innings",null,{"$f":"SUM(C21:C28)","v":0},null,null,null,{"$f":"SUM(G21:G28)","v":0}]
[]
["Match Dues",{"$f":"IF( TStatsWhere = \"AWAY\", MYPayers, VisitorMatchDue-1)","v":-1},{"$f":"B31*J17","v":-1},null,null,{"$f":"IF( TStatsWhere = \"HOME\", MYPayers,HomeMatchDue -1)","v":-1},{"$f":"F31*J17","v":-1}]
[]
[]
["Total Due",null,{"$f":"SUM(C29,C31)","v":-1},null,null,null,{"$f":"SUM(G29,G31)","v":-1}]
[]
["minus red, 8 and 9",null,{"$f":"SUM(C26:C28)","v":0},null,null,null,{"$f":"SUM(G26:G28)","v":0}]
[]
["cross check total",null,{"$f":"C34-C36","v":-1},null,null,null,{"$f":"G34-G36","v":-1}]

{"sheet":"Scoresheet","index":1,"n_rows":115,"n_cols":73,"rows_kept":115,"cut":false,"hidden":false,"merged":[[0,10,0,25],[1,10,1,25],[3,10,3,25],[2,10,2,25],[1,2,1,4],[1,5,1,6],[4,19,4,21],[42,4,42,8],[42,24,42,28],[6,2,6,10],[6,22,6,30]]}
[null,null,null,null,null,null,null,null,null,null,"SharpShooters Dart League",null,null,null,null,null,null,null,null,null,null,null,null,null,null,null,null,null,null,null,null,null,null,null,null,null,null,null,"Verison 4 Revision 9   10/17/16"]
[null,null,"Week: ",null,null,{"$f":"SchWeek","v":0},null,null,null,null,{"$f":"C7","v":0},null,null,null,null,null,null,null,null,null,null,null,null,null,null,null,null,null,null,null,null,null,null,null,null,null,null,null,"Designer B.Stratchko"]
[null,null,null,null,null,null,null,null,null,null,"at",null,null,null,null,null,null,null,null,null,null,null,null,null,null,null,null,null,null,null,null,null,null,null,null,null,null,null,"Edits by J.Nicholas"]
[null,null,null,null,null,null,null,null,null,null,{"$f":"W7","v":0}]
[null,null,null,null,null,null,null,null,null,null,null,null,null,null,null,null,null,null,"Scheduled Match Date"]
[]
[null,"VISITORS -",{"$f":"VisitorsName","v":0},null,null,null,null,null,null,null,null,null,null,null,null,null,null,null,null,null,null,"HOME -",{"$f":"HomeName","v":0}]
[null,"Game 1",null,null,null,null,null,null,null,null,null,null,null,null,null,null,null,null,null,null,null,"Game 1"]
[]
["Avg","Name",1,2,3,4,5,6,7,8,9,"Total","Spot","Total","Open","Ovr Avg",null,null,null,null,"Avg","Name",1,2,3,4,5,6,7,8,9,"Total","Spot","Total","Open","Ovr Avg",null,null,null,null,null,null,null,null,null,null,null,null,"Red",8,9,"Open","Red",8,9,"Beer","Bad Beer","Game Under","total",null,null,"Open","Red",8,9,"Beer","Bad Beer","Game Under","total",null,"Red",8,9]
[{"$f":"IF(ISBLANK(B11),\"\",VLOOKUP(B11,VisitorAvgs,2,FALSE))","v":""},null,null,null,null,null,null,null,null,null,null,{"$f":"SUMPRODUCT(LOOKUP(C11:K11,MyCode,MyValue))","v":0},{"$f":"(U11-A11)*0.8","v":{"$error":"#VALUE!"}},{"$f":"SUM(L11+M11)","v":{"$error":"#VALUE!"}},{"$f":"COUNTIF(C11:K11,\"=0\")","v":0},{"$f":"SUM(L11,-A11)","v":{"$error":"#VALUE!"}},null,null,null,null,{"$f":"IF(ISBLANK(V11),\"\",VLOOKUP(V11,HomeAvgs,2,FALSE))","v":""},null,null,null,null,null,null,null,null,null,null,{"$f":"SUMPRODUCT(LOOKUP(W11:AE11,MyCode,MyValue))","v":0},{"$f":"(A11-U11)*0.8","v":{"$error":"#VALUE!"}},{"$f":"SUM(AF11+AG11)","v":{"$error":"#VALUE!"}},{"$f":"COUNTIF(W11:AE11,\"=0\")","v":0},{"$f":"SUM(AF11,-U11)","v":{"$error":"#VALUE!"}},null,null,null,null,null,null,null,null,null,null,null,null,{"$f":"COUNTIF(C11:K11,\"R\")","v":0},{"$f":"COUNTIF(C11:K11,\"8\")","v":0},{"$f":"COUNTIF(C11:K11,\"9\")","v":0},{"$f":"O11","v":0},{"$f":"COUNTIF(C12:K12,\"R\")+COUNTIF(C13:K13,\"R\")+COUNTIF(C14:K14,\"R\")+COUNTIF(C15:K15,\"R\")","v":0},{"$f":"COUNTIF(C12:K12,8)+COUNTIF(C13:K13,8)+COUNTIF(C14:K14,8)+COUNTIF(C15:K15,8)","v":0},{"$f":"COUNTIF(C12:K12,9)+COUNTIF(C13:K13,9)+COUNTIF(C14:K14,9)+COUNTIF(C15:K15,9)","v":0},{"$f":"IF(AA17=\"Win\",1,IF(AB17=\"Win\",1,IF(AC17=\"Win\",1,IF(AD17=\"Win\",1,IF(AE17=\"Win\",1,0)))))","v":0},{"$f":"IF($G$17=\" \",IF($AA$17=\" \",0,IF(G11<3,1,0)),IF(G11<3,1,0))","v":0},{"$f":"IF(A11=\"\",0,IF(A11>L11,1,0))","v":0},{"$f":"(AZ11 *'Match Set Up'!J10  ) + (BA11*'Match Set Up'!J9) + (BB11*'Match Set Up'!J7) + (BC11*'Match Set Up'!J8) + (BD11*'Match Set Up'!J6)+ (BE11*'Match Set Up'!J11) + (BF11*'Match Set Up'!J12)","v":0},null,null,{"$f":"AI11","v":0},{"$f":"COUNTIF(W12:AE12,\"R\")+COUNTIF(W13:AE13,\"R\")+COUNTIF(W14:AE14,\"R\")+COUNTIF(W15:AE15,\"R\")","v":0},{"$f":"COUNTIF(W12:AE12,8)+COUNTIF(W13:AE13,8)+COUNTIF(W14:AE14,8)+COUNTIF(W15:AE15,8)","v":0},{"$f":"COUNTIF(W12:AE12,9)+COUNTIF(W13:AE13,9)+COUNTIF(W14:AE14,9)+COUNTIF(W15:AE15,9)","v":0},{"$f":"IF(G17=\"Win\",1,IF(H17=\"Win\",1,IF(I17=\"Win\",1,IF(J17=\"Win\",1,IF(K17=\"Win\",1,0)))))","v":0},{"$f":"IF($G$17=\" \",IF($AA$17=\" \",0,IF(AA11<3,1,0)),IF(AA11<3,1,0))","v":0},{"$f":"IF(U11=\"\",0,IF(U11>AF11,1,0))","v":0},{"$f":"(BJ11*'Match Set Up'!J$10)+(BK11*'Match Set Up'!J$9)+(BL11*'Match Set Up'!J$7)+(BM11*'Match Set Up'!J$8)+(BN11*'Match Set Up'!J$6)+ (BO11*'Match Set Up'!J11) + (BP11*'Match Set Up'!J12)","v":0},null,{"$f":"COUNTIF(W11:AE11,\"R\")","v":0},{"$f":"COUNTIF(W11:AE11,\"8\")","v":0},{"$f":"COUNTIF(W11:AE11,\"9\")","v":0}]
[{"$f":"IF(ISBLANK(B12),\"\",VLOOKUP(B12,VisitorAvgs,2,FALSE))","v":""},null,null,null,null,null,null,null,null,null,null,{"$f":"SUMPRODUCT(LOOKUP(C12:K12,MyCode,MyValue))","v":0},{"$f":"(U12-A12)*0.8","v":{"$error":"#VALUE!"}},{"$f":"SUM(L12+M12)","v":{"$error":"#VALUE!"}},{"$f":"COUNTIF(C12:K12,\"=0\")","v":0},{"$f":"SUM(L12,-A12)","v":{"$error":"#VALUE!"}},null,null,null,null,{"$f":"IF(ISBLANK(V12),\"\",VLOOKUP(V12,HomeAvgs,2,FALSE))","v":""},null,null,null,null,null,null,null,null,null,null,{"$f":"SUMPRODUCT(LOOKUP(W12:AE12,MyCode,MyValue))","v":0},{"$f":"(A12-U12)*0.8","v":{"$error":"#VALUE!"}},{"$f":"SUM(AF12+AG12)","v":{"$error":"#VALUE!"}},{"$f":"COUNTIF(W12:AE12,\"=0\")","v":0},{"$f":"SUM(AF12,-U12)","v":{"$error":"#VALUE!"}},null,null,null,null,null,null,null,null,null,null,null,null,{"$f":"COUNTIF(C12:K12,\"R\")","v":0},{"$f":"COUNTIF(C12:K12,\"8\")","v":0},{"$f":"COUNTIF(C12:K12,\"9\")","v":0},{"$f":"O12","v":0},{"$f":"COUNTIF(C11:K11,\"R\")+COUNTIF(C13:K13,\"R\")+COUNTIF(C14:K14,\"R\")+COUNTIF(C15:K15,\"R\")","v":0},{"$f":"COUNTIF(C11:K11,8)+COUNTIF(C13:K13,8)+COUNTIF(C14:K14,8)+COUNTIF(C15:K15,8)","v":0},{"$f":"COUNTIF(C11:K11,9)+COUNTIF(C13:K13,9)+COUNTIF(C14:K14,9)+COUNTIF(C15:K15,9)","v":0},{"$f":"IF(AA17=\"Win\",1,IF(AB17=\"Win\",1,IF(AC17=\"Win\",1,IF(AD17=\"Win\",1,IF(AE17=\"Win\",1,0)))))","v":0},{"$f":"IF($G$17=\" \",IF($AA$17=\" \",0,IF(G12<3,1,0)),IF(G12<3,1,0))","v":0},{"$f":"IF(A12=\"\",0,IF(A12>L12,1,0))","v":0},{"$f":"(AZ12 *'Match Set Up'!J10  ) + (BA12*'Match Set Up'!J9) + (BB12*'Match Set Up'!J7) + (BC12*'Match Set Up'!J8) + (BD12*'Match Set Up'!J6)+ (BE12*'Match Set Up'!J11) + (BF12*'Match Set Up'!J12)","v":0},null,null,{"$f":"AI12","v":0},{"$f":"COUNTIF(W11:AE11,\"R\")+COUNTIF(W13:AE13,\"R\")+COUNTIF(W14:AE14,\"R\")+COUNTIF(W15:AE15,\"R\")","v":0},{"$f":"COUNTIF(W11:AE11,8)+COUNTIF(W13:AE13,8)+COUNTIF(W14:AE14,8)+COUNTIF(W15:AE15,8)","v":0},{"$f":"COUNTIF(W11:AE11,9)+COUNTIF(W13:AE13,9)+COUNTIF(W14:AE14,9)+COUNTIF(W15:AE15,9)","v":0},{"$f":"IF(G17=\"Win\",1,IF(H17=\"Win\",1,IF(I17=\"Win\",1,IF(J17=\"Win\",1,IF(K17=\"Win\",1,0)))))","v":0},{"$f":"IF($G$17=\" \",IF($AA$17=\" \",0,IF(AA12<3,1,0)),IF(AA12<3,1,0))","v":0},{"$f":"IF(U12=\"\",0,IF(U12>AF12,1,0))","v":0},{"$f":"(BJ12*'Match Set Up'!J$10)+(BK12*'Match Set Up'!J$9)+(BL12*'Match Set Up'!J$7)+(BM12*'Match Set Up'!J$8)+(BN12*'Match Set Up'!J$6)+ (BO12*'Match Set Up'!J11) + (BP12*'Match Set Up'!J12)","v":0},null,{"$f":"COUNTIF(W12:AE12,\"R\")","v":0},{"$f":"COUNTIF(W12:AE12,\"8\")","v":0},{"$f":"COUNTIF(W12:AE12,\"9\")","v":0}]
[{"$f":"IF(ISBLANK(B13),\"\",VLOOKUP(B13,VisitorAvgs,2,FALSE))","v":""},null,null,null,null,null,null,null,null,null,null,{"$f":"SUMPRODUCT(LOOKUP(C13:K13,MyCode,MyValue))","v":0},{"$f":"(U13-A13)*0.8","v":{"$error":"#VALUE!"}},{"$f":"SUM(L13+M13)","v":{"$error":"#VALUE!"}},{"$f":"COUNTIF(C13:K13,\"=0\")","v":0},{"$f":"SUM(L13,-A13)","v":{"$error":"#VALUE!"}},null,null,null,null,{"$f":"IF(ISBLANK(V13),\"\",VLOOKUP(V13,HomeAvgs,2,FALSE))","v":""},null,null,null,null,null,null,null,null,null,null,{"$f":"SUMPRODUCT(LOOKUP(W13:AE13,MyCode,MyValue))","v":0},{"$f":"(A13-U13)*0.8","v":{"$error":"#VALUE!"}},{"$f":"SUM(AF13+AG13)","v":{"$error":"#VALUE!"}},{"$f":"COUNTIF(W13:AE13,\"=0\")","v":0},{"$f":"SUM(AF13,-U13)","v":{"$error":"#VALUE!"}},null,null,null,null,null,null,null,null,null,null,null,null,0,0,0,{"$f":"O13","v":0},{"$f":"COUNTIF(C11:K11,\"R\")+COUNTIF(C12:K12,\"R\")+COUNTIF(C14:K14,\"R\")+COUNTIF(C15:K15,\"R\")","v":0},{"$f":"COUNTIF(C11:K11,8)+COUNTIF(C12:K12,8)+COUNTIF(C14:K14,8)+COUNTIF(C15:K15,8)","v":0},{"$f":"COUNTIF(C11:K11,9)+COUNTIF(C12:K12,9)+COUNTIF(C14:K14,9)+COUNTIF(C15:K15,9)","v":0},{"$f":"IF(AA17=\"Win\",1,IF(AB17=\"Win\",1,IF(AC17=\"Win\",1,IF(AD17=\"Win\",1,IF(AE17=\"Win\",1,0)))))","v":0},{"$f":"IF($G$17=\" \",IF($AA$17=\" \",0,IF(G13<3,1,0)),IF(G13<3,1,0))","v":0},{"$f":"IF(A13=\"\",0,IF(A13>L13,1,0))","v":0},{"$f":"(AZ13 *'Match Set Up'!J10  ) + (BA13*'Match Set Up'!J9) + (BB13*'Match Set Up'!J7) + (BC13*'Match Set Up'!J8) + (BD13*'Match Set Up'!J6)+ (BE13*'Match Set Up'!J11) + (BF13*'Match Set Up'!J12)","v":0},null,null,{"$f":"AI13","v":0},{"$f":"COUNTIF(W11:AE11,\"R\")+COUNTIF(W12:AE12,\"R\")+COUNTIF(W14:AE14,\"R\")+COUNTIF(W15:AE15,\"R\")","v":0},{"$f":"COUNTIF(W11:AE11,8)+COUNTIF(W12:AE12,8)+COUNTIF(W14:AE14,8)+COUNTIF(W15:AE15,8)","v":0},{"$f":"COUNTIF(W11:AE11,9)+COUNTIF(W12:AE12,9)+COUNTIF(W14:AE14,9)+COUNTIF(W15:AE15,9)","v":0},{"$f":"IF(G17=\"Win\",1,IF(H17=\"Win\",1,IF(I17=\"Win\",1,IF(J17=\"Win\",1,IF(K17=\"Win\",1,0)))))","v":0},{"$f":"IF($G$17=\" \",IF($AA$17=\" \",0,IF(AA13<3,1,0)),IF(AA13<3,1,0))","v":0},{"$f":"IF(U13=\"\",0,IF(U13>AF13,1,0))","v":0},{"$f":"(BJ13*'Match Set Up'!J$10)+(BK13*'Match Set Up'!J$9)+(BL13*'Match Set Up'!J$7)+(BM13*'Match Set Up'!J$8)+(BN13*'Match Set Up'!J$6)+ (BO13*'Match Set Up'!J11)+ (BP13*'Match Set Up'!J12)","v":0},null,0,0,0]
[{"$f":"IF(ISBLANK(B14),\"\",VLOOKUP(B14,VisitorAvgs,2,FALSE))","v":""},null,null,null,null,null,null,null,null,null,null,{"$f":"SUMPRODUCT(LOOKUP(C14:K14,MyCode,MyValue))","v":0},{"$f":"(U14-A14)*0.8","v":{"$error":"#VALUE!"}},{"$f":"SUM(L14+M14)","v":{"$error":"#VALUE!"}},{"$f":"COUNTIF(C14:K14,\"=0\")","v":0},{"$f":"SUM(L14,-A14)","v":{"$error":"#VALUE!"}},"Spot",null,null,null,{"$f":"IF(ISBLANK(V14),\"\",VLOOKUP(V14,HomeAvgs,2,FALSE))","v":""},null,null,null,null,null,null,null,null,null,null,{"$f":"SUMPRODUCT(LOOKUP(W14:AE14,MyCode,MyValue))","v":0},{"$f":"(A14-U14)*0.8","v":{"$error":"#VALUE!"}},{"$f":"SUM(AF14+AG14)","v":{"$error":"#VALUE!"}},{"$f":"COUNTIF(W14:AE14,\"=0\")","v":0},{"$f":"SUM(AF14,-U14)","v":{"$error":"#VALUE!"}},"Spot",null,null,null,null,null,null,null,null,null,null,null,0,0,0,{"$f":"O14","v":0},{"$f":"COUNTIF(C11:K11,\"R\")+COUNTIF(C12:K12,\"R\")+COUNTIF(C13:K13,\"R\")+COUNTIF(C15:K15,\"R\")","v":0},{"$f":"COUNTIF(C11:K11,8)+COUNTIF(C12:K12,8)+COUNTIF(C13:K13,8)+COUNTIF(C15:K15,8)","v":0},{"$f":"COUNTIF(C11:K11,9)+COUNTIF(C12:K12,9)+COUNTIF(C13:K13,9)+COUNTIF(C15:K15,9)","v":0},{"$f":"IF(AA17=\"Win\",1,IF(AB17=\"Win\",1,IF(AC17=\"Win\",1,IF(AD17=\"Win\",1,IF(AE17=\"Win\",1,0)))))","v":0},{"$f":"IF($G$17=\" \",IF($AA$17=\" \",0,IF(G14<3,1,0)),IF(G14<3,1,0))","v":0},{"$f":"IF(A14=\"\",0,IF(A14>L14,1,0))","v":0},{"$f":"(AZ14*'Match Set Up'!J$10)+(BA14*'Match Set Up'!J$9)+(BB14*'Match Set Up'!J$7)+(BC14*'Match Set Up'!J$8)+(BD14*'Match Set Up'!J$6)+ (BE14*'Match Set Up'!J11) + (BF14*'Match Set Up'!J12)","v":0},null,null,{"$f":"AI14","v":0},{"$f":"COUNTIF(W11:AE11,\"R\")+COUNTIF(W12:AE12,\"R\")+COUNTIF(W13:AE13,\"R\")+COUNTIF(W15:AE15,\"R\")","v":0},{"$f":"COUNTIF(W11:AE11,8)+COUNTIF(W12:AE12,8)+COUNTIF(W13:AE13,8)+COUNTIF(W15:AE15,8)","v":0},{"$f":"COUNTIF(W11:AE11,9)+COUNTIF(W12:AE12,9)+COUNTIF(W13:AE13,9)+COUNTIF(W15:AE15,9)","v":0},{"$f":"IF(G17=\"Win\",1,IF(H17=\"Win\",1,IF(I17=\"Win\",1,IF(J17=\"Win\",1,IF(K17=\"Win\",1,0)))))","v":0},{"$f":"IF($G$17=\" \",IF($AA$17=\" \",0,IF(AA14<3,1,0)),IF(AA14<3,1,0))","v":0},{"$f":"IF(U14=\"\",0,IF(U14>AF14,1,0))","v":0},{"$f":"(BJ14*'Match Set Up'!J$10)+(BK14*'Match Set Up'!J$9)+(BL14*'Match Set Up'!J$7)+(BM14*'Match Set Up'!J$8)+(BN14*'Match Set Up'!J$6)+ (BO14*'Match Set Up'!J11) + (BP14*'Match Set Up'!J12)","v":0},null,0,0,0]
[{"$f":"IF(ISBLANK(B15),\"\",VLOOKUP(B15,VisitorAvgs,2,FALSE))","v":""},null,null,null,null,null,null,null,null,null,null,{"$f":"SUMPRODUCT(LOOKUP(C15:K15,MyCode,MyValue))","v":0},{"$f":"(U15-A15)*0.8","v":{"$error":"#VALUE!"}},{"$f":"SUM(L15+M15)","v":{"$error":"#VALUE!"}},{"$f":"COUNTIF(C15:K15,\"=0\")","v":0},{"$f":"SUM(L15,-A15)","v":{"$error":"#VALUE!"}},{"$f":"IF(A16>U16,0,(U16-A16)*0.8)","v":0},"PTs",{"$f":"IF(Q16=AK16,\"Tie\",IF(Q16>AK16,\"Winner\",\"Loser\"))","v":"Tie"},null,{"$f":"IF(ISBLANK(V15),\"\",VLOOKUP(V15,HomeAvgs,2,FALSE))","v":""},null,null,null,null,null,null,null,null,null,null,{"$f":"SUMPRODUCT(LOOKUP(W15:AE15,MyCode,MyValue))","v":0},{"$f":"(A15-U15)*0.8","v":{"$error":"#VALUE!"}},{"$f":"SUM(AF15+AG15)","v":{"$error":"#VALUE!"}},{"$f":"COUNTIF(W15:AE15,\"=0\")","v":0},{"$f":"SUM(AF15,-U15)","v":{"$error":"#VALUE!"}},{"$f":"IF(U16>A16,0,(A16-U16)*0.8)","v":0},"PTs",{"$f":"IF(AK16=Q16,\"Tie\",IF(AK16>Q16,\"Winner\",\"Loser\"))","v":"Tie"},null,null,null,null,null,null,null,null,null,0,0,0,{"$f":"O15","v":0},{"$f":"COUNTIF(C11:K11,\"R\")+COUNTIF(C12:K12,\"R\")+COUNTIF(C13:K13,\"R\")+COUNTIF(C14:K14,\"R\")","v":0},{"$f":"COUNTIF(C11:K11,8)+COUNTIF(C12:K12,8)+COUNTIF(C13:K13,8)+COUNTIF(C14:K14,8)","v":0},{"$f":"COUNTIF(C11:K11,9)+COUNTIF(C12:K12,9)+COUNTIF(C13:K13,9)+COUNTIF(C14:K14,9)","v":0},{"$f":"IF(AA17=\"Win\",1,IF(AB17=\"Win\",1,IF(AC17=\"Win\",1,IF(AD17=\"Win\",1,IF(AE17=\"Win\",1,0)))))","v":0},{"$f":"IF($G$17=\" \",IF($AA$17=\" \",0,IF(G15<3,1,0)),IF(G15<3,1,0))","v":0},{"$f":"IF(A15=\"\",0,IF(A15>L15,1,0))","v":0},{"$f":"(AZ15*'Match Set Up'!J$10)+(BA15*'Match Set Up'!J$9)+(BB15*'Match Set Up'!J$7)+(BC15*'Match Set Up'!J$8)+(BD15*'Match Set Up'!J$6)+ (BE15*'Match Set Up'!J11)+ (BF15*'Match Set Up'!J12)","v":0},null,null,{"$f":"AI15","v":0},{"$f":"COUNTIF(W11:AE11,\"R\")+COUNTIF(W12:AE12,\"R\")+COUNTIF(W13:AE13,\"R\")+COUNTIF(W14:AE14,\"R\")","v":0},{"$f":"COUNTIF(W11:AE11,8)+COUNTIF(W12:AE12,8)+COUNTIF(W13:AE13,8)+COUNTIF(W14:AE14,8)","v":0},{"$f":"COUNTIF(W11:AE11,9)+COUNTIF(W12:AE12,9)+COUNTIF(W13:AE13,9)+COUNTIF(W14:AE14,9)","v":0},{"$f":"IF(G17=\"Win\",1,IF(H17=\"Win\",1,IF(I17=\"Win\",1,IF(J17=\"Win\",1,IF(K17=\"Win\",1,0)))))","v":0},{"$f":"IF($G$17=\" \",IF($AA$17=\" \",0,IF(AA15<3,1,0)),IF(AA15<3,1,0))","v":0},{"$f":"IF(U15=\"\",0,IF(U15>AF15,1,0))","v":0},{"$f":"(BJ15*'Match Set Up'!J$10)+(BK15*'Match Set Up'!J$9)+(BL15*'Match Set Up'!J$7)+(BM15*'Match Set Up'!J$8)+(BN15*'Match Set Up'!J$6)+ (BO15*'Match Set Up'!J11)+ (BP15*'Match Set Up'!J12)","v":0},null,0,0,0]
[{"$f":"SUM(A11:A15)","v":0},"GAME 1 TOTALs",{"$f":"SUMPRODUCT(LOOKUP(C11:C15,MyCode,MyValue))","v":0},0,0,0,0,0,0,0,0,{"$f":"SUM(L11:L15)","v":0},{"$f":"SUM(#REF!+#REF!)","v":{"$error":"#REF!"}},{"$f":"SUM(#REF!+#REF!)","v":{"$error":"#REF!"}},{"$f":"SUM(O11:O15)","v":0},{"$f":"SUM(P11:P15)","v":{"$error":"#VALUE!"}},{"$f":"((L16+ROUND(Q15,0)))","v":0},{"$f":"IF(Q16>AK16,1,IF(Q16=0,0,IF(Q16=AK16,0.5,0)))","v":0},{"$f":"SUM(Q16,-AK16)","v":0},null,{"$f":"SUM(U11:U15)","v":0},"GAME 1 TOTALs",{"$f":"SUMPRODUCT(LOOKUP(W11:W15,MyCode,MyValue))","v":0},0,0,0,0,0,0,0,0,{"$f":"SUM(AF11:AF15)","v":0},"-","-",{"$f":"SUM(AI11:AI15)","v":0},{"$f":"SUM(AJ11:AJ15)","v":{"$error":"#VALUE!"}},{"$f":"((AF16+ROUND(AK15,0)))","v":0},{"$f":"IF(AK16>Q16,1,IF(AK16=0,0,IF(AK16=Q16,0.5,0)))","v":0},{"$f":"SUM(AK16,-Q16)","v":0},null,null,null,null,null,null,null,null,null,null,null,null,null,null,null,null,{"$f":"SUM(BD11:BD15)","v":0},null,null,null,null,null,null,null,null,null,{"$f":"SUM(BN11:BN15)","v":0}]
[null,null,null,null,null,null,{"$f":"IF(G16>AA16,\"Win\",IF(G16=0,\" \",IF(G16=AA16,\"Tie\",\" \")))","v":" "},{"$f":"IF(G17=\"Tie\",IF(H16>AB16,\"Win\",IF(H16=0,\" \",IF(H16=AB16,\"Tie\",\" \"))),\" \")","v":" "},{"$f":"IF(H17=\"Tie\",IF(I16>AC16,\"Win\",IF(I16=0,\" \",IF(I16=AC16,\"Tie\",\" \"))),\" \")","v":" "},{"$f":"IF(I17=\"Tie\",IF(J16>AD16,\"Win\",IF(J16=0,\" \",IF(J16=AD16,\"Tie\",\" \"))),\" \")","v":" "},{"$f":"IF(J17=\"Tie\",IF(K16>AE16,\"Win\",IF(K16=0,\" \",IF(K16=AE16,\"Tie\",\" \"))),\" \")","v":" "},null,null,null,null,null,null,null,null,null,null,null,null,null,null,null,{"$f":"IF(AA16>G16,\"Win\",IF(AA16=0,\" \",IF(AA16=G16,\"Tie\",\" \")))","v":" "},{"$f":"IF(AA17=\"Tie\",IF(AB16>H16,\"Win\",IF(AB16=0,\" \",IF(AB16=H16,\"Tie\",\" \"))),\" \")","v":" "},{"$f":"IF(AB17=\"Tie\",IF(AC16>I16,\"Win\",IF(AC16=0,\" \",IF(AC16=I16,\"Tie\",\" \"))),\" \")","v":" "},{"$f":"IF(AC17=\"Tie\",IF(AD16>J16,\"Win\",IF(AD16=0,\" \",IF(AD16=J16,\"Tie\",\" \"))),\" \")","v":" "},{"$f":"IF(AD17=\"Tie\",IF(AE16>K16,\"Win\",IF(AE16=0,\" \",IF(AE16=K16,\"Tie\",\" \"))),\" \")","v":" "}]
[]
[null,"Game 2",null,null,null,null,null,null,null,null,null,null,null,null,null,null,null,null,null,null,null,"Game 2"]
[]
["Avg","Name",1,2,3,4,5,6,7,8,9,"Total","Spot","Total","Open","Ovr Avg",null,null,null,null,"Avg","Name",1,2,3,4,5,6,7,8,9,"Total","Spot","Total","Opens","Ovr Avg",null,null,null,null,null,null,null,null,null,null,null,null,"Red",8,9,"Open","Red",8,9,"Beer","Bad Beer","Game Under","total",null,null,"Open","Red",8,9,"Beer","Bad Beer","Game Under","total",null,"Red",8,9]
[{"$f":"IF(ISBLANK(B22),\"\",VLOOKUP(B22,VisitorAvgs,2,FALSE))","v":""},null,null,null,null,null,null,null,null,null,null,{"$f":"SUMPRODUCT(LOOKUP(C22:K22,MyCode,MyValue))","v":0},{"$f":"(U22-A22)*0.8","v":{"$error":"#VALUE!"}},{"$f":"SUM(L22+M22)","v":{"$error":"#VALUE!"}},{"$f":"COUNTIF(C22:K22,\"=0\")","v":0},{"$f":"SUM(L22,-A22)","v":{"$error":"#VALUE!"}},null,null,null,null,{"$f":"IF(ISBLANK(V22),\"\",VLOOKUP(V22,HomeAvgs,2,FALSE))","v":""},null,null,null,null,null,null,null,null,null,null,{"$f":"SUMPRODUCT(LOOKUP(W22:AE22,MyCode,MyValue))","v":0},{"$f":"(A22-U22)*0.8","v":{"$error":"#VALUE!"}},{"$f":"SUM(AF22+AG22)","v":{"$error":"#VALUE!"}},{"$f":"COUNTIF(W22:AE22,\"=0\")","v":0},{"$f":"SUM(AF22,-U22)","v":{"$error":"#VALUE!"}},null,null,null,null,null,null,null,null,null,null,null,null,{"$f":"COUNTIF(C22:K22,\"R\")","v":0},{"$f":"COUNTIF(C22:K22,\"8\")","v":0},{"$f":"COUNTIF(C22:K22,\"9\")","v":0},{"$f":"O22","v":0},{"$f":"COUNTIF(C22:K23,\"R\")+COUNTIF(C24:K24,\"R\")+COUNTIF(C25:K25,\"R\")+COUNTIF(C26:K26,\"R\")","v":0},{"$f":"COUNTIF(C23:K23,8)+COUNTIF(C24:K24,8)+COUNTIF(C25:K25,8)+COUNTIF(C26:K26,8)","v":0},{"$f":"COUNTIF(C23:K23,9)+COUNTIF(C24:K24,9)+COUNTIF(C25:K25,9)+COUNTIF(C26:K26,9)","v":0},{"$f":"IF(AA28=\"Win\",1,IF(AB28=\"Win\",1,IF(AC28=\"Win\",1,IF(AD28=\"Win\",1,IF(AE28=\"Win\",1,0)))))","v":0},{"$f":"IF($G$28=\" \",IF($AA$28=\" \",0,IF(G22<3,1,0)),IF(G22<3,1,0))","v":0},{"$f":"IF(A22=\"\",0,IF(A22>L22,1,0))","v":0},{"$f":"(AZ22*'Match Set Up'!J$10)+(BA22*'Match Set Up'!J$9)+(BB22*'Match Set Up'!J$7)+(BC22*'Match Set Up'!J$8)+(BD22*'Match Set Up'!J$6)+ (BE22*'Match Set Up'!J11)+ (BF22*'Match Set Up'!J12)","v":0},null,null,{"$f":"AI22","v":0},{"$f":"COUNTIF(W23:AE23,\"R\")+COUNTIF(W24:AE24,\"R\")+COUNTIF(W25:AE25,\"R\")+COUNTIF(W26:AE26,\"R\")","v":0},{"$f":"COUNTIF(W23:AE23,8)+COUNTIF(W24:AE24,8)+COUNTIF(W25:AE25,8)+COUNTIF(W26:AE26,8)","v":0},{"$f":"COUNTIF(W23:AE23,9)+COUNTIF(W24:AE24,9)+COUNTIF(W25:AE25,9)+COUNTIF(W26:AE26,9)","v":0},{"$f":"IF(G28=\"Win\",1,IF(H28=\"Win\",1,IF(I28=\"Win\",1,IF(J28=\"Win\",1,IF(K28=\"Win\",1,0)))))","v":0},{"$f":"IF($G$28=\" \",IF($AA$28=\" \",0,IF(AA22<3,1,0)),IF(AA22<3,1,0))","v":0},{"$f":"IF(U22=\"\",0,IF(U22>AF22,1,0))","v":0},{"$f":"(BJ22*'Match Set Up'!J$10)+(BK22*'Match Set Up'!J$9)+(BL22*'Match Set Up'!J$7)+(BM22*'Match Set Up'!J$8)+(BN22*'Match Set Up'!J$6)+ (BO22*'Match Set Up'!J11)+ (BP22*'Match Set Up'!J12)","v":0},null,{"$f":"COUNTIF(W22:AE22,\"R\")","v":0},{"$f":"COUNTIF(W22:AE22,\"8\")","v":0},{"$f":"COUNTIF(W22:AE22,\"9\")","v":0}]
[{"$f":"IF(ISBLANK(B23),\"\",VLOOKUP(B23,VisitorAvgs,2,FALSE))","v":""},null,null,null,null,null,null,null,null,null,null,{"$f":"SUMPRODUCT(LOOKUP(C23:K23,MyCode,MyValue))","v":0},{"$f":"(U23-A23)*0.8","v":{"$error":"#VALUE!"}},{"$f":"SUM(L23+M23)","v":{"$error":"#VALUE!"}},{"$f":"COUNTIF(C23:K23,\"=0\")","v":0},{"$f":"SUM(L23,-A23)","v":{"$error":"#VALUE!"}},null,null,null,null,{"$f":"IF(ISBLANK(V23),\"\",VLOOKUP(V23,HomeAvgs,2,FALSE))","v":""},null,null,null,null,null,null,null,null,null,null,{"$f":"SUMPRODUCT(LOOKUP(W23:AE23,MyCode,MyValue))","v":0},{"$f":"(A23-U23)*0.8","v":{"$error":"#VALUE!"}},{"$f":"SUM(AF23+AG23)","v":{"$error":"#VALUE!"}},{"$f":"COUNTIF(W23:AE23,\"=0\")","v":0},{"$f":"SUM(AF23,-U23)","v":{"$error":"#VALUE!"}},null,null,null,null,null,null,null,null,null,null,null,null,{"$f":"COUNTIF(C23:K23,\"R\")","v":0},{"$f":"COUNTIF(C23:K23,\"8\")","v":0},{"$f":"COUNTIF(C23:K23,\"9\")","v":0},{"$f":"O23","v":0},{"$f":"COUNTIF(C22:K22,\"R\")+COUNTIF(C24:K24,\"R\")+COUNTIF(C25:K25,\"R\")+COUNTIF(C26:K26,\"R\")","v":0},{"$f":"COUNTIF(C22:K22,8)+COUNTIF(C24:K24,8)+COUNTIF(C25:K25,8)+COUNTIF(C26:K26,8)","v":0},{"$f":"COUNTIF(C22:K22,9)+COUNTIF(C24:K24,9)+COUNTIF(C25:K25,9)+COUNTIF(C26:K26,9)","v":0},{"$f":"IF(AA28=\"Win\",1,IF(AB28=\"Win\",1,IF(AC28=\"Win\",1,IF(AD28=\"Win\",1,IF(AE28=\"Win\",1,0)))))","v":0},{"$f":"IF($G$28=\" \",IF($AA$28=\" \",0,IF(G23<3,1,0)),IF(G23<3,1,0))","v":0},{"$f":"IF(A23=\"\",0,IF(A23>L23,1,0))","v":0},{"$f":"(AZ23*'Match Set Up'!J$10)+(BA23*'Match Set Up'!J$9)+(BB23*'Match Set Up'!J$7)+(BC23*'Match Set Up'!J$8)+(BD23*'Match Set Up'!J$6)+ (BE23*'Match Set Up'!J11)+ (BF23*'Match Set Up'!J12)","v":0},null,null,{"$f":"AI23","v":0},{"$f":"COUNTIF(W22:AE22,\"R\")+COUNTIF(W24:AE24,\"R\")+COUNTIF(W25:AE25,\"R\")+COUNTIF(W26:AE26,\"R\")","v":0},{"$f":"COUNTIF(W22:AE22,8)+COUNTIF(W24:AE24,8)+COUNTIF(W25:AE25,8)+COUNTIF(W26:AE26,8)","v":0},{"$f":"COUNTIF(W22:AE22,9)+COUNTIF(W24:AE24,9)+COUNTIF(W25:AE25,9)+COUNTIF(W26:AE26,9)","v":0},{"$f":"IF(G28=\"Win\",1,IF(H28=\"Win\",1,IF(I28=\"Win\",1,IF(J28=\"Win\",1,IF(K28=\"Win\",1,0)))))","v":0},{"$f":"IF($G$28=\" \",IF($AA$28=\" \",0,IF(AA23<3,1,0)),IF(AA23<3,1,0))","v":0},{"$f":"IF(U23=\"\",0,IF(U23>AF23,1,0))","v":0},{"$f":"(BJ23*'Match Set Up'!J$10)+(BK23*'Match Set Up'!J$9)+(BL23*'Match Set Up'!J$7)+(BM23*'Match Set Up'!J$8)+(BN23*'Match Set Up'!J$6)+ (BO23*'Match Set Up'!J11)+ (BP23*'Match Set Up'!J12)","v":0},null,{"$f":"COUNTIF(W23:AE23,\"R\")","v":0},{"$f":"COUNTIF(W23:AE23,\"8\")","v":0},{"$f":"COUNTIF(W23:AE23,\"9\")","v":0}]
[{"$f":"IF(ISBLANK(B24),\"\",VLOOKUP(B24,VisitorAvgs,2,FALSE))","v":""},null,null,null,null,null,null,null,null,null,null,{"$f":"SUMPRODUCT(LOOKUP(C24:K24,MyCode,MyValue))","v":0},{"$f":"(U24-A24)*0.8","v":{"$error":"#VALUE!"}},{"$f":"SUM(L24+M24)","v":{"$error":"#VALUE!"}},{"$f":"COUNTIF(C24:K24,\"=0\")","v":0},{"$f":"SUM(L24,-A24)","v":{"$error":"#VALUE!"}},null,null,null,null,{"$f":"IF(ISBLANK(V24),\"\",VLOOKUP(V24,HomeAvgs,2,FALSE))","v":""},null,null,null,null,null,null,null,null,null,null,{"$f":"SUMPRODUCT(LOOKUP(W24:AE24,MyCode,MyValue))","v":0},{"$f":"(A24-U24)*0.8","v":{"$error":"#VALUE!"}},{"$f":"SUM(AF24+AG24)","v":{"$error":"#VALUE!"}},{"$f":"COUNTIF(W24:AE24,\"=0\")","v":0},{"$f":"SUM(AF24,-U24)","v":{"$error":"#VALUE!"}},null,null,null,null,null,null,null,null,null,null,null,null,0,0,0,{"$f":"O24","v":0},{"$f":"COUNTIF(C22:K22,\"R\")+COUNTIF(C23:K23,\"R\")+COUNTIF(C25:K25,\"R\")+COUNTIF(C26:K26,\"R\")","v":0},{"$f":"COUNTIF(C22:K22,8)+COUNTIF(C23:K23,8)+COUNTIF(C25:K25,8)+COUNTIF(C26:K26,8)","v":0},{"$f":"COUNTIF(C22:K22,9)+COUNTIF(C23:K23,9)+COUNTIF(C25:K25,9)+COUNTIF(C26:K26,9)","v":0},{"$f":"IF(AA28=\"Win\",1,IF(AB28=\"Win\",1,IF(AC28=\"Win\",1,IF(AD28=\"Win\",1,IF(AE28=\"Win\",1,0)))))","v":0},{"$f":"IF($G$28=\" \",IF($AA$28=\" \",0,IF(G24<3,1,0)),IF(G24<3,1,0))","v":0},{"$f":"IF(A24=\"\",0,IF(A24>L24,1,0))","v":0},{"$f":"(AZ24*'Match Set Up'!J$10)+(BA24*'Match Set Up'!J$9)+(BB24*'Match Set Up'!J$7)+(BC24*'Match Set Up'!J$8)+(BD24*'Match Set Up'!J$6)+ (BE24*'Match Set Up'!J11)+ (BF24*'Match Set Up'!J12)","v":0},null,null,{"$f":"AI24","v":0},{"$f":"COUNTIF(W22:AE22,\"R\")+COUNTIF(W23:AE23,\"R\")+COUNTIF(W25:AE25,\"R\")+COUNTIF(W26:AE26,\"R\")","v":0},{"$f":"COUNTIF(W22:AE22,8)+COUNTIF(W23:AE23,8)+COUNTIF(W25:AE25,8)+COUNTIF(W26:AE26,8)","v":0},{"$f":"COUNTIF(W22:AE22,9)+COUNTIF(W23:AE23,9)+COUNTIF(W25:AE25,9)+COUNTIF(W26:AE26,9)","v":0},{"$f":"IF(G28=\"Win\",1,IF(H28=\"Win\",1,IF(I28=\"Win\",1,IF(J28=\"Win\",1,IF(K28=\"Win\",1,0)))))","v":0},{"$f":"IF($G$28=\" \",IF($AA$28=\" \",0,IF(AA24<3,1,0)),IF(AA24<3,1,0))","v":0},{"$f":"IF(U24=\"\",0,IF(U24>AF24,1,0))","v":0},{"$f":"(BJ24*'Match Set Up'!J$10)+(BK24*'Match Set Up'!J$9)+(BL24*'Match Set Up'!J$7)+(BM24*'Match Set Up'!J$8)+(BN24*'Match Set Up'!J$6)+ (BO24*'Match Set Up'!J11)+ (BP24*'Match Set Up'!J12)","v":0},null,0,0,0]
[{"$f":"IF(ISBLANK(B25),\"\",VLOOKUP(B25,VisitorAvgs,2,FALSE))","v":""},null,null,null,null,null,null,null,null,null,null,{"$f":"SUMPRODUCT(LOOKUP(C25:K25,MyCode,MyValue))","v":0},{"$f":"(U25-A25)*0.8","v":{"$error":"#VALUE!"}},{"$f":"SUM(L25+M25)","v":{"$error":"#VALUE!"}},{"$f":"COUNTIF(C25:K25,\"=0\")","v":0},{"$f":"SUM(L25,-A25)","v":{"$error":"#VALUE!"}},"Spot",null,null,null,{"$f":"IF(ISBLANK(V25),\"\",VLOOKUP(V25,HomeAvgs,2,FALSE))","v":""},null,null,null,null,null,null,null,null,null,null,{"$f":"SUMPRODUCT(LOOKUP(W25:AE25,MyCode,MyValue))","v":0},{"$f":"(A25-U25)*0.8","v":{"$error":"#VALUE!"}},{"$f":"SUM(AF25+AG25)","v":{"$error":"#VALUE!"}},{"$f":"COUNTIF(W25:AE25,\"=0\")","v":0},{"$f":"SUM(AF25,-U25)","v":{"$error":"#VALUE!"}},"Spot",null,null,null,null,null,null,null,null,null,null,null,0,0,0,{"$f":"O25","v":0},{"$f":"COUNTIF(C22:K22,\"R\")+COUNTIF(C23:K23,\"R\")+COUNTIF(C24:K24,\"R\")+COUNTIF(C26:K26,\"R\")","v":0},{"$f":"COUNTIF(C22:K22,8)+COUNTIF(C23:K23,8)+COUNTIF(C24:K24,8)+COUNTIF(C26:K26,8)","v":0},{"$f":"COUNTIF(C22:K22,9)+COUNTIF(C23:K23,9)+COUNTIF(C24:K24,9)+COUNTIF(C26:K26,9)","v":0},{"$f":"IF(AA28=\"Win\",1,IF(AB28=\"Win\",1,IF(AC28=\"Win\",1,IF(AD28=\"Win\",1,IF(AE28=\"Win\",1,0)))))","v":0},{"$f":"IF($G$28=\" \",IF($AA$28=\" \",0,IF(G25<3,1,0)),IF(G25<3,1,0))","v":0},{"$f":"IF(A25=\"\",0,IF(A25>L25,1,0))","v":0},{"$f":"(AZ25*'Match Set Up'!J$10)+(BA25*'Match Set Up'!J$9)+(BB25*'Match Set Up'!J$7)+(BC25*'Match Set Up'!J$8)+(BD25*'Match Set Up'!J$6)+ (BE25*'Match Set Up'!J11)+ (BF25*'Match Set Up'!J12)","v":0},null,null,{"$f":"AI25","v":0},{"$f":"COUNTIF(W22:AE22,\"R\")+COUNTIF(W23:AE23,\"R\")+COUNTIF(W24:AE24,\"R\")+COUNTIF(W26:AE26,\"R\")","v":0},{"$f":"COUNTIF(W22:AE22,8)+COUNTIF(W23:AE31,8)+COUNTIF(W24:AE24,8)+COUNTIF(W26:AE26,8)","v":0},{"$f":"COUNTIF(W22:AE22,9)+COUNTIF(W23:AE23,9)+COUNTIF(W24:AE24,9)+COUNTIF(W26:AE26,9)","v":0},{"$f":"IF(G28=\"Win\",1,IF(H28=\"Win\",1,IF(I28=\"Win\",1,IF(J28=\"Win\",1,IF(K28=\"Win\",1,0)))))","v":0},{"$f":"IF($G$28=\" \",IF($AA$28=\" \",0,IF(AA25<3,1,0)),IF(AA25<3,1,0))","v":0},{"$f":"IF(U25=\"\",0,IF(U25>AF25,1,0))","v":0},{"$f":"(BJ25*'Match Set Up'!J$10)+(BK25*'Match Set Up'!J$9)+(BL25*'Match Set Up'!J$7)+(BM25*'Match Set Up'!J$8)+(BN25*'Match Set Up'!J$6)+ (BO25*'Match Set Up'!J11)+ (BP25*'Match Set Up'!J12)","v":0},null,0,0,0]
[{"$f":"IF(ISBLANK(B26),\"\",VLOOKUP(B26,VisitorAvgs,2,FALSE))","v":""},null,null,null,null,null,null,null,null,null,null,{"$f":"SUMPRODUCT(LOOKUP(C26:K26,MyCode,MyValue))","v":0},{"$f":"(U26-A26)*0.8","v":{"$error":"#VALUE!"}},{"$f":"SUM(L26+M26)","v":{"$error":"#VALUE!"}},{"$f":"COUNTIF(C26:K26,\"=0\")","v":0},{"$f":"SUM(L26,-A26)","v":{"$error":"#VALUE!"}},{"$f":"IF(A27>U27,0,(U27-A27)*0.8)","v":0},"PTs",{"$f":"IF(Q27=AK27,\"Tie\",IF(Q27>AK27,\"Winner\",\"Loser\"))","v":"Tie"},null,{"$f":"IF(ISBLANK(V26),\"\",VLOOKUP(V26,HomeAvgs,2,FALSE))","v":""},null,null,null,null,null,null,null,null,null,null,{"$f":"SUMPRODUCT(LOOKUP(W26:AE26,MyCode,MyValue))","v":0},{"$f":"(A26-U26)*0.8","v":{"$error":"#VALUE!"}},{"$f":"SUM(AF26+AG26)","v":{"$error":"#VALUE!"}},{"$f":"COUNTIF(W26:AE26,\"=0\")","v":0},{"$f":"SUM(AF26,-U26)","v":{"$error":"#VALUE!"}},{"$f":"IF(U27>A27,0,(A27-U27)*0.8)","v":0},"PTs",{"$f":"IF(AK27=Q27,\"Tie\",IF(AK27>Q27,\"Winner\",\"Loser\"))","v":"Tie"},null,null,null,null,null,null,null,null,null,0,0,0,{"$f":"O26","v":0},{"$f":"COUNTIF(C22:K22,\"R\")+COUNTIF(C23:K23,\"R\")+COUNTIF(C24:K24,\"R\")+COUNTIF(C25:K25,\"R\")","v":0},{"$f":"COUNTIF(C22:K22,8)+COUNTIF(C23:K23,8)+COUNTIF(C24:K24,8)+COUNTIF(C25:K25,8)","v":0},{"$f":"COUNTIF(C22:K22,9)+COUNTIF(C23:K23,9)+COUNTIF(C24:K24,9)+COUNTIF(C25:K25,9)","v":0},{"$f":"IF(AA28=\"Win\",1,IF(AB28=\"Win\",1,IF(AC28=\"Win\",1,IF(AD28=\"Win\",1,IF(AE28=\"Win\",1,0)))))","v":0},{"$f":"IF($G$28=\" \",IF($AA$28=\" \",0,IF(G26<3,1,0)),IF(G26<3,1,0))","v":0},{"$f":"IF(A26=\"\",0,IF(A26>L26,1,0))","v":0},{"$f":"(AZ26*'Match Set Up'!J$10)+(BA26*'Match Set Up'!J$9)+(BB26*'Match Set Up'!J$7)+(BC26*'Match Set Up'!J$8)+(BD26*'Match Set Up'!J$6)+ (BE26*'Match Set Up'!J11)+ (BF26*'Match Set Up'!J12)","v":0},null,null,{"$f":"AI26","v":0},{"$f":"COUNTIF(W22:AE22,\"R\")+COUNTIF(W23:AE23,\"R\")+COUNTIF(W24:AE24,\"R\")+COUNTIF(W25:AE25,\"R\")","v":0},{"$f":"COUNTIF(W22:AE22,8)+COUNTIF(W23:AE23,8)+COUNTIF(W24:AE24,8)+COUNTIF(W25:AE25,8)","v":0},{"$f":"COUNTIF(W22:AE22,9)+COUNTIF(W23:AE23,9)+COUNTIF(W24:AE24,9)+COUNTIF(W25:AE25,9)","v":0},{"$f":"IF(G28=\"Win\",1,IF(H28=\"Win\",1,IF(I28=\"Win\",1,IF(J28=\"Win\",1,IF(K28=\"Win\",1,0)))))","v":0},{"$f":"IF($G$28=\" \",IF($AA$28=\" \",0,IF(AA26<3,1,0)),IF(AA26<3,1,0))","v":0},{"$f":"IF(U26=\"\",0,IF(U26>AF26,1,0))","v":0},{"$f":"(BJ26*'Match Set Up'!J$10)+(BK26*'Match Set Up'!J$9)+(BL26*'Match Set Up'!J$7)+(BM26*'Match Set Up'!J$8)+(BN26*'Match Set Up'!J$6)+ (BO26*'Match Set Up'!J11)+ (BP26*'Match Set Up'!J12)","v":0},null,0,0,0]
[{"$f":"SUM(A22:A26)","v":0},"GAME 2 TOTALs",{"$f":"SUMPRODUCT(LOOKUP(C22:C26,MyCode,MyValue))","v":0},0,0,0,0,0,0,0,0,{"$f":"SUM(L22:L26)","v":0},{"$f":"SUM(#REF!+#REF!)","v":{"$error":"#REF!"}},{"$f":"SUM(#REF!+#REF!)","v":{"$error":"#REF!"}},{"$f":"SUM(O22:O26)","v":0},{"$f":"SUM(P22:P26)","v":{"$error":"#VALUE!"}},{"$f":"((L27+ROUND(Q26,0)))","v":0},{"$f":"IF(Q27>AK27,1,IF(Q27=0,0,IF(Q27=AK27,0.5,0)))","v":0},{"$f":"SUM(Q27,-AK27)","v":0},null,{"$f":"SUM(U22:U26)","v":0},"GAME 2 TOTALs",{"$f":"SUMPRODUCT(LOOKUP(W22:W26,MyCode,MyValue))","v":0},0,0,0,0,0,0,0,0,{"$f":"SUM(AF22:AF26)","v":0},"-","-",{"$f":"SUM(AI22:AI26)","v":0},{"$f":"SUM(AJ22:AJ26)","v":{"$error":"#VALUE!"}},{"$f":"((AF27+ROUND(AK26,0)))","v":0},{"$f":"IF(AK27>Q27,1,IF(AK27=0,0,IF(AK27=Q27,0.5,0)))","v":0},{"$f":"SUM(AK27,-Q27)","v":0},null,null,null,null,null,null,null,null,null,null,null,null,null,null,null,null,{"$f":"SUM(BD22:BD26)","v":0},null,null,null,null,null,null,null,null,null,{"$f":"SUM(BN22:BN26)","v":0}]
[null,null,null,null,null,null,{"$f":"IF(G27>AA27,\"Win\",IF(G27=0,\" \",IF(G27=AA27,\"Tie\",\" \")))","v":" "},{"$f":"IF(G28=\"Tie\",IF(H27>AB27,\"Win\",IF(H27=0,\" \",IF(H27=AB27,\"Tie\",\" \"))),\" \")","v":" "},{"$f":"IF(H28=\"Tie\",IF(I27>AC27,\"Win\",IF(I27=0,\" \",IF(I27=AC27,\"Tie\",\" \"))),\" \")","v":" "},{"$f":"IF(I28=\"Tie\",IF(J27>AD27,\"Win\",IF(J27=0,\" \",IF(J27=AD27,\"Tie\",\" \"))),\" \")","v":" "},{"$f":"IF(J28=\"Tie\",IF(K27>AE27,\"Win\",IF(K27=0,\" \",IF(K27=AE27,\"Tie\",\" \"))),\" \")","v":" "},null,null,null,null,null,null,null,null,null,null,null,null,null,null,null,{"$f":"IF(AA27>G27,\"Win\",IF(AA27=0,\" \",IF(AA27=G27,\"Tie\",\" \")))","v":" "},{"$f":"IF(AA28=\"Tie\",IF(AB27>H27,\"Win\",IF(AB27=0,\" \",IF(AB27=H27,\"Tie\",\" \"))),\" \")","v":" "},{"$f":"IF(AB28=\"Tie\",IF(AC27>I27,\"Win\",IF(AC27=0,\" \",IF(AC27=I27,\"Tie\",\" \"))),\" \")","v":" "},{"$f":"IF(AC28=\"Tie\",IF(AD27>J27,\"Win\",IF(AD27=0,\" \",IF(AD27=J27,\"Tie\",\" \"))),\" \")","v":" "},{"$f":"IF(AD28=\"Tie\",IF(AE27>K27,\"Win\",IF(AE27=0,\" \",IF(AE27=K27,\"Tie\",\" \"))),\" \")","v":" "}]
[]
[null,"Game 3",null,null,null,null,null,null,null,null,null,null,null,null,null,null,null,null,null,null,null,"Game 3"]
[]
["Avg","Name",1,2,3,4,5,6,7,8,9,"Total","Spot","Total","Open","Ovr Avg",null,null,null,null,"Avg","Name",1,2,3,4,5,6,7,8,9,"Total","Spot","Total","Open","Ovr Avg",null,null,null,null,null,null,null,null,null,null,null,null,"Red",8,9,"Open","Red",8,9,"Beer","Bad Beer","Game Under","total",null,null,"Open","Red",8,9,"Beer","Bad Beer","Game Under","total",null,"Red",8,9]
[{"$f":"IF(ISBLANK(B33),\"\",VLOOKUP(B33,VisitorAvgs,2,FALSE))","v":""},null,null,null,null,null,null,null,null,null,null,{"$f":"SUMPRODUCT(LOOKUP(C33:K33,MyCode,MyValue))","v":0},{"$f":"(U33-A33)*0.8","v":{"$error":"#VALUE!"}},{"$f":"SUM(L33+M33)","v":{"$error":"#VALUE!"}},{"$f":"COUNTIF(C33:K33,\"=0\")","v":0},{"$f":"SUM(L33,-A33)","v":{"$error":"#VALUE!"}},null,null,null,null,{"$f":"IF(ISBLANK(V33),\"\",VLOOKUP(V33,HomeAvgs,2,FALSE))","v":""},null,null,null,null,null,null,null,null,null,null,{"$f":"SUMPRODUCT(LOOKUP(W33:AE33,MyCode,MyValue))","v":0},{"$f":"(A33-U33)*0.8","v":{"$error":"#VALUE!"}},{"$f":"SUM(AF33+AG33)","v":{"$error":"#VALUE!"}},{"$f":"COUNTIF(W33:AE33,\"=0\")","v":0},{"$f":"SUM(AF33,-U33)","v":{"$error":"#VALUE!"}},null,null,null,null,null,null,null,null,null,null,null,null,{"$f":"COUNTIF(C33:K33,\"R\")","v":0},{"$f":"COUNTIF(C33:K33,\"8\")","v":0},{"$f":"COUNTIF(C33:K33,\"9\")","v":0},{"$f":"O33","v":0},{"$f":"COUNTIF(C33:K34,\"R\")+COUNTIF(C35:K35,\"R\")+COUNTIF(C36:K36,\"R\")+COUNTIF(C37:K37,\"R\")","v":0},{"$f":"COUNTIF(C34:K34,8)+COUNTIF(C35:K35,8)+COUNTIF(C36:K36,8)+COUNTIF(C37:K37,8)","v":0},{"$f":"COUNTIF(C34:K34,9)+COUNTIF(C35:K35,9)+COUNTIF(C36:K36,9)+COUNTIF(C37:K37,9)","v":0},{"$f":"IF(AA39=\"Win\",1,IF(AB39=\"Win\",1,IF(AC39=\"Win\",1,IF(AD39=\"Win\",1,IF(AE39=\"Win\",1,0)))))","v":0},{"$f":"IF($G$39=\" \",IF($AA$39=\" \",0,IF(G33<3,1,0)),IF(G33<3,1,0))","v":0},{"$f":"IF(A33=\"\",0,IF(A33>L33,1,0))","v":0},{"$f":"(AZ33*'Match Set Up'!J$10)+(BA33*'Match Set Up'!J$9)+(BB33*'Match Set Up'!J$7)+(BC33*'Match Set Up'!J$8)+(BD33*'Match Set Up'!J$6)+ (BE33*'Match Set Up'!J11)+ (BF33*'Match Set Up'!J12)","v":0},null,null,{"$f":"AI33","v":0},{"$f":"COUNTIF(W34:AE34,\"R\")+COUNTIF(W35:AE35,\"R\")+COUNTIF(W36:AE36,\"R\")+COUNTIF(W37:AE37,\"R\")","v":0},{"$f":"COUNTIF(W34:AE34,8)+COUNTIF(W35:AE35,8)+COUNTIF(W36:AE36,8)+COUNTIF(W37:AE37,8)","v":0},{"$f":"COUNTIF(W34:AE34,9)+COUNTIF(W35:AE35,9)+COUNTIF(W36:AE36,9)+COUNTIF(W37:AE37,9)","v":0},{"$f":"IF(G39=\"Win\",1,IF(H39=\"Win\",1,IF(I39=\"Win\",1,IF(J39=\"Win\",1,IF(K39=\"Win\",1,0)))))","v":0},{"$f":"IF($G$39=\" \",IF($AA$39=\" \",0,IF(AA33<3,1,0)),IF(AA33<3,1,0))","v":0},{"$f":"IF(U33=\"\",0,IF(U33>AF33,1,0))","v":0},{"$f":"(BJ33*'Match Set Up'!J$10)+(BK33*'Match Set Up'!J$9)+(BL33*'Match Set Up'!J$7)+(BM33*'Match Set Up'!J$8)+(BN33*'Match Set Up'!J$6)+ (BO33*'Match Set Up'!J11)+ (BP33*'Match Set Up'!J12)","v":0},null,{"$f":"COUNTIF(W33:AE33,\"R\")","v":0},{"$f":"COUNTIF(W33:AE33,\"8\")","v":0},{"$f":"COUNTIF(W33:AE33,\"9\")","v":0}]
[{"$f":"IF(ISBLANK(B34),\"\",VLOOKUP(B34,VisitorAvgs,2,FALSE))","v":""},null,null,null,null,null,null,null,null,null,null,{"$f":"SUMPRODUCT(LOOKUP(C34:K34,MyCode,MyValue))","v":0},{"$f":"(U34-A34)*0.8","v":{"$error":"#VALUE!"}},{"$f":"SUM(L34+M34)","v":{"$error":"#VALUE!"}},{"$f":"COUNTIF(C34:K34,\"=0\")","v":0},{"$f":"SUM(L34,-A34)","v":{"$error":"#VALUE!"}},null,null,null,null,{"$f":"IF(ISBLANK(V34),\"\",VLOOKUP(V34,HomeAvgs,2,FALSE))","v":""},null,null,null,null,null,null,null,null,null,null,{"$f":"SUMPRODUCT(LOOKUP(W34:AE34,MyCode,MyValue))","v":0},{"$f":"(A34-U34)*0.8","v":{"$error":"#VALUE!"}},{"$f":"SUM(AF34+AG34)","v":{"$error":"#VALUE!"}},{"$f":"COUNTIF(W34:AE34,\"=0\")","v":0},{"$f":"SUM(AF34,-U34)","v":{"$error":"#VALUE!"}},null,null,null,null,null,null,null,null,null,null,null,null,{"$f":"COUNTIF(C34:K34,\"R\")","v":0},{"$f":"COUNTIF(C34:K34,\"8\")","v":0},{"$f":"COUNTIF(C34:K34,\"9\")","v":0},{"$f":"O34","v":0},{"$f":"COUNTIF(C33:K33,\"R\")+COUNTIF(C35:K35,\"R\")+COUNTIF(C36:K36,\"R\")+COUNTIF(C37:K37,\"R\")","v":0},{"$f":"COUNTIF(C33:K33,8)+COUNTIF(C35:K35,8)+COUNTIF(C36:K36,8)+COUNTIF(C37:K37,8)","v":0},{"$f":"COUNTIF(C33:K33,9)+COUNTIF(C35:K35,9)+COUNTIF(C36:K36,9)+COUNTIF(C37:K37,9)","v":0},{"$f":"IF(AA39=\"Win\",1,IF(AB39=\"Win\",1,IF(AC39=\"Win\",1,IF(AD39=\"Win\",1,IF(AE39=\"Win\",1,0)))))","v":0},{"$f":"IF($G$39=\" \",IF($AA$39=\" \",0,IF(G34<3,1,0)),IF(G34<3,1,0))","v":0},{"$f":"IF(A34=\"\",0,IF(A34>L34,1,0))","v":0},{"$f":"(AZ34*'Match Set Up'!J$10)+(BA34*'Match Set Up'!J$9)+(BB34*'Match Set Up'!J$7)+(BC34*'Match Set Up'!J$8)+(BD34*'Match Set Up'!J$6)+ (BE34*'Match Set Up'!J11)+ (BF34*'Match Set Up'!J12)","v":0},null,null,{"$f":"AI34","v":0},{"$f":"COUNTIF(W33:AE33,\"R\")+COUNTIF(W35:AE35,\"R\")+COUNTIF(W36:AE36,\"R\")+COUNTIF(W37:AE37,\"R\")","v":0},{"$f":"COUNTIF(W33:AE33,8)+COUNTIF(W35:AE35,8)+COUNTIF(W36:AE36,8)+COUNTIF(W37:AE37,8)","v":0},{"$f":"COUNTIF(W33:AE33,9)+COUNTIF(W35:AE35,9)+COUNTIF(W36:AE36,9)+COUNTIF(W37:AE37,9)","v":0},{"$f":"IF(G39=\"Win\",1,IF(H39=\"Win\",1,IF(I39=\"Win\",1,IF(J39=\"Win\",1,IF(K39=\"Win\",1,0)))))","v":0},{"$f":"IF($G$39=\" \",IF($AA$39=\" \",0,IF(AA34<3,1,0)),IF(AA34<3,1,0))","v":0},{"$f":"IF(U34=\"\",0,IF(U34>AF34,1,0))","v":0},{"$f":"(BJ34*'Match Set Up'!J$10)+(BK34*'Match Set Up'!J$9)+(BL34*'Match Set Up'!J$7)+(BM34*'Match Set Up'!J$8)+(BN34*'Match Set Up'!J$6)+ (BO34*'Match Set Up'!J11)+ (BP34*'Match Set Up'!J12)","v":0},null,{"$f":"COUNTIF(W34:AE34,\"R\")","v":0},{"$f":"COUNTIF(W34:AE34,\"8\")","v":0},{"$f":"COUNTIF(W34:AE34,\"9\")","v":0}]
[{"$f":"IF(ISBLANK(B35),\"\",VLOOKUP(B35,VisitorAvgs,2,FALSE))","v":""},null,null,null,null,null,null,null,null,null,null,{"$f":"SUMPRODUCT(LOOKUP(C35:K35,MyCode,MyValue))","v":0},{"$f":"(U35-A35)*0.8","v":{"$error":"#VALUE!"}},{"$f":"SUM(L35+M35)","v":{"$error":"#VALUE!"}},{"$f":"COUNTIF(C35:K35,\"=0\")","v":0},{"$f":"SUM(L35,-A35)","v":{"$error":"#VALUE!"}},null,null,null,null,{"$f":"IF(ISBLANK(V35),\"\",VLOOKUP(V35,HomeAvgs,2,FALSE))","v":""},null,null,null,null,null,null,null,null,null,null,{"$f":"SUMPRODUCT(LOOKUP(W35:AE35,MyCode,MyValue))","v":0},{"$f":"(A35-U35)*0.8","v":{"$error":"#VALUE!"}},{"$f":"SUM(AF35+AG35)","v":{"$error":"#VALUE!"}},{"$f":"COUNTIF(W35:AE35,\"=0\")","v":0},{"$f":"SUM(AF35,-U35)","v":{"$error":"#VALUE!"}},null,null,null,null,null,null,null,null,null,null,null,null,0,0,0,{"$f":"O35","v":0},{"$f":"+COUNTIF(C33:K33,\"R\")+COUNTIF(C34:K34,\"R\")+COUNTIF(C36:K36,\"R\")+COUNTIF(C37:K37,\"R\")","v":0},{"$f":"COUNTIF(C33:K33,8)+COUNTIF(C34:K34,8)+COUNTIF(C36:K36,8)+COUNTIF(C37:K37,8)","v":0},{"$f":"COUNTIF(C33:K33,9)+COUNTIF(C34:K34,9)+COUNTIF(C36:K36,9)+COUNTIF(C37:K37,9)","v":0},{"$f":"IF(AA39=\"Win\",1,IF(AB39=\"Win\",1,IF(AC39=\"Win\",1,IF(AD39=\"Win\",1,IF(AE39=\"Win\",1,0)))))","v":0},{"$f":"IF($G$39=\" \",IF($AA$39=\" \",0,IF(G35<3,1,0)),IF(G35<3,1,0))","v":0},{"$f":"IF(A35=\"\",0,IF(A35>L35,1,0))","v":0},{"$f":"(AZ35*'Match Set Up'!J$10)+(BA35*'Match Set Up'!J$9)+(BB35*'Match Set Up'!J$7)+(BC35*'Match Set Up'!J$8)+(BD35*'Match Set Up'!J$6)+ (BE35*'Match Set Up'!J11)+ (BF35*'Match Set Up'!J12)","v":0},null,null,{"$f":"AI35","v":0},{"$f":"COUNTIF(W33:AE33,\"R\")+COUNTIF(W34:AE34,\"R\")+COUNTIF(W36:AE36,\"R\")+COUNTIF(W37:AE37,\"R\")","v":0},{"$f":"COUNTIF(W33:AE33,8)+COUNTIF(W34:AE34,8)+COUNTIF(W36:AE36,8)+COUNTIF(W37:AE37,8)","v":0},{"$f":"COUNTIF(W33:AE33,9)+COUNTIF(W34:AE34,9)+COUNTIF(W36:AE36,9)+COUNTIF(W37:AE37,9)","v":0},{"$f":"IF(G39=\"Win\",1,IF(H39=\"Win\",1,IF(I39=\"Win\",1,IF(J39=\"Win\",1,IF(K39=\"Win\",1,0)))))","v":0},{"$f":"IF($G$39=\" \",IF($AA$39=\" \",0,IF(AA35<3,1,0)),IF(AA35<3,1,0))","v":0},{"$f":"IF(U35=\"\",0,IF(U35>AF35,1,0))","v":0},{"$f":"(BJ35*'Match Set Up'!J$10)+(BK35*'Match Set Up'!J$9)+(BL35*'Match Set Up'!J$7)+(BM35*'Match Set Up'!J$8)+(BN35*'Match Set Up'!J$6)+ (BO35*'Match Set Up'!J11)+ (BP35*'Match Set Up'!J12)","v":0},null,0,0,0]
[{"$f":"IF(ISBLANK(B36),\"\",VLOOKUP(B36,VisitorAvgs,2,FALSE))","v":""},null,null,null,null,null,null,null,null,null,null,{"$f":"SUMPRODUCT(LOOKUP(C36:K36,MyCode,MyValue))","v":0},{"$f":"(U36-A36)*0.8","v":{"$error":"#VALUE!"}},{"$f":"SUM(L36+M36)","v":{"$error":"#VALUE!"}},{"$f":"COUNTIF(C36:K36,\"=0\")","v":0},{"$f":"SUM(L36,-A36)","v":{"$error":"#VALUE!"}},"Spot",null,null,null,{"$f":"IF(ISBLANK(V36),\"\",VLOOKUP(V36,HomeAvgs,2,FALSE))","v":""},null,null,null,null,null,null,null,null,null,null,{"$f":"SUMPRODUCT(LOOKUP(W36:AE36,MyCode,MyValue))","v":0},{"$f":"(A36-U36)*0.8","v":{"$error":"#VALUE!"}},{"$f":"SUM(AF36+AG36)","v":{"$error":"#VALUE!"}},{"$f":"COUNTIF(W36:AE36,\"=0\")","v":0},{"$f":"SUM(AF36,-U36)","v":{"$error":"#VALUE!"}},"Spot",null,null,null,null,null,null,null,null,null,null,null,0,0,0,{"$f":"O36","v":0},{"$f":"COUNTIF(C33:K33,\"R\")+COUNTIF(C34:K34,\"R\")+COUNTIF(C35:K35,\"R\")+COUNTIF(C37:K37,\"R\")","v":0},{"$f":"COUNTIF(C33:K33,8)+COUNTIF(C34:K34,8)+COUNTIF(C35:K35,8)+COUNTIF(C37:K37,8)","v":0},{"$f":"COUNTIF(C33:K33,9)+COUNTIF(C34:K34,9)+COUNTIF(C35:K35,9)+COUNTIF(C37:K37,9)","v":0},{"$f":"IF(AA39=\"Win\",1,IF(AB39=\"Win\",1,IF(AC39=\"Win\",1,IF(AD39=\"Win\",1,IF(AE39=\"Win\",1,0)))))","v":0},{"$f":"IF($G$39=\" \",IF($AA$39=\" \",0,IF(G36<3,1,0)),IF(G36<3,1,0))","v":0},{"$f":"IF(A36=\"\",0,IF(A36>L36,1,0))","v":0},{"$f":"(AZ36*'Match Set Up'!J$10)+(BA36*'Match Set Up'!J$9)+(BB36*'Match Set Up'!J$7)+(BC36*'Match Set Up'!J$8)+(BD36*'Match Set Up'!J$6)+ (BE36*'Match Set Up'!J11)+ (BF36*'Match Set Up'!J12)","v":0},null,null,{"$f":"AI36","v":0},{"$f":"COUNTIF(W33:AE33,\"R\")+COUNTIF(W34:AE34,\"R\")+COUNTIF(W35:AE35,\"R\")+COUNTIF(W37:AE37,\"R\")","v":0},{"$f":"COUNTIF(W33:AE33,8)+COUNTIF(W34:AE34,8)+COUNTIF(W35:AE35,8)+COUNTIF(W37:AE37,8)","v":0},{"$f":"COUNTIF(W33:AE33,9)+COUNTIF(W34:AE34,9)+COUNTIF(W35:AE35,9)+COUNTIF(W37:AE37,9)","v":0},{"$f":"IF(G39=\"Win\",1,IF(H39=\"Win\",1,IF(I39=\"Win\",1,IF(J39=\"Win\",1,IF(K39=\"Win\",1,0)))))","v":0},{"$f":"IF($G$39=\" \",IF($AA$39=\" \",0,IF(AA36<3,1,0)),IF(AA36<3,1,0))","v":0},{"$f":"IF(U36=\"\",0,IF(U36>AF36,1,0))","v":0},{"$f":"(BJ36*'Match Set Up'!J$10)+(BK36*'Match Set Up'!J$9)+(BL36*'Match Set Up'!J$7)+(BM36*'Match Set Up'!J$8)+(BN36*'Match Set Up'!J$6)+ (BO36*'Match Set Up'!J11)+ (BP36*'Match Set Up'!J12)","v":0},null,0,0,0]
[{"$f":"IF(ISBLANK(B37),\"\",VLOOKUP(B37,VisitorAvgs,2,FALSE))","v":""},null,null,null,null,null,null,null,null,null,null,{"$f":"SUMPRODUCT(LOOKUP(C37:K37,MyCode,MyValue))","v":0},{"$f":"(U37-A37)*0.8","v":{"$error":"#VALUE!"}},{"$f":"SUM(L37+M37)","v":{"$error":"#VALUE!"}},{"$f":"COUNTIF(C37:K37,\"=0\")","v":0},{"$f":"SUM(L37,-A37)","v":{"$error":"#VALUE!"}},{"$f":"IF(A38>U38,0,(U38-A38)*0.8)","v":0},"PTs",{"$f":"IF(Q38=AK38,\"Tie\",IF(Q38>AK38,\"Winner\",\"Loser\"))","v":"Tie"},null,{"$f":"IF(ISBLANK(V37),\"\",VLOOKUP(V37,HomeAvgs,2,FALSE))","v":""},null,null,null,null,null,null,null,null,null,null,{"$f":"SUMPRODUCT(LOOKUP(W37:AE37,MyCode,MyValue))","v":0},{"$f":"(A37-U37)*0.8","v":{"$error":"#VALUE!"}},{"$f":"SUM(AF37+AG37)","v":{"$error":"#VALUE!"}},{"$f":"COUNTIF(W37:AE37,\"=0\")","v":0},{"$f":"SUM(AF37,-U37)","v":{"$error":"#VALUE!"}},{"$f":"IF(U38>A38,0,(A38-U38)*0.8)","v":0},"PTs",{"$f":"IF(AK38=Q38,\"Tie\",IF(AK38>Q38,\"Winner\",\"Loser\"))","v":"Tie"},null,null,null,null,null,null,null,null,null,0,0,0,{"$f":"O37","v":0},{"$f":"COUNTIF(C33:K33,\"R\")+COUNTIF(C34:K34,\"R\")+COUNTIF(C35:K35,\"R\")+COUNTIF(C36:K36,\"R\")","v":0},{"$f":"COUNTIF(C33:K33,8)+COUNTIF(C34:K34,8)+COUNTIF(C35:K35,8)+COUNTIF(C36:K36,8)","v":0},{"$f":"COUNTIF(C33:K33,9)+COUNTIF(C34:K34,9)+COUNTIF(C35:K35,9)+COUNTIF(C36:K36,9)","v":0},{"$f":"IF(AA39=\"Win\",1,IF(AB39=\"Win\",1,IF(AC39=\"Win\",1,IF(AD39=\"Win\",1,IF(AE39=\"Win\",1,0)))))","v":0},{"$f":"IF($G$39=\" \",IF($AA$39=\" \",0,IF(G37<3,1,0)),IF(G37<3,1,0))","v":0},{"$f":"IF(A37=\"\",0,IF(A37>L37,1,0))","v":0},{"$f":"(AZ37*'Match Set Up'!J$10)+(BA37*'Match Set Up'!J$9)+(BB37*'Match Set Up'!J$7)+(BC37*'Match Set Up'!J$8)+(BD37*'Match Set Up'!J$6)+ (BE37*'Match Set Up'!J11)+ (BF37*'Match Set Up'!J12)","v":0},null,null,{"$f":"AI37","v":0},{"$f":"COUNTIF(W33:AE33,\"R\")+COUNTIF(W34:AE34,\"R\")+COUNTIF(W35:AE35,\"R\")+COUNTIF(W36:AE36,\"R\")","v":0},{"$f":"COUNTIF(W33:AE33,8)+COUNTIF(W34:AE34,8)+COUNTIF(W35:AE35,8)+COUNTIF(W36:AE36,8)","v":0},{"$f":"COUNTIF(W33:AE33,9)+COUNTIF(W34:AE34,9)+COUNTIF(W35:AE35,9)+COUNTIF(W36:AE36,9)","v":0},{"$f":"IF(G39=\"Win\",1,IF(H39=\"Win\",1,IF(I39=\"Win\",1,IF(J39=\"Win\",1,IF(K39=\"Win\",1,0)))))","v":0},{"$f":"IF($G$39=\" \",IF($AA$39=\" \",0,IF(AA37<3,1,0)),IF(AA37<3,1,0))","v":0},{"$f":"IF(U37=\"\",0,IF(U37>AF37,1,0))","v":0},{"$f":"(BJ37*'Match Set Up'!J$10)+(BK37*'Match Set Up'!J$9)+(BL37*'Match Set Up'!J$7)+(BM37*'Match Set Up'!J$8)+(BN37*'Match Set Up'!J$6)+ (BO37*'Match Set Up'!J11)+ (BP37*'Match Set Up'!J12)","v":0},null,{"$f":"COUNTIF(W37:AE37,\"R\")","v":0},{"$f":"COUNTIF(W37:AE37,\"8\")","v":0},{"$f":"COUNTIF(W37:AE37,\"9\")","v":0}]
[{"$f":"SUM(A33:A37)","v":0},"GAME 3 TOTALs",{"$f":"SUMPRODUCT(LOOKUP(C33:C37,MyCode,MyValue))","v":0},0,0,0,0,0,0,0,0,{"$f":"SUM(L33:L37)","v":0},{"$f":"SUM(#REF!+#REF!)","v":{"$error":"#REF!"}},{"$f":"SUM(#REF!+#REF!)","v":{"$error":"#REF!"}},{"$f":"SUM(O33:O37)","v":0},{"$f":"SUM(P33:P37)","v":{"$error":"#VALUE!"}},{"$f":"((L38+ROUND(Q37,0)))","v":0},{"$f":"IF(Q38>AK38,1,IF(Q38=0,0,IF(Q38=AK38,0.5,0)))","v":0},{"$f":"SUM(Q38,-AK38)","v":0},null,{"$f":"SUM(U33:U37)","v":0},"GAME 3 TOTALs",{"$f":"SUMPRODUCT(LOOKUP(W33:W37,MyCode,MyValue))","v":0},0,0,0,0,0,0,0,0,{"$f":"SUM(AF33:AF37)","v":0},"-","-",{"$f":"SUM(AI33:AI37)","v":0},{"$f":"SUM(AJ33:AJ37)","v":{"$error":"#VALUE!"}},{"$f":"((AF38+ROUND(AK37,0)))","v":0},{"$f":"IF(AK38>Q38,1,IF(AK38=0,0,IF(AK38=Q38,0.5,0)))","v":0},{"$f":"SUM(AK38,-Q38)","v":0},null,null,null,null,null,null,null,null,null,null,null,null,null,null,null,null,{"$f":"SUM(BD33:BD37)","v":0},null,null,null,null,null,null,null,null,null,{"$f":"SUM(BN33:BN37)","v":0}]
[null,null,null,null,null,null,{"$f":"IF(G38>AA38,\"Win\",IF(G38=0,\" \",IF(G38=AA38,\"Tie\",\" \")))","v":" "},{"$f":"IF(G39=\"Tie\",IF(H38>AB38,\"Win\",IF(H38=0,\" \",IF(H38=AB38,\"Tie\",\" \"))),\" \")","v":" "},{"$f":"IF(H39=\"Tie\",IF(I38>AC38,\"Win\",IF(I38=0,\" \",IF(I38=AC38,\"Tie\",\" \"))),\" \")","v":" "},{"$f":"IF(I39=\"Tie\",IF(J38>AD38,\"Win\",IF(J38=0,\" \",IF(J38=AD38,\"Tie\",\" \"))),\" \")","v":" "},{"$f":"IF(J39=\"Tie\",IF(K38>AE38,\"Win\",IF(K38=0,\" \",IF(K38=AE38,\"Tie\",\" \"))),\" \")","v":" "},null,null,null,null,null,null,null,null,null,null,null,null,null,null,null,{"$f":"IF(AA38>G38,\"Win\",IF(AA38=0,\" \",IF(AA38=G38,\"Tie\",\" \")))","v":" "},{"$f":"IF(AA39=\"Tie\",IF(AB38>H38,\"Win\",IF(AB38=0,\" \",IF(AB38=H38,\"Tie\",\" \"))),\" \")","v":" "},{"$f":"IF(AB39=\"Tie\",IF(AC38>I38,\"Win\",IF(AC38=0,\" \",IF(AC38=I38,\"Tie\",\" \"))),\" \")","v":" "},{"$f":"IF(AC39=\"Tie\",IF(AD38>J38,\"Win\",IF(AD38=0,\" \",IF(AD38=J38,\"Tie\",\" \"))),\" \")","v":" "},{"$f":"IF(AD39=\"Tie\",IF(AE38>K38,\"Win\",IF(AE38=0,\" \",IF(AE38=K38,\"Tie\",\" \"))),\" \")","v":" "}]
[null,null,null,null,null,null,null,null,null,null,null,null,null,null,null,null,null,null,null,null,null,null,null,null,null,null,null,null,null,null,null,null,null,null,null,null,null,null,null,null,null,null,null,null,null,null,null,null,"Red",8,9,null,null,null,null,null,null,null,null,null,null,null,null,null,null,null,null,null,null,null,"Red",8,9]
[null,"FINAL TOTALs",{"$f":"C16+C27+C38","v":0},0,0,0,0,0,0,0,0,0,{"$error":"#REF!"},{"$error":"#REF!"},0,{"$error":"#VALUE!"},0,0,{"$f":"SUM(Q41,-AK41)","v":0},null,null,"FINAL TOTALs",{"$f":"W16+W27+W38","v":0},0,0,0,0,0,0,0,0,0,{"$error":"#VALUE!"},{"$error":"#VALUE!"},0,{"$error":"#VALUE!"},0,0,{"$f":"SUM(AK41,-Q41)","v":0},null,null,null,null,null,null,null,null,"Totals",{"$f":"SUM(AW33:AW37,AW22:AW26,AW11:AW15)","v":0},{"$f":"SUM(AX33:AX37,AX22:AX26,AX11:AX15)","v":0},{"$f":"SUM(AY33:AY37,AY22:AY26,AY11:AY15)","v":0},{"$f":"SUM(AZ33:AZ37,AZ22:AZ26,AZ11:AZ15)","v":0},{"$f":"COUNTIF(C11:K12,\"R\")+COUNTIF(C13:K15,\"R\")+COUNTIF(C22:K23,\"R\")+COUNTIF(C24:K26,\"R\")+COUNTIF(C33:K34,\"R\")+COUNTIF(C35:K37,\"R\")","v":0},{"$f":"COUNTIF(C11:K12,8)+COUNTIF(C13:K15,8)+COUNTIF(C22:K23,8)+COUNTIF(C24:K26,8)+COUNTIF(C33:K34,8)+COUNTIF(C35:K37,8)","v":0},{"$f":"COUNTIF(C11:K12,9)+COUNTIF(C13:K15,9)+COUNTIF(C22:K23,9)+COUNTIF(C24:K26,9)+COUNTIF(C33:K34,9)+COUNTIF(C35:K37,9)","v":0},null,{"$f":"SUM(BE33:BE37,BE22:BE26,BE11:BE15)","v":0},{"$f":"SUM(BF33:BF37,BF22:BF26,BF11:BF15)","v":0},{"$f":"SUM(BG11:BG12,BG13:BG14,BG15,BG22:BG23,BG24:BG26,BG33:BG34,BG35:BG37)","v":0},null,null,{"$f":"SUM(BJ33:BJ37,BJ22:BJ26,BJ11:BJ15)","v":0},{"$f":"COUNTIF(W11:AE12,\"R\")+COUNTIF(W13:AE15,\"R\")+COUNTIF(W22:AE23,\"R\")+COUNTIF(W24:AE26,\"R\")+COUNTIF(W33:AE34,\"R\")+COUNTIF(W35:AE37,\"R\")","v":0},{"$f":"COUNTIF(W11:AE12,8)+COUNTIF(W13:AE15,8)+COUNTIF(W22:AE23,8)+COUNTIF(W24:AE26,8)+COUNTIF(W33:AE34,8)+COUNTIF(W35:AE37,8)","v":0},{"$f":"COUNTIF(W11:AE12,9)+COUNTIF(W13:AE15,9)+COUNTIF(W22:AE23,9)+COUNTIF(W24:AE26,9)+COUNTIF(W33:AE34,9)+COUNTIF(W35:AE37,9)","v":0},null,{"$f":"SUM(BO33:BO37,BO22:BO26,BO11:BO15)","v":0},{"$f":"SUM(BP33:BP37,BP22:BP26,BP11:BP15)","v":0},{"$f":"SUM(BQ11:BQ12,BQ13:BQ14,BQ15,BQ22:BQ23,BQ24:BQ26,BQ33:BQ34,BQ35:BQ37)","v":0},null,{"$f":"SUM(BS33:BS37,BS22:BS26,BS11:BS15)","v":0},{"$f":"SUM(BT33:BT37,BT22:BT26,BT11:BT15)","v":0},{"$f":"SUM(BU33:BU37,BU22:BU26,BU11:BU15)","v":0}]
[null,null,null,null,null,null,null,"EXTRA Point for max points",null,null,null,null,null,null,null,null,null,{"$f":"IF(Q41>AK41,1,IF(Q41=0,0,IF(Q41=AK41,0.5,0)))","v":0},null,null,null,null,null,null,null,null,null,"EXTRA Point for max points",null,null,null,null,null,null,null,null,null,{"$f":"IF(AK41>Q41,1,IF(AK41=0,0,IF(AK41=Q41,0.5,0)))","v":0}]
["GAME POINTs & TOTALs",null,null,null,{"$f":"C7","v":0},null,null,null,null,{"$f":"IF(R43=AL43,\"Match TIE\",IF(R43>AL43,\"Match WINNER\",\"Match LOSER\"))","v":"Match TIE"},null,null,null,null,null,null,{"$f":"Q41","v":0},{"$f":"SUM(R41:R42)","v":0},null,null,"GAME POINTs & TOTALs",null,null,null,{"$f":"K4","v":0},null,null,null,null,{"$f":"IF(R43=AL43,\"Match TIE\",IF(AL43>R43,\"Match WINNER\",\"Match LOSER\"))","v":"Match TIE"},null,null,null,null,null,null,{"$f":"AK41","v":0},{"$f":"SUM(AL41:AL42)","v":0}]
[]
[null,"High Pts Game 1",null,{"$f":"IF(L11=Q45,B11,IF(L12=Q45,B12,IF(L13=Q45,B13,IF(L14=Q45,B14,IF(L15=Q45,B15,)))))","v":0},null,null,null,null,{"$f":"IF(R45=D45,\" \",R45)","v":" "},null,null,null,null,null,null,null,{"$f":"MAX(L11:L15)","v":0},{"$f":"IF(L15=Q45,B15,IF(L14=Q45,B14,IF(L13=Q45,B13,IF(L12=Q45,B12,IF(L11=Q45,B11,)))))","v":0},null,null,null,"High Pts Game 1",null,{"$f":"IF(AF11=AK45,V11,IF(AF12=AK45,V12,IF(AF13=AK45,V13,IF(AF14=AK45,V14,IF(AF15=AK45,V15,)))))","v":0},null,null,null,null,{"$f":"IF(AL45=X45,\" \",AL45)","v":" "},null,null,null,null,null,null,null,{"$f":"MAX(AF11:AF15)","v":0},{"$f":"IF(AF15=AK45,V15,IF(AF14=AK45,V14,IF(AF13=AK45,V13,IF(AF12=AK45,V12,IF(AF11=AK45,V11,)))))","v":0}]
[null,"High Pts Game 2",null,{"$f":"IF(L22=Q46,B22,IF(L23=Q46,B23,IF(L24=Q46,B24,IF(L25=Q46,B25,IF(L26=Q46,B26,)))))","v":0},null,null,null,null,{"$f":"IF(R46=D46,\" \",R46)","v":" "},null,null,null,null,null,null,null,{"$f":"MAX(L22:L26)","v":0},{"$f":"IF(L26=Q46,B26,IF(L25=Q46,B25,IF(L24=Q46,B24,IF(L23=Q46,B23,IF(L22=Q46,B22,)))))","v":0},null,null,null,"High Pts Game 2",null,{"$f":"IF(AF22=AK46,V22,IF(AF23=AK46,V23,IF(AF24=AK46,V24,IF(AF25=AK46,V25,IF(AF26=AK46,V26,)))))","v":0},null,null,null,null,{"$f":"IF(AL46=X46,\" \",AL46)","v":" "},null,null,null,null,null,null,null,{"$f":"MAX(AF22:AF26)","v":0},{"$f":"IF(AF26=AK46,V26,IF(AF25=AK46,V25,IF(AF24=AK46,V24,IF(AF23=AK46,V23,IF(AF22=AK46,V22,)))))","v":0}]
[null,"High Pts Game 3",null,{"$f":"IF(L33=Q47,B33,IF(L34=Q47,B34,IF(L35=Q47,B35,IF(L36=Q47,B36,IF(L37=Q47,B37,)))))","v":0},null,null,null,null,{"$f":"IF(R47=D47,\" \",R47)","v":" "},null,null,null,null,null,null,null,{"$f":"MAX(L33:L37)","v":0},{"$f":"IF(L37=Q47,B37,IF(L36=Q47,B36,IF(L35=Q47,B35,IF(L34=Q47,B34,IF(L33=Q47,B33,)))))","v":0},null,null,null,"High Pts Game 3",null,{"$f":"IF(AF33=AK47,V33,IF(AF34=AK47,V34,IF(AF35=AK47,V35,IF(AF36=AK47,V36,IF(AF37=AK47,V37,)))))","v":0},null,null,null,null,{"$f":"IF(AL47=X47,\" \",AL47)","v":" "},null,null,null,null,null,null,null,{"$f":"MAX(AF33:AF37)","v":0},{"$f":"IF(AF37=AK47,V37,IF(AF36=AK47,V36,IF(AF35=AK47,V35,IF(AF34=AK47,V34,IF(AF33=AK47,V33,)))))","v":0}]
[]
[null,"High Pts Team ",null,{"$f":"IF(Q45=Q49,D45,IF(Q46=Q49,D46,IF(Q47=Q49,D47,)))","v":0},null,null,null,null,{"$f":"IF(Q45=Q49,I45,IF(Q46=Q49,I46,IF(Q47=Q49,I47,)))","v":" "},null,null,null,null,null,null,null,{"$f":"MAX(Q45:Q47)","v":0},null,null,null,null,"High Pts Team ",null,{"$f":"IF(AK45=AK49,X45,IF(AK46=AK49,X46,IF(AK47=AK49,X47,)))","v":0},null,null,null,null,{"$f":"IF(AK45=AK49,AC45,IF(AK46=AK49,AC46,IF(AK47=AK49,AC47,)))","v":" "},null,null,null,null,null,null,null,{"$f":"MAX(AK45:AK47)","v":0}]
[]
[null,"High Over Avg Game 1",null,{"$f":"IF(P11=Q51,B11,IF(P12=Q51,B12,IF(P13=Q51,B13,IF(P14=Q51,B14,IF(P15=Q51,B15,)))))","v":{"$error":"#VALUE!"}},null,null,null,null,{"$f":"IF(R51=D51,\" \",R51)","v":{"$error":"#VALUE!"}},null,null,null,null,null,null,null,{"$f":"MAX(P11:P15)","v":{"$error":"#VALUE!"}},{"$f":"IF(P15=Q51,B15,IF(P14=Q51,B14,IF(P13=Q51,B13,IF(P12=Q51,B12,IF(P11=Q51,B11,)))))","v":{"$error":"#VALUE!"}},null,null,null,"High Over Avg Game 1",null,{"$f":"IF(AJ11=AK51,V11,IF(AJ12=AK51,V12,IF(AJ13=AK51,V13,IF(AJ14=AK51,V14,IF(AJ15=AK51,V15,)))))","v":{"$error":"#VALUE!"}},null,null,null,null,{"$f":"IF(AL51=X51,\" \",AL51)","v":{"$error":"#VALUE!"}},null,null,null,null,null,null,null,{"$f":"MAX(AJ11:AJ15)","v":{"$error":"#VALUE!"}},{"$f":"R51=IF(AJ15=AK51,V15,IF(AJ14=AK51,V14,IF(AJ13=AK51,V13,IF(AJ12=AK51,V12,IF(AJ11=AK51,V11,)))))","v":{"$error":"#VALUE!"}}]
[null,"High Over Avg Game 2",null,{"$f":"IF(P22=Q52,B22,IF(P23=Q52,B23,IF(P24=Q52,B24,IF(P25=Q52,B25,IF(P26=Q52,B26,)))))","v":{"$error":"#VALUE!"}},null,null,null,null,{"$f":"IF(R52=D52,\" \",R52)","v":{"$error":"#VALUE!"}},null,null,null,null,null,null,null,{"$f":"MAX(P22:P26)","v":{"$error":"#VALUE!"}},{"$f":"IF(P26=Q52,B26,IF(P25=Q52,B25,IF(P24=Q52,B24,IF(P23=Q52,B23,IF(P22=Q52,B22,)))))","v":{"$error":"#VALUE!"}},null,null,null,"High Over Avg Game 2",null,{"$f":"IF(AJ22=AK52,V22,IF(AJ23=AK52,V23,IF(AJ24=AK52,V24,IF(AJ25=AK52,V25,IF(AJ26=AK52,V26,)))))","v":{"$error":"#VALUE!"}},null,null,null,null,{"$f":"IF(AL52=X52,\" \",AL52)","v":{"$error":"#VALUE!"}},null,null,null,null,null,null,null,{"$f":"MAX(AJ22:AJ26)","v":{"$error":"#VALUE!"}},{"$f":"IF(AJ26=AK52,V26,IF(AJ25=AK52,V25,IF(AJ24=AK52,V24,IF(AJ23=AK52,V23,IF(AJ22=AK52,V22)))))","v":{"$error":"#VALUE!"}}]
[null,"High Over Avg Game 3",null,{"$f":"IF(P33=Q53,B33,IF(P34=Q53,B34,IF(P35=Q53,B35,IF(P36=Q53,B36,IF(P37=Q53,B37,)))))","v":{"$error":"#VALUE!"}},null,null,null,null,{"$f":"IF(R53=D53,\" \",R53)","v":{"$error":"#VALUE!"}},null,null,null,null,null,null,null,{"$f":"MAX(P33:P37)","v":{"$error":"#VALUE!"}},{"$f":"IF(P37=Q53,B37,IF(P36=Q53,B36,IF(P35=Q53,B35,IF(P34=Q53,B34,IF(P33=Q53,B33,)))))","v":{"$error":"#VALUE!"}},null,null,null,"High Over Avg Game 3",null,{"$f":"IF(AJ33=AK53,V33,IF(AJ34=AK53,V34,IF(AJ35=AK53,V35,IF(AJ36=AK53,V36,IF(AJ37=AK53,V37,)))))","v":{"$error":"#VALUE!"}},null,null,null,null,{"$f":"IF(AL53=X53,\" \",AL53)","v":{"$error":"#VALUE!"}},null,null,null,null,null,null,null,{"$f":"MAX(AJ33:AJ37)","v":{"$error":"#VALUE!"}},{"$f":"IF(AJ37=AK53,V37,IF(AJ36=AK53,V36,IF(AJ35=AK53,V35,IF(AJ34=AK53,V34,IF(AJ33=AK53,V33)))))","v":{"$error":"#VALUE!"}}]
[]
[null,"High Over Avg Team ",null,{"$f":"IF(Q51=Q55,D51,IF(Q52=Q55,D52,IF(Q53=Q55,D53,)))","v":{"$error":"#VALUE!"}},null,null,null,null,{"$f":"IF(Q51=Q55,I51,IF(Q52=Q55,I52,IF(Q53=Q55,I53,)))","v":{"$error":"#VALUE!"}},null,null,null,null,null,null,null,{"$f":"MAX(Q51:Q53)","v":{"$error":"#VALUE!"}},null,null,null,null,"High Over Avg Team ",null,{"$f":"IF(AK51=AK55,X51,IF(AK52=AK55,X52,IF(AK53=AK55,X53,)))","v":{"$error":"#VALUE!"}},null,null,null,null,{"$f":"IF(AK51=AK55,AC51,IF(AK52=AK55,AC52,IF(AK53=AK55,AC53,)))","v":{"$error":"#VALUE!"}},null,null,null,null,null,null,null,{"$f":"MAX(AK51:AK53)","v":{"$error":"#VALUE!"}}]
[]
[]
[null,null,null,{"$f":"IF(L11=Q45,B11,IF(L12=Q45,B12,IF(L13=Q45,B13,IF(L14=Q45,B14,IF(L15=Q45,B15,)))))","v":0},null,null,null,null,{"$f":"IF(R45=D45,\" \",R45)","v":" "}]
[]
[]
[]
[null,null,null,null,null,null,null,null,null,null,null,null,null,null,null,null,null,null,null,null,null,null,null,null,null,null,null,null,null,null,null,null,null,null,null,null,null,{"$f":"IF(AF52=AK62,V52,IF(AF51=AK62,V51,IF(AF50=AK62,V50,IF(AF49=AK62,V49,IF(AF48=AK62,V48,)))))","v":"High Over Avg Game 2"}]
[]
[]
[]
[]
[]
[]
[]
[]
[]
[]
[]
[]
[]
[]
[]
[]
[]
[]
[]
[]
[]
[]
[]
[]
[]
[]
[]
[]
[null,{"$f":"COUNTIF(VisitorPlayers,\"Not\")","v":12},null,null,null,null,null,{"$f":"COUNTIF(HomePlayers,\"Not\")","v":12}]
[null,{"$f":"IF(ISBLANK('Match Set Up'!A6),\"Not\",'Match Set Up'!A6)","v":"Not"},{"$f":"IF(ISBLANK('Match Set Up'!B6),\"\",'Match Set Up'!B6)","v":""},{"$f":"IF(ISBLANK('Match Set Up'!D6),\"\",'Match Set Up'!D6)","v":""},null,null,null,{"$f":"IF(ISBLANK('Match Set Up'!E6),\"Not\",'Match Set Up'!E6)","v":"Not"},{"$f":"IF(ISBLANK('Match Set Up'!F6),\"\",'Match Set Up'!F6)","v":""}]
[null,{"$f":"IF(ISBLANK('Match Set Up'!A7),\"Not\",'Match Set Up'!A7)","v":"Not"},{"$f":"IF(ISBLANK('Match Set Up'!B7),\"\",'Match Set Up'!B7)","v":""},null,null,null,null,{"$f":"IF(ISBLANK('Match Set Up'!E7),\"Not\",'Match Set Up'!E7)","v":"Not"},{"$f":"IF(ISBLANK('Match Set Up'!F7),\"\",'Match Set Up'!F7)","v":""}]
[null,{"$f":"IF(ISBLANK('Match Set Up'!A8),\"Not\",'Match Set Up'!A8)","v":"Not"},{"$f":"IF(ISBLANK('Match Set Up'!B8),\"\",'Match Set Up'!B8)","v":""},null,null,null,null,{"$f":"IF(ISBLANK('Match Set Up'!E8),\"Not\",'Match Set Up'!E8)","v":"Not"},{"$f":"IF(ISBLANK('Match Set Up'!F8),\"\",'Match Set Up'!F8)","v":""}]
[null,{"$f":"IF(ISBLANK('Match Set Up'!A9),\"Not\",'Match Set Up'!A9)","v":"Not"},{"$f":"IF(ISBLANK('Match Set Up'!B9),\"\",'Match Set Up'!B9)","v":""},null,null,null,null,{"$f":"IF(ISBLANK('Match Set Up'!E9),\"Not\",'Match Set Up'!E9)","v":"Not"},{"$f":"IF(ISBLANK('Match Set Up'!F9),\"\",'Match Set Up'!F9)","v":""}]
[null,{"$f":"IF(ISBLANK('Match Set Up'!A10),\"Not\",'Match Set Up'!A10)","v":"Not"},{"$f":"IF(ISBLANK('Match Set Up'!B10),\"\",'Match Set Up'!B10)","v":""},null,null,null,null,{"$f":"IF(ISBLANK('Match Set Up'!E10),\"Not\",'Match Set Up'!E10)","v":"Not"},{"$f":"IF(ISBLANK('Match Set Up'!F10),\"\",'Match Set Up'!F10)","v":""}]
[null,{"$f":"IF(ISBLANK('Match Set Up'!A11),\"Not\",'Match Set Up'!A11)","v":"Not"},{"$f":"IF(ISBLANK('Match Set Up'!B11),\"\",'Match Set Up'!B11)","v":""},null,null,null,null,{"$f":"IF(ISBLANK('Match Set Up'!E11),\"Not\",'Match Set Up'!E11)","v":"Not"},{"$f":"IF(ISBLANK('Match Set Up'!F11),\"\",'Match Set Up'!F11)","v":""}]
[null,{"$f":"IF(ISBLANK('Match Set Up'!A12),\"Not\",'Match Set Up'!A12)","v":"Not"},{"$f":"IF(ISBLANK('Match Set Up'!B12),\"\",'Match Set Up'!B12)","v":""},null,null,null,null,{"$f":"IF(ISBLANK('Match Set Up'!E12),\"Not\",'Match Set Up'!E12)","v":"Not"},{"$f":"IF(ISBLANK('Match Set Up'!F12),\"\",'Match Set Up'!F12)","v":""}]
[null,{"$f":"IF(ISBLANK('Match Set Up'!A13),\"Not\",'Match Set Up'!A13)","v":"Not"},{"$f":"IF(ISBLANK('Match Set Up'!B13),\"\",'Match Set Up'!B13)","v":""},null,null,null,null,{"$f":"IF(ISBLANK('Match Set Up'!E13),\"Not\",'Match Set Up'!E13)","v":"Not"},{"$f":"IF(ISBLANK('Match Set Up'!F13),\"\",'Match Set Up'!F13)","v":""}]
[null,{"$f":"IF(ISBLANK('Match Set Up'!A14),\"Not\",'Match Set Up'!A14)","v":"Not"},{"$f":"IF(ISBLANK('Match Set Up'!B14),\"\",'Match Set Up'!B14)","v":""},null,null,null,null,{"$f":"IF(ISBLANK('Match Set Up'!E14),\"Not\",'Match Set Up'!E14)","v":"Not"},{"$f":"IF(ISBLANK('Match Set Up'!F14),\"\",'Match Set Up'!F14)","v":""}]
[null,{"$f":"IF(ISBLANK('Match Set Up'!A15),\"Not\",'Match Set Up'!A15)","v":"Not"},{"$f":"IF(ISBLANK('Match Set Up'!B15),\"\",'Match Set Up'!B15)","v":""},null,null,null,null,{"$f":"IF(ISBLANK('Match Set Up'!E15),\"Not\",'Match Set Up'!E15)","v":"Not"},{"$f":"IF(ISBLANK('Match Set Up'!F15),\"\",'Match Set Up'!F15)","v":""}]
[null,{"$f":"IF(ISBLANK('Match Set Up'!A16),\"Not\",'Match Set Up'!A16)","v":"Not"},{"$f":"IF(ISBLANK('Match Set Up'!B16),\"\",'Match Set Up'!B16)","v":""},null,null,null,null,{"$f":"IF(ISBLANK('Match Set Up'!E16),\"Not\",'Match Set Up'!E16)","v":"Not"},{"$f":"IF(ISBLANK('Match Set Up'!F16),\"\",'Match Set Up'!F16)","v":""}]
[null,{"$f":"IF(ISBLANK('Match Set Up'!A17),\"Not\",'Match Set Up'!A17)","v":"Not"},{"$f":"IF(ISBLANK('Match Set Up'!B17),\"\",'Match Set Up'!B17)","v":""},null,null,null,null,{"$f":"IF(ISBLANK('Match Set Up'!E17),\"Not\",'Match Set Up'!E17)","v":"Not"},{"$f":"IF(ISBLANK('Match Set Up'!F17),\"\",'Match Set Up'!F17)","v":""}]
[null,null,0]
[null,0,0]
[null,1,1]
[null,2,2]
[null,3,3]
[null,4,4]
[null,5,5]
[null,6,6]
[null,7,7]
[null,8,8]
[null,9,9]
[null,"R",6]

{"sheet":"Match Dues","index":2,"n_rows":34,"n_cols":40,"rows_kept":34,"cut":false,"hidden":false,"merged":[[30,5,30,6],[26,5,26,6],[26,26,26,27],[31,5,31,6],[28,26,28,27],[29,26,29,27],[31,26,31,27],[30,26,30,27],[27,5,27,6],[23,26,23,27],[21,26,21,27],[22,5,22,6],[28,5,28,6],[29,5,29,6],[22,26,22,27],[23,5,23,6],[24,5,24,6],[24,26,24,27],[27,26,27,27],[25,26,25,27],[25,5,25,6],[19,26,19,27],[19,5,19,6],[20,5,20,6],[20,26,20,27],[21,5,21,6],[2,35,2,39],[2,2,2,6],[2,8,2,12],[2,14,2,18],[2,23,2,27],[2,29,2,33]]}
[]
[null,{"$f":"VisitorsName","v":0},"Visitors Match  Stats",null,null,null,null,null,null,null,null,null,null,null,null,null,null,null,null,null,null,null,{"$f":"HomeName","v":0},"Home Match  Stats"]
[null,null,"……….Game 1 ……….",null,null,null,null,"beer frm","……….Game 2 ……….",null,null,null,null,null,"……….Game 3 ……….",null,null,null,null,null,null,null,null,"……….Game 1 ……….",null,null,null,null,"beer frm","……….Game 2 ……….",null,null,null,null,null,"……….Game 3 ………."]
["AVG",null,"PTS","Opens","Beer Frm < 3","Ovr Avg","Game Under","beer frm","PTS","Opens","Beer Frm < 3","Ovr Avg","Game Under",null,"PTS","Opens","Beer Frm  < 3","Ovr Avg","Game Under","beer                     frm",null,"AVG",null,"PTS","Opens","Beer Frm < 3","Ovr Avg","Game Under","beer frm","PTS","Opens","Beer Frm < 3","Ovr Avg","Game Under","beer          frm","PTS","Opens","Beer Frm  < 3","Ovr Avg","Game Under"]
[{"$f":"'Match Set Up'!B6","v":0},{"$f":"'Match Set Up'!A6","v":0},{"$f":"'Match Total'!B2","v":0},{"$f":"IF(Scoresheet!$B$11='Match Dues'!B5,Scoresheet!$O$11,IF(Scoresheet!$B$12='Match Dues'!B5,Scoresheet!$O$12,IF(Scoresheet!$B$13='Match Dues'!B5,Scoresheet!$O$13,IF(Scoresheet!$B$14='Match Dues'!B5,Scoresheet!$O$14,IF(Scoresheet!$B$15='Match Dues'!B5,Scoresheet!$O$15,\"\")))))","v":0},{"$f":"IF(Scoresheet!$B$11='Match Dues'!B5,Scoresheet!$BE$11,IF(Scoresheet!$B$12='Match Dues'!B5,Scoresheet!$BE$12,IF(Scoresheet!$B$13='Match Dues'!B5,Scoresheet!$BE$13,IF(Scoresheet!$B$14='Match Dues'!B5,Scoresheet!$BE$14,IF(Scoresheet!$B$15='Match Dues'!B5,Scoresheet!$BE$15,\"\")))))","v":0},{"$f":"IF(C5 =\"\",\"\",C5-A5)","v":0},{"$f":"IF(C5 =\"\",\"\",IF(C5<A5,1,0))","v":0},null,{"$f":"'Match Total'!C2","v":0},{"$f":"IF(Scoresheet!$B$22='Match Dues'!B5,Scoresheet!$O$22,IF(Scoresheet!$B$23='Match Dues'!B5,Scoresheet!$O$23,IF(Scoresheet!$B$24='Match Dues'!B5,Scoresheet!$O$24,IF(Scoresheet!$B$25='Match Dues'!B5,Scoresheet!$O$25,IF(Scoresheet!$B$26='Match Dues'!B5,Scoresheet!$O$26,\"\")))))","v":0},{"$f":"IF(Scoresheet!$B$22='Match Dues'!B5,Scoresheet!$BE$22,IF(Scoresheet!$B$23='Match Dues'!B5,Scoresheet!$BE$23,IF(Scoresheet!$B$24='Match Dues'!B5,Scoresheet!$BE$24,IF(Scoresheet!$B$25='Match Dues'!B5,Scoresheet!$BE$25,IF(Scoresheet!$B$26='Match Dues'!B5,Scoresheet!$BE$26,\"\")))))","v":0},{"$f":"IF(I5=\"\",\"\",I5-A5)","v":0},{"$f":"IF(I5 =\"\",\"\",IF(I5<A5,1,0))","v":0},null,{"$f":"'Match Total'!D2","v":0},{"$f":"IF(Scoresheet!$B$33='Match Dues'!B5,Scoresheet!$O$33,IF(Scoresheet!$B$34='Match Dues'!B5,Scoresheet!$O$34,IF(Scoresheet!$B$35='Match Dues'!B5,Scoresheet!$O$35,IF(Scoresheet!$B$36='Match Dues'!B5,Scoresheet!$O$36,IF(Scoresheet!$B$37='Match Dues'!B5,Scoresheet!$O$37,\"\")))))","v":0},{"$f":"IF(Scoresheet!$B$33='Match Dues'!B5,Scoresheet!$BE$33,IF(Scoresheet!$B$34='Match Dues'!B5,Scoresheet!$BE$34,IF(Scoresheet!$B$35='Match Dues'!B5,Scoresheet!$BE$35,IF(Scoresheet!$B$36='Match Dues'!B5,Scoresheet!$BE$36,IF(Scoresheet!$B$37='Match Dues'!B5,Scoresheet!$BE$37,\"\")))))","v":0},{"$f":"IF(O5=\"\",\"\",O5-A5)","v":0},{"$f":"IF(O5 =\"\",\"\",IF(O5<A5,1,0))","v":0},{"$f":"IF(#REF!=B5,#REF!,IF(#REF!=B5,#REF!,IF(#REF!=B5,#REF!,IF(#REF!=B5,#REF!,IF(#REF!=B5,#REF!,IF(#REF!=B5,#REF!,))))))","v":{"$error":"#REF!"}},null,{"$f":"'Match Set Up'!F6","v":0},{"$f":"'Match Set Up'!E6","v":0},{"$f":"'Match Total'!B21","v":0},{"$f":"IF(Scoresheet!$V$11='Match Dues'!W5,Scoresheet!$AI$11,IF(Scoresheet!$V$12='Match Dues'!W5,Scoresheet!$AI$12,IF(Scoresheet!$V$13='Match Dues'!W5,Scoresheet!$AI$13,IF(Scoresheet!V14='Match Dues'!W5,Scoresheet!$AI$14,IF(Scoresheet!$V$15='Match Dues'!W5,Scoresheet!$AI$15,\"\")))))","v":0},{"$f":"IF(Scoresheet!$V$11='Match Dues'!W5,Scoresheet!$BO$11,IF(Scoresheet!$V$12='Match Dues'!W5,Scoresheet!$BO$12,IF(Scoresheet!$V$13='Match Dues'!W5,Scoresheet!$BO$13,IF(Scoresheet!$V$14='Match Dues'!W5,Scoresheet!$BO$14,IF(Scoresheet!$V$15='Match Dues'!W5,Scoresheet!$BO$15,\"\")))))","v":0},{"$f":"IF(X5 =\"\",\"\",X5-V5)","v":0},{"$f":"IF(X5 =\"\",\"\",IF(X5<V5,1,0))","v":0},null,{"$f":"'Match Total'!C21","v":0},{"$f":"IF(Scoresheet!$V$22='Match Dues'!W5,Scoresheet!$AI$22,IF(Scoresheet!$V$23='Match Dues'!W5,Scoresheet!$AI$23,IF(Scoresheet!$V$24='Match Dues'!W5,Scoresheet!$AI$24,IF(Scoresheet!$V$25='Match Dues'!W5,Scoresheet!$AI$25,IF(Scoresheet!$V$26='Match Dues'!W5,Scoresheet!$AI$26,\"\")))))","v":0},{"$f":"IF(Scoresheet!$V$22='Match Dues'!W5,Scoresheet!$BO$22,IF(Scoresheet!$V$23='Match Dues'!W5,Scoresheet!$BO$23,IF(Scoresheet!$V$24='Match Dues'!W5,Scoresheet!$BO$24,IF(Scoresheet!$V$25='Match Dues'!W5,Scoresheet!$BO$25,IF(Scoresheet!$V$26='Match Dues'!W5,Scoresheet!$BO$26,\"\")))))","v":0},{"$f":"IF(AD5 =\"\",\"\",AD5-V5)","v":0},{"$f":"IF(AD5 =\"\",\"\",IF(AD5<V5,1,0))","v":0},null,{"$f":"'Match Total'!D21","v":0},{"$f":"IF(Scoresheet!$V$33='Match Dues'!W5,Scoresheet!$AI$33,IF(Scoresheet!$V$34='Match Dues'!W5,Scoresheet!$AI$34,IF(Scoresheet!$V$35='Match Dues'!W5,Scoresheet!$AI$35,IF(Scoresheet!$V$36='Match Dues'!W5,Scoresheet!$AI$36,IF(Scoresheet!$V$37='Match Dues'!W5,Scoresheet!$AI$37,\"\")))))","v":0},{"$f":"IF(Scoresheet!$V$33='Match Dues'!W5,Scoresheet!$BO$33,IF(Scoresheet!$V$34='Match Dues'!W5,Scoresheet!$BO$34,IF(Scoresheet!$V$35='Match Dues'!W5,Scoresheet!$BO$35,IF(Scoresheet!V$36='Match Dues'!W5,Scoresheet!$BO$36,IF(Scoresheet!$V$37='Match Dues'!W5,Scoresheet!$BO$37,\"\")))))","v":0},{"$f":"IF(AJ5 =\"\",\"\",AJ5-V5)","v":0},{"$f":"IF(AJ5 =\"\",\"\",IF(AJ5<V5,1,0))","v":0}]
[{"$f":"'Match Set Up'!B7","v":0},{"$f":"'Match Set Up'!A7","v":0},{"$f":"'Match Total'!B3","v":0},{"$f":"IF(Scoresheet!$B$11='Match Dues'!B6,Scoresheet!$O$11,IF(Scoresheet!$B$12='Match Dues'!B6,Scoresheet!$O$12,IF(Scoresheet!$B$13='Match Dues'!B6,Scoresheet!$O$13,IF(Scoresheet!$B$14='Match Dues'!B6,Scoresheet!$O$14,IF(Scoresheet!$B$15='Match Dues'!B6,Scoresheet!$O$15,\"\")))))","v":0},{"$f":"IF(Scoresheet!$B$11='Match Dues'!B6,Scoresheet!$BE$11,IF(Scoresheet!$B$12='Match Dues'!B6,Scoresheet!$BE$12,IF(Scoresheet!$B$13='Match Dues'!B6,Scoresheet!$BE$13,IF(Scoresheet!$B$14='Match Dues'!B6,Scoresheet!$BE$14,IF(Scoresheet!$B$15='Match Dues'!B6,Scoresheet!$BE$15,\"\")))))","v":0},{"$f":"IF(C6 =\"\",\"\",C6-A6)","v":0},{"$f":"IF(C6 =\"\",\"\",IF(C6<A6,1,0))","v":0},null,{"$f":"'Match Total'!C3","v":0},{"$f":"IF(Scoresheet!$B$22='Match Dues'!B6,Scoresheet!$O$22,IF(Scoresheet!$B$23='Match Dues'!B6,Scoresheet!$O$23,IF(Scoresheet!$B$24='Match Dues'!B6,Scoresheet!$O$24,IF(Scoresheet!$B$25='Match Dues'!B6,Scoresheet!$O$25,IF(Scoresheet!$B$26='Match Dues'!B6,Scoresheet!$O$26,\"\")))))","v":0},{"$f":"IF(Scoresheet!$B$22='Match Dues'!B6,Scoresheet!$BE$22,IF(Scoresheet!$B$23='Match Dues'!B6,Scoresheet!$BE$23,IF(Scoresheet!$B$24='Match Dues'!B6,Scoresheet!$BE$24,IF(Scoresheet!$B$25='Match Dues'!B6,Scoresheet!$BE$25,IF(Scoresheet!$B$26='Match Dues'!B6,Scoresheet!$BE$26,\"\")))))","v":0},0,{"$f":"IF(I6 =\"\",\"\",IF(I6<A6,1,0))","v":0},null,{"$f":"'Match Total'!D3","v":0},{"$f":"IF(Scoresheet!$B$33='Match Dues'!B6,Scoresheet!$O$33,IF(Scoresheet!$B$34='Match Dues'!B6,Scoresheet!$O$34,IF(Scoresheet!$B$35='Match Dues'!B6,Scoresheet!$O$35,IF(Scoresheet!$B$36='Match Dues'!B6,Scoresheet!$O$36,IF(Scoresheet!$B$37='Match Dues'!B6,Scoresheet!$O$37,\"\")))))","v":0},{"$f":"IF(Scoresheet!$B$33='Match Dues'!B6,Scoresheet!$BE$33,IF(Scoresheet!$B$34='Match Dues'!B6,Scoresheet!$BE$34,IF(Scoresheet!$B$35='Match Dues'!B6,Scoresheet!$BE$35,IF(Scoresheet!$B$36='Match Dues'!B6,Scoresheet!$BE$36,IF(Scoresheet!$B$37='Match Dues'!B6,Scoresheet!$BE$37,\"\")))))","v":0},0,{"$f":"IF(O6 =\"\",\"\",IF(O6<A6,1,0))","v":0},{"$f":"IF(#REF!=B6,#REF!,IF(#REF!=B6,#REF!,IF(#REF!=B6,#REF!,IF(#REF!=B6,#REF!,IF(#REF!=B6,#REF!,IF(#REF!=B6,#REF!,))))))","v":{"$error":"#REF!"}},null,{"$f":"'Match Set Up'!F7","v":0},{"$f":"'Match Set Up'!E7","v":0},{"$f":"'Match Total'!B22","v":0},{"$f":"IF(Scoresheet!$V$11='Match Dues'!W6,Scoresheet!$AI$11,IF(Scoresheet!$V$12='Match Dues'!W6,Scoresheet!$AI$12,IF(Scoresheet!$V$13='Match Dues'!W6,Scoresheet!$AI$13,IF(Scoresheet!V15='Match Dues'!W6,Scoresheet!$AI$14,IF(Scoresheet!$V$15='Match Dues'!W6,Scoresheet!$AI$15,\"\")))))","v":0},{"$f":"IF(Scoresheet!$V$11='Match Dues'!W6,Scoresheet!$BO$11,IF(Scoresheet!$V$12='Match Dues'!W6,Scoresheet!$BO$12,IF(Scoresheet!$V$13='Match Dues'!W6,Scoresheet!$BO$13,IF(Scoresheet!$V$14='Match Dues'!W6,Scoresheet!$BO$14,IF(Scoresheet!$V$15='Match Dues'!W6,Scoresheet!$BO$15,\"\")))))","v":0},{"$f":"IF(X6 =\"\",\"\",X6-V6)","v":0},{"$f":"IF(X6 =\"\",\"\",IF(X6<V6,1,0))","v":0},null,{"$f":"'Match Total'!C22","v":0},{"$f":"IF(Scoresheet!$V$22='Match Dues'!W6,Scoresheet!$AI$22,IF(Scoresheet!$V$23='Match Dues'!W6,Scoresheet!$AI$23,IF(Scoresheet!$V$24='Match Dues'!W6,Scoresheet!$AI$24,IF(Scoresheet!$V$25='Match Dues'!W6,Scoresheet!$AI$25,IF(Scoresheet!$V$26='Match Dues'!W6,Scoresheet!$AI$26,\"\")))))","v":0},{"$f":"IF(Scoresheet!$V$22='Match Dues'!W6,Scoresheet!$BO$22,IF(Scoresheet!$V$23='Match Dues'!W6,Scoresheet!$BO$23,IF(Scoresheet!$V$24='Match Dues'!W6,Scoresheet!$BO$24,IF(Scoresheet!$V$25='Match Dues'!W6,Scoresheet!$BO$25,IF(Scoresheet!$V$26='Match Dues'!W6,Scoresheet!$BO$26,\"\")))))","v":0},0,{"$f":"IF(AD6 =\"\",\"\",IF(AD6<V6,1,0))","v":0},null,{"$f":"'Match Total'!D22","v":0},{"$f":"IF(Scoresheet!$V$33='Match Dues'!W6,Scoresheet!$AI$33,IF(Scoresheet!$V$34='Match Dues'!W6,Scoresheet!$AI$34,IF(Scoresheet!$V$35='Match Dues'!W6,Scoresheet!$AI$35,IF(Scoresheet!$V$36='Match Dues'!W6,Scoresheet!$AI$36,IF(Scoresheet!$V$37='Match Dues'!W6,Scoresheet!$AI$37,\"\")))))","v":0},{"$f":"IF(Scoresheet!$V$33='Match Dues'!W6,Scoresheet!$BO$33,IF(Scoresheet!$V$34='Match Dues'!W6,Scoresheet!$BO$34,IF(Scoresheet!$V$35='Match Dues'!W6,Scoresheet!$BO$35,IF(Scoresheet!V$36='Match Dues'!W6,Scoresheet!$BO$36,IF(Scoresheet!$V$37='Match Dues'!W6,Scoresheet!$BO$37,\"\")))))","v":0},0,{"$f":"IF(AJ6 =\"\",\"\",IF(AJ6<V6,1,0))","v":0}]
[{"$f":"'Match Set Up'!B8","v":0},{"$f":"'Match Set Up'!A8","v":0},{"$f":"'Match Total'!B4","v":0},{"$f":"IF(Scoresheet!$B$11='Match Dues'!B7,Scoresheet!$O$11,IF(Scoresheet!$B$12='Match Dues'!B7,Scoresheet!$O$12,IF(Scoresheet!$B$13='Match Dues'!B7,Scoresheet!$O$13,IF(Scoresheet!$B$14='Match Dues'!B7,Scoresheet!$O$14,IF(Scoresheet!$B$15='Match Dues'!B7,Scoresheet!$O$15,\"\")))))","v":0},{"$f":"IF(Scoresheet!$B$11='Match Dues'!B7,Scoresheet!$BE$11,IF(Scoresheet!$B$12='Match Dues'!B7,Scoresheet!$BE$12,IF(Scoresheet!$B$13='Match Dues'!B7,Scoresheet!$BE$13,IF(Scoresheet!$B$14='Match Dues'!B7,Scoresheet!$BE$14,IF(Scoresheet!$B$15='Match Dues'!B7,Scoresheet!$BE$15,\"\")))))","v":0},0,0,null,{"$f":"'Match Total'!C4","v":0},{"$f":"IF(Scoresheet!$B$22='Match Dues'!B7,Scoresheet!$O$22,IF(Scoresheet!$B$23='Match Dues'!B7,Scoresheet!$O$23,IF(Scoresheet!$B$24='Match Dues'!B7,Scoresheet!$O$24,IF(Scoresheet!$B$25='Match Dues'!B7,Scoresheet!$O$25,IF(Scoresheet!$B$26='Match Dues'!B7,Scoresheet!$O$26,\"\")))))","v":0},{"$f":"IF(Scoresheet!$B$22='Match Dues'!B7,Scoresheet!$BE$22,IF(Scoresheet!$B$23='Match Dues'!B7,Scoresheet!$BE$23,IF(Scoresheet!$B$24='Match Dues'!B7,Scoresheet!$BE$24,IF(Scoresheet!$B$25='Match Dues'!B7,Scoresheet!$BE$25,IF(Scoresheet!$B$26='Match Dues'!B7,Scoresheet!$BE$26,\"\")))))","v":0},0,0,null,{"$f":"'Match Total'!D4","v":0},{"$f":"IF(Scoresheet!$B$33='Match Dues'!B7,Scoresheet!$O$33,IF(Scoresheet!$B$34='Match Dues'!B7,Scoresheet!$O$34,IF(Scoresheet!$B$35='Match Dues'!B7,Scoresheet!$O$35,IF(Scoresheet!$B$36='Match Dues'!B7,Scoresheet!$O$36,IF(Scoresheet!$B$37='Match Dues'!B7,Scoresheet!$O$37,\"\")))))","v":0},{"$f":"IF(Scoresheet!$B$33='Match Dues'!B7,Scoresheet!$BE$33,IF(Scoresheet!$B$34='Match Dues'!B7,Scoresheet!$BE$34,IF(Scoresheet!$B$35='Match Dues'!B7,Scoresheet!$BE$35,IF(Scoresheet!$B$36='Match Dues'!B7,Scoresheet!$BE$36,IF(Scoresheet!$B$37='Match Dues'!B7,Scoresheet!$BE$37,\"\")))))","v":0},0,0,{"$f":"IF(#REF!=B7,#REF!,IF(#REF!=B7,#REF!,IF(#REF!=B7,#REF!,IF(#REF!=B7,#REF!,IF(#REF!=B7,#REF!,IF(#REF!=B7,#REF!,))))))","v":{"$error":"#REF!"}},null,{"$f":"'Match Set Up'!F8","v":0},{"$f":"'Match Set Up'!E8","v":0},{"$f":"'Match Total'!B23","v":0},{"$f":"IF(Scoresheet!$V$11='Match Dues'!W7,Scoresheet!$AI$11,IF(Scoresheet!$V$12='Match Dues'!W7,Scoresheet!$AI$12,IF(Scoresheet!$V$13='Match Dues'!W7,Scoresheet!$AI$13,IF(Scoresheet!V16='Match Dues'!W7,Scoresheet!$AI$14,IF(Scoresheet!$V$15='Match Dues'!W7,Scoresheet!$AI$15,\"\")))))","v":0},{"$f":"IF(Scoresheet!$V$11='Match Dues'!W7,Scoresheet!$BO$11,IF(Scoresheet!$V$12='Match Dues'!W7,Scoresheet!$BO$12,IF(Scoresheet!$V$13='Match Dues'!W7,Scoresheet!$BO$13,IF(Scoresheet!$V$14='Match Dues'!W7,Scoresheet!$BO$14,IF(Scoresheet!$V$15='Match Dues'!W7,Scoresheet!$BO$15,\"\")))))","v":0},0,0,null,{"$f":"'Match Total'!C23","v":0},{"$f":"IF(Scoresheet!$V$22='Match Dues'!W7,Scoresheet!$AI$22,IF(Scoresheet!$V$23='Match Dues'!W7,Scoresheet!$AI$23,IF(Scoresheet!$V$24='Match Dues'!W7,Scoresheet!$AI$24,IF(Scoresheet!$V$25='Match Dues'!W7,Scoresheet!$AI$25,IF(Scoresheet!$V$26='Match Dues'!W7,Scoresheet!$AI$26,\"\")))))","v":0},{"$f":"IF(Scoresheet!$V$22='Match Dues'!W7,Scoresheet!$BO$22,IF(Scoresheet!$V$23='Match Dues'!W7,Scoresheet!$BO$23,IF(Scoresheet!$V$24='Match Dues'!W7,Scoresheet!$BO$24,IF(Scoresheet!$V$25='Match Dues'!W7,Scoresheet!$BO$25,IF(Scoresheet!$V$26='Match Dues'!W7,Scoresheet!$BO$26,\"\")))))","v":0},0,0,null,{"$f":"'Match Total'!D23","v":0},{"$f":"IF(Scoresheet!$V$33='Match Dues'!W7,Scoresheet!$AI$33,IF(Scoresheet!$V$34='Match Dues'!W7,Scoresheet!$AI$34,IF(Scoresheet!$V$35='Match Dues'!W7,Scoresheet!$AI$35,IF(Scoresheet!$V$36='Match Dues'!W7,Scoresheet!$AI$36,IF(Scoresheet!$V$37='Match Dues'!W7,Scoresheet!$AI$37,\"\")))))","v":0},{"$f":"IF(Scoresheet!$V$33='Match Dues'!W7,Scoresheet!$BO$33,IF(Scoresheet!$V$34='Match Dues'!W7,Scoresheet!$BO$34,IF(Scoresheet!$V$35='Match Dues'!W7,Scoresheet!$BO$35,IF(Scoresheet!V$36='Match Dues'!W7,Scoresheet!$BO$36,IF(Scoresheet!$V$37='Match Dues'!W7,Scoresheet!$BO$37,\"\")))))","v":0},0,0]
[{"$f":"'Match Set Up'!B9","v":0},{"$f":"'Match Set Up'!A9","v":0},{"$f":"'Match Total'!B5","v":0},{"$f":"IF(Scoresheet!$B$11='Match Dues'!B8,Scoresheet!$O$11,IF(Scoresheet!$B$12='Match Dues'!B8,Scoresheet!$O$12,IF(Scoresheet!$B$13='Match Dues'!B8,Scoresheet!$O$13,IF(Scoresheet!$B$14='Match Dues'!B8,Scoresheet!$O$14,IF(Scoresheet!$B$15='Match Dues'!B8,Scoresheet!$O$15,\"\")))))","v":0},{"$f":"IF(Scoresheet!$B$11='Match Dues'!B8,Scoresheet!$BE$11,IF(Scoresheet!$B$12='Match Dues'!B8,Scoresheet!$BE$12,IF(Scoresheet!$B$13='Match Dues'!B8,Scoresheet!$BE$13,IF(Scoresheet!$B$14='Match Dues'!B8,Scoresheet!$BE$14,IF(Scoresheet!$B$15='Match Dues'!B8,Scoresheet!$BE$15,\"\")))))","v":0},0,0,null,{"$f":"'Match Total'!C5","v":0},{"$f":"IF(Scoresheet!$B$22='Match Dues'!B8,Scoresheet!$O$22,IF(Scoresheet!$B$23='Match Dues'!B8,Scoresheet!$O$23,IF(Scoresheet!$B$24='Match Dues'!B8,Scoresheet!$O$24,IF(Scoresheet!$B$25='Match Dues'!B8,Scoresheet!$O$25,IF(Scoresheet!$B$26='Match Dues'!B8,Scoresheet!$O$26,\"\")))))","v":0},{"$f":"IF(Scoresheet!$B$22='Match Dues'!B8,Scoresheet!$BE$22,IF(Scoresheet!$B$23='Match Dues'!B8,Scoresheet!$BE$23,IF(Scoresheet!$B$24='Match Dues'!B8,Scoresheet!$BE$24,IF(Scoresheet!$B$25='Match Dues'!B8,Scoresheet!$BE$25,IF(Scoresheet!$B$26='Match Dues'!B8,Scoresheet!$BE$26,\"\")))))","v":0},0,0,null,{"$f":"'Match Total'!D5","v":0},{"$f":"IF(Scoresheet!$B$33='Match Dues'!B8,Scoresheet!$O$33,IF(Scoresheet!$B$34='Match Dues'!B8,Scoresheet!$O$34,IF(Scoresheet!$B$35='Match Dues'!B8,Scoresheet!$O$35,IF(Scoresheet!$B$36='Match Dues'!B8,Scoresheet!$O$36,IF(Scoresheet!$B$37='Match Dues'!B8,Scoresheet!$O$37,\"\")))))","v":0},{"$f":"IF(Scoresheet!$B$33='Match Dues'!B8,Scoresheet!$BE$33,IF(Scoresheet!$B$34='Match Dues'!B8,Scoresheet!$BE$34,IF(Scoresheet!$B$35='Match Dues'!B8,Scoresheet!$BE$35,IF(Scoresheet!$B$36='Match Dues'!B8,Scoresheet!$BE$36,IF(Scoresheet!$B$37='Match Dues'!B8,Scoresheet!$BE$37,\"\")))))","v":0},0,0,{"$f":"IF(#REF!=B8,#REF!,IF(#REF!=B8,#REF!,IF(#REF!=B8,#REF!,IF(#REF!=B8,#REF!,IF(#REF!=B8,#REF!,IF(#REF!=B8,#REF!,))))))","v":{"$error":"#REF!"}},null,{"$f":"'Match Set Up'!F9","v":0},{"$f":"'Match Set Up'!E9","v":0},{"$f":"'Match Total'!B24","v":0},{"$f":"IF(Scoresheet!$V$11='Match Dues'!W8,Scoresheet!$AI$11,IF(Scoresheet!$V$12='Match Dues'!W8,Scoresheet!$AI$12,IF(Scoresheet!$V$13='Match Dues'!W8,Scoresheet!$AI$13,IF(Scoresheet!V17='Match Dues'!W8,Scoresheet!$AI$14,IF(Scoresheet!$V$15='Match Dues'!W8,Scoresheet!$AI$15,\"\")))))","v":0},{"$f":"IF(Scoresheet!$V$11='Match Dues'!W8,Scoresheet!$BO$11,IF(Scoresheet!$V$12='Match Dues'!W8,Scoresheet!$BO$12,IF(Scoresheet!$V$13='Match Dues'!W8,Scoresheet!$BO$13,IF(Scoresheet!$V$14='Match Dues'!W8,Scoresheet!$BO$14,IF(Scoresheet!$V$15='Match Dues'!W8,Scoresheet!$BO$15,\"\")))))","v":0},0,0,null,{"$f":"'Match Total'!C24","v":0},{"$f":"IF(Scoresheet!$V$22='Match Dues'!W8,Scoresheet!$AI$22,IF(Scoresheet!$V$23='Match Dues'!W8,Scoresheet!$AI$23,IF(Scoresheet!$V$24='Match Dues'!W8,Scoresheet!$AI$24,IF(Scoresheet!$V$25='Match Dues'!W8,Scoresheet!$AI$25,IF(Scoresheet!$V$26='Match Dues'!W8,Scoresheet!$AI$26,\"\")))))","v":0},{"$f":"IF(Scoresheet!$V$22='Match Dues'!W8,Scoresheet!$BO$22,IF(Scoresheet!$V$23='Match Dues'!W8,Scoresheet!$BO$23,IF(Scoresheet!$V$24='Match Dues'!W8,Scoresheet!$BO$24,IF(Scoresheet!$V$25='Match Dues'!W8,Scoresheet!$BO$25,IF(Scoresheet!$V$26='Match Dues'!W8,Scoresheet!$BO$26,\"\")))))","v":0},0,0,null,{"$f":"'Match Total'!D24","v":0},{"$f":"IF(Scoresheet!$V$33='Match Dues'!W8,Scoresheet!$AI$33,IF(Scoresheet!$V$34='Match Dues'!W8,Scoresheet!$AI$34,IF(Scoresheet!$V$35='Match Dues'!W8,Scoresheet!$AI$35,IF(Scoresheet!$V$36='Match Dues'!W8,Scoresheet!$AI$36,IF(Scoresheet!$V$37='Match Dues'!W8,Scoresheet!$AI$37,\"\")))))","v":0},{"$f":"IF(Scoresheet!$V$33='Match Dues'!W8,Scoresheet!$BO$33,IF(Scoresheet!$V$34='Match Dues'!W8,Scoresheet!$BO$34,IF(Scoresheet!$V$35='Match Dues'!W8,Scoresheet!$BO$35,IF(Scoresheet!V$36='Match Dues'!W8,Scoresheet!$BO$36,IF(Scoresheet!$V$37='Match Dues'!W8,Scoresheet!$BO$37,\"\")))))","v":0},0,0]
[{"$f":"'Match Set Up'!B10","v":0},{"$f":"'Match Set Up'!A10","v":0},{"$f":"'Match Total'!B6","v":0},{"$f":"IF(Scoresheet!$B$11='Match Dues'!B9,Scoresheet!$O$11,IF(Scoresheet!$B$12='Match Dues'!B9,Scoresheet!$O$12,IF(Scoresheet!$B$13='Match Dues'!B9,Scoresheet!$O$13,IF(Scoresheet!$B$14='Match Dues'!B9,Scoresheet!$O$14,IF(Scoresheet!$B$15='Match Dues'!B9,Scoresheet!$O$15,\"\")))))","v":0},{"$f":"IF(Scoresheet!$B$11='Match Dues'!B9,Scoresheet!$BE$11,IF(Scoresheet!$B$12='Match Dues'!B9,Scoresheet!$BE$12,IF(Scoresheet!$B$13='Match Dues'!B9,Scoresheet!$BE$13,IF(Scoresheet!$B$14='Match Dues'!B9,Scoresheet!$BE$14,IF(Scoresheet!$B$15='Match Dues'!B9,Scoresheet!$BE$15,\"\")))))","v":0},0,0,null,{"$f":"'Match Total'!C6","v":0},{"$f":"IF(Scoresheet!$B$22='Match Dues'!B9,Scoresheet!$O$22,IF(Scoresheet!$B$23='Match Dues'!B9,Scoresheet!$O$23,IF(Scoresheet!$B$24='Match Dues'!B9,Scoresheet!$O$24,IF(Scoresheet!$B$25='Match Dues'!B9,Scoresheet!$O$25,IF(Scoresheet!$B$26='Match Dues'!B9,Scoresheet!$O$26,\"\")))))","v":0},{"$f":"IF(Scoresheet!$B$22='Match Dues'!B9,Scoresheet!$BE$22,IF(Scoresheet!$B$23='Match Dues'!B9,Scoresheet!$BE$23,IF(Scoresheet!$B$24='Match Dues'!B9,Scoresheet!$BE$24,IF(Scoresheet!$B$25='Match Dues'!B9,Scoresheet!$BE$25,IF(Scoresheet!$B$26='Match Dues'!B9,Scoresheet!$BE$26,\"\")))))","v":0},0,0,null,{"$f":"'Match Total'!D6","v":0},{"$f":"IF(Scoresheet!$B$33='Match Dues'!B9,Scoresheet!$O$33,IF(Scoresheet!$B$34='Match Dues'!B9,Scoresheet!$O$34,IF(Scoresheet!$B$35='Match Dues'!B9,Scoresheet!$O$35,IF(Scoresheet!$B$36='Match Dues'!B9,Scoresheet!$O$36,IF(Scoresheet!$B$37='Match Dues'!B9,Scoresheet!$O$37,\"\")))))","v":0},{"$f":"IF(Scoresheet!$B$33='Match Dues'!B9,Scoresheet!$BE$33,IF(Scoresheet!$B$34='Match Dues'!B9,Scoresheet!$BE$34,IF(Scoresheet!$B$35='Match Dues'!B9,Scoresheet!$BE$35,IF(Scoresheet!$B$36='Match Dues'!B9,Scoresheet!$BE$36,IF(Scoresheet!$B$37='Match Dues'!B9,Scoresheet!$BE$37,\"\")))))","v":0},0,0,{"$f":"IF(#REF!=B9,#REF!,IF(#REF!=B9,#REF!,IF(#REF!=B9,#REF!,IF(#REF!=B9,#REF!,IF(#REF!=B9,#REF!,IF(#REF!=B9,#REF!,))))))","v":{"$error":"#REF!"}},null,{"$f":"'Match Set Up'!F10","v":0},{"$f":"'Match Set Up'!E10","v":0},{"$f":"'Match Total'!B25","v":0},{"$f":"IF(Scoresheet!$V$11='Match Dues'!W9,Scoresheet!$AI$11,IF(Scoresheet!$V$12='Match Dues'!W9,Scoresheet!$AI$12,IF(Scoresheet!$V$13='Match Dues'!W9,Scoresheet!$AI$13,IF(Scoresheet!V18='Match Dues'!W9,Scoresheet!$AI$14,IF(Scoresheet!$V$15='Match Dues'!W9,Scoresheet!$AI$15,\"\")))))","v":0},{"$f":"IF(Scoresheet!$V$11='Match Dues'!W9,Scoresheet!$BO$11,IF(Scoresheet!$V$12='Match Dues'!W9,Scoresheet!$BO$12,IF(Scoresheet!$V$13='Match Dues'!W9,Scoresheet!$BO$13,IF(Scoresheet!$V$14='Match Dues'!W9,Scoresheet!$BO$14,IF(Scoresheet!$V$15='Match Dues'!W9,Scoresheet!$BO$15,\"\")))))","v":0},0,0,null,{"$f":"'Match Total'!C25","v":0},{"$f":"IF(Scoresheet!$V$22='Match Dues'!W9,Scoresheet!$AI$22,IF(Scoresheet!$V$23='Match Dues'!W9,Scoresheet!$AI$23,IF(Scoresheet!$V$24='Match Dues'!W9,Scoresheet!$AI$24,IF(Scoresheet!$V$25='Match Dues'!W9,Scoresheet!$AI$25,IF(Scoresheet!$V$26='Match Dues'!W9,Scoresheet!$AI$26,\"\")))))","v":0},{"$f":"IF(Scoresheet!$V$22='Match Dues'!W9,Scoresheet!$BO$22,IF(Scoresheet!$V$23='Match Dues'!W9,Scoresheet!$BO$23,IF(Scoresheet!$V$24='Match Dues'!W9,Scoresheet!$BO$24,IF(Scoresheet!$V$25='Match Dues'!W9,Scoresheet!$BO$25,IF(Scoresheet!$V$26='Match Dues'!W9,Scoresheet!$BO$26,\"\")))))","v":0},0,0,null,{"$f":"'Match Total'!D25","v":0},{"$f":"IF(Scoresheet!$V$33='Match Dues'!W9,Scoresheet!$AI$33,IF(Scoresheet!$V$34='Match Dues'!W9,Scoresheet!$AI$34,IF(Scoresheet!$V$35='Match Dues'!W9,Scoresheet!$AI$35,IF(Scoresheet!$V$36='Match Dues'!W9,Scoresheet!$AI$36,IF(Scoresheet!$V$37='Match Dues'!W9,Scoresheet!$AI$37,\"\")))))","v":0},{"$f":"IF(Scoresheet!$V$33='Match Dues'!W9,Scoresheet!$BO$33,IF(Scoresheet!$V$34='Match Dues'!W9,Scoresheet!$BO$34,IF(Scoresheet!$V$35='Match Dues'!W9,Scoresheet!$BO$35,IF(Scoresheet!V$36='Match Dues'!W9,Scoresheet!$BO$36,IF(Scoresheet!$V$37='Match Dues'!W9,Scoresheet!$BO$37,\"\")))))","v":0},0,0]
[{"$f":"'Match Set Up'!B11","v":0},{"$f":"'Match Set Up'!A11","v":0},{"$f":"'Match Total'!B7","v":0},{"$f":"IF(Scoresheet!$B$11='Match Dues'!B10,Scoresheet!$O$11,IF(Scoresheet!$B$12='Match Dues'!B10,Scoresheet!$O$12,IF(Scoresheet!$B$13='Match Dues'!B10,Scoresheet!$O$13,IF(Scoresheet!$B$14='Match Dues'!B10,Scoresheet!$O$14,IF(Scoresheet!$B$15='Match Dues'!B10,Scoresheet!$O$15,\"\")))))","v":0},{"$f":"IF(Scoresheet!$B$11='Match Dues'!B10,Scoresheet!$BE$11,IF(Scoresheet!$B$12='Match Dues'!B10,Scoresheet!$BE$12,IF(Scoresheet!$B$13='Match Dues'!B10,Scoresheet!$BE$13,IF(Scoresheet!$B$14='Match Dues'!B10,Scoresheet!$BE$14,IF(Scoresheet!$B$15='Match Dues'!B10,Scoresheet!$BE$15,\"\")))))","v":0},0,0,null,{"$f":"'Match Total'!C7","v":0},{"$f":"IF(Scoresheet!$B$22='Match Dues'!B10,Scoresheet!$O$22,IF(Scoresheet!$B$23='Match Dues'!B10,Scoresheet!$O$23,IF(Scoresheet!$B$24='Match Dues'!B10,Scoresheet!$O$24,IF(Scoresheet!$B$25='Match Dues'!B10,Scoresheet!$O$25,IF(Scoresheet!$B$26='Match Dues'!B10,Scoresheet!$O$26,\"\")))))","v":0},{"$f":"IF(Scoresheet!$B$22='Match Dues'!B10,Scoresheet!$BE$22,IF(Scoresheet!$B$23='Match Dues'!B10,Scoresheet!$BE$23,IF(Scoresheet!$B$24='Match Dues'!B10,Scoresheet!$BE$24,IF(Scoresheet!$B$25='Match Dues'!B10,Scoresheet!$BE$25,IF(Scoresheet!$B$26='Match Dues'!B10,Scoresheet!$BE$26,\"\")))))","v":0},0,0,null,{"$f":"'Match Total'!D7","v":0},{"$f":"IF(Scoresheet!$B$33='Match Dues'!B10,Scoresheet!$O$33,IF(Scoresheet!$B$34='Match Dues'!B10,Scoresheet!$O$34,IF(Scoresheet!$B$35='Match Dues'!B10,Scoresheet!$O$35,IF(Scoresheet!$B$36='Match Dues'!B10,Scoresheet!$O$36,IF(Scoresheet!$B$37='Match Dues'!B10,Scoresheet!$O$37,\"\")))))","v":0},{"$f":"IF(Scoresheet!$B$33='Match Dues'!B10,Scoresheet!$BE$33,IF(Scoresheet!$B$34='Match Dues'!B10,Scoresheet!$BE$34,IF(Scoresheet!$B$35='Match Dues'!B10,Scoresheet!$BE$35,IF(Scoresheet!$B$36='Match Dues'!B10,Scoresheet!$BE$36,IF(Scoresheet!$B$37='Match Dues'!B10,Scoresheet!$BE$37,\"\")))))","v":0},0,0,{"$f":"IF(#REF!=B10,#REF!,IF(#REF!=B10,#REF!,IF(#REF!=B10,#REF!,IF(#REF!=B10,#REF!,IF(#REF!=B10,#REF!,IF(#REF!=B10,#REF!,))))))","v":{"$error":"#REF!"}},null,{"$f":"'Match Set Up'!F11","v":0},{"$f":"'Match Set Up'!E11","v":0},{"$f":"'Match Total'!B26","v":0},{"$f":"IF(Scoresheet!$V$11='Match Dues'!W10,Scoresheet!$AI$11,IF(Scoresheet!$V$12='Match Dues'!W10,Scoresheet!$AI$12,IF(Scoresheet!$V$13='Match Dues'!W10,Scoresheet!$AI$13,IF(Scoresheet!V19='Match Dues'!W10,Scoresheet!$AI$14,IF(Scoresheet!$V$15='Match Dues'!W10,Scoresheet!$AI$15,\"\")))))","v":0},{"$f":"IF(Scoresheet!$V$11='Match Dues'!W10,Scoresheet!$BO$11,IF(Scoresheet!$V$12='Match Dues'!W10,Scoresheet!$BO$12,IF(Scoresheet!$V$13='Match Dues'!W10,Scoresheet!$BO$13,IF(Scoresheet!$V$14='Match Dues'!W10,Scoresheet!$BO$14,IF(Scoresheet!$V$15='Match Dues'!W10,Scoresheet!$BO$15,\"\")))))","v":0},0,0,null,{"$f":"'Match Total'!C26","v":0},{"$f":"IF(Scoresheet!$V$22='Match Dues'!W10,Scoresheet!$AI$22,IF(Scoresheet!$V$23='Match Dues'!W10,Scoresheet!$AI$23,IF(Scoresheet!$V$24='Match Dues'!W10,Scoresheet!$AI$24,IF(Scoresheet!$V$25='Match Dues'!W10,Scoresheet!$AI$25,IF(Scoresheet!$V$26='Match Dues'!W10,Scoresheet!$AI$26,\"\")))))","v":0},{"$f":"IF(Scoresheet!$V$22='Match Dues'!W10,Scoresheet!$BO$22,IF(Scoresheet!$V$23='Match Dues'!W10,Scoresheet!$BO$23,IF(Scoresheet!$V$24='Match Dues'!W10,Scoresheet!$BO$24,IF(Scoresheet!$V$25='Match Dues'!W10,Scoresheet!$BO$25,IF(Scoresheet!$V$26='Match Dues'!W10,Scoresheet!$BO$26,\"\")))))","v":0},0,0,null,{"$f":"'Match Total'!D26","v":0},{"$f":"IF(Scoresheet!$V$33='Match Dues'!W10,Scoresheet!$AI$33,IF(Scoresheet!$V$34='Match Dues'!W10,Scoresheet!$AI$34,IF(Scoresheet!$V$35='Match Dues'!W10,Scoresheet!$AI$35,IF(Scoresheet!$V$36='Match Dues'!W10,Scoresheet!$AI$36,IF(Scoresheet!$V$37='Match Dues'!W10,Scoresheet!$AI$37,\"\")))))","v":0},{"$f":"IF(Scoresheet!$V$33='Match Dues'!W10,Scoresheet!$BO$33,IF(Scoresheet!$V$34='Match Dues'!W10,Scoresheet!$BO$34,IF(Scoresheet!$V$35='Match Dues'!W10,Scoresheet!$BO$35,IF(Scoresheet!V$36='Match Dues'!W10,Scoresheet!$BO$36,IF(Scoresheet!$V$37='Match Dues'!W10,Scoresheet!$BO$37,\"\")))))","v":0},0,0]
[{"$f":"'Match Set Up'!B12","v":0},{"$f":"'Match Set Up'!A12","v":0},{"$f":"'Match Total'!B8","v":0},{"$f":"IF(Scoresheet!$B$11='Match Dues'!B11,Scoresheet!$O$11,IF(Scoresheet!$B$12='Match Dues'!B11,Scoresheet!$O$12,IF(Scoresheet!$B$13='Match Dues'!B11,Scoresheet!$O$13,IF(Scoresheet!$B$14='Match Dues'!B11,Scoresheet!$O$14,IF(Scoresheet!$B$15='Match Dues'!B11,Scoresheet!$O$15,\"\")))))","v":0},{"$f":"IF(Scoresheet!$B$11='Match Dues'!B11,Scoresheet!$BE$11,IF(Scoresheet!$B$12='Match Dues'!B11,Scoresheet!$BE$12,IF(Scoresheet!$B$13='Match Dues'!B11,Scoresheet!$BE$13,IF(Scoresheet!$B$14='Match Dues'!B11,Scoresheet!$BE$14,IF(Scoresheet!$B$15='Match Dues'!B11,Scoresheet!$BE$15,\"\")))))","v":0},0,0,null,{"$f":"'Match Total'!C8","v":0},{"$f":"IF(Scoresheet!$B$22='Match Dues'!B11,Scoresheet!$O$22,IF(Scoresheet!$B$23='Match Dues'!B11,Scoresheet!$O$23,IF(Scoresheet!$B$24='Match Dues'!B11,Scoresheet!$O$24,IF(Scoresheet!$B$25='Match Dues'!B11,Scoresheet!$O$25,IF(Scoresheet!$B$26='Match Dues'!B11,Scoresheet!$O$26,\"\")))))","v":0},{"$f":"IF(Scoresheet!$B$22='Match Dues'!B11,Scoresheet!$BE$22,IF(Scoresheet!$B$23='Match Dues'!B11,Scoresheet!$BE$23,IF(Scoresheet!$B$24='Match Dues'!B11,Scoresheet!$BE$24,IF(Scoresheet!$B$25='Match Dues'!B11,Scoresheet!$BE$25,IF(Scoresheet!$B$26='Match Dues'!B11,Scoresheet!$BE$26,\"\")))))","v":0},0,0,null,{"$f":"'Match Total'!D8","v":0},{"$f":"IF(Scoresheet!$B$33='Match Dues'!B11,Scoresheet!$O$33,IF(Scoresheet!$B$34='Match Dues'!B11,Scoresheet!$O$34,IF(Scoresheet!$B$35='Match Dues'!B11,Scoresheet!$O$35,IF(Scoresheet!$B$36='Match Dues'!B11,Scoresheet!$O$36,IF(Scoresheet!$B$37='Match Dues'!B11,Scoresheet!$O$37,\"\")))))","v":0},{"$f":"IF(Scoresheet!$B$33='Match Dues'!B11,Scoresheet!$BE$33,IF(Scoresheet!$B$34='Match Dues'!B11,Scoresheet!$BE$34,IF(Scoresheet!$B$35='Match Dues'!B11,Scoresheet!$BE$35,IF(Scoresheet!$B$36='Match Dues'!B11,Scoresheet!$BE$36,IF(Scoresheet!$B$37='Match Dues'!B11,Scoresheet!$BE$37,\"\")))))","v":0},0,0,{"$f":"IF(#REF!=B11,#REF!,IF(#REF!=B11,#REF!,IF(#REF!=B11,#REF!,IF(#REF!=B11,#REF!,IF(#REF!=B11,#REF!,IF(#REF!=B11,#REF!,))))))","v":{"$error":"#REF!"}},null,{"$f":"'Match Set Up'!F12","v":0},{"$f":"'Match Set Up'!E12","v":0},{"$f":"'Match Total'!B27","v":0},{"$f":"IF(Scoresheet!$V$11='Match Dues'!W11,Scoresheet!$AI$11,IF(Scoresheet!$V$12='Match Dues'!W11,Scoresheet!$AI$12,IF(Scoresheet!$V$13='Match Dues'!W11,Scoresheet!$AI$13,IF(Scoresheet!V20='Match Dues'!W11,Scoresheet!$AI$14,IF(Scoresheet!$V$15='Match Dues'!W11,Scoresheet!$AI$15,\"\")))))","v":0},{"$f":"IF(Scoresheet!$V$11='Match Dues'!W11,Scoresheet!$BO$11,IF(Scoresheet!$V$12='Match Dues'!W11,Scoresheet!$BO$12,IF(Scoresheet!$V$13='Match Dues'!W11,Scoresheet!$BO$13,IF(Scoresheet!$V$14='Match Dues'!W11,Scoresheet!$BO$14,IF(Scoresheet!$V$15='Match Dues'!W11,Scoresheet!$BO$15,\"\")))))","v":0},0,0,null,{"$f":"'Match Total'!C27","v":0},{"$f":"IF(Scoresheet!$V$22='Match Dues'!W11,Scoresheet!$AI$22,IF(Scoresheet!$V$23='Match Dues'!W11,Scoresheet!$AI$23,IF(Scoresheet!$V$24='Match Dues'!W11,Scoresheet!$AI$24,IF(Scoresheet!$V$25='Match Dues'!W11,Scoresheet!$AI$25,IF(Scoresheet!$V$26='Match Dues'!W11,Scoresheet!$AI$26,\"\")))))","v":0},{"$f":"IF(Scoresheet!$V$22='Match Dues'!W11,Scoresheet!$BO$22,IF(Scoresheet!$V$23='Match Dues'!W11,Scoresheet!$BO$23,IF(Scoresheet!$V$24='Match Dues'!W11,Scoresheet!$BO$24,IF(Scoresheet!$V$25='Match Dues'!W11,Scoresheet!$BO$25,IF(Scoresheet!$V$26='Match Dues'!W11,Scoresheet!$BO$26,\"\")))))","v":0},0,0,null,{"$f":"'Match Total'!D27","v":0},{"$f":"IF(Scoresheet!$V$33='Match Dues'!W11,Scoresheet!$AI$33,IF(Scoresheet!$V$34='Match Dues'!W11,Scoresheet!$AI$34,IF(Scoresheet!$V$35='Match Dues'!W11,Scoresheet!$AI$35,IF(Scoresheet!$V$36='Match Dues'!W11,Scoresheet!$AI$36,IF(Scoresheet!$V$37='Match Dues'!W11,Scoresheet!$AI$37,\"\")))))","v":0},{"$f":"IF(Scoresheet!$V$33='Match Dues'!W11,Scoresheet!$BO$33,IF(Scoresheet!$V$34='Match Dues'!W11,Scoresheet!$BO$34,IF(Scoresheet!$V$35='Match Dues'!W11,Scoresheet!$BO$35,IF(Scoresheet!V$36='Match Dues'!W11,Scoresheet!$BO$36,IF(Scoresheet!$V$37='Match Dues'!W11,Scoresheet!$BO$37,\"\")))))","v":0},0,0]
[{"$f":"'Match Set Up'!B13","v":0},{"$f":"'Match Set Up'!A13","v":0},{"$f":"'Match Total'!B9","v":0},{"$f":"IF(Scoresheet!$B$11='Match Dues'!B12,Scoresheet!$O$11,IF(Scoresheet!$B$12='Match Dues'!B12,Scoresheet!$O$12,IF(Scoresheet!$B$13='Match Dues'!B12,Scoresheet!$O$13,IF(Scoresheet!$B$14='Match Dues'!B12,Scoresheet!$O$14,IF(Scoresheet!$B$15='Match Dues'!B12,Scoresheet!$O$15,\"\")))))","v":0},{"$f":"IF(Scoresheet!$B$11='Match Dues'!B12,Scoresheet!$BE$11,IF(Scoresheet!$B$12='Match Dues'!B12,Scoresheet!$BE$12,IF(Scoresheet!$B$13='Match Dues'!B12,Scoresheet!$BE$13,IF(Scoresheet!$B$14='Match Dues'!B12,Scoresheet!$BE$14,IF(Scoresheet!$B$15='Match Dues'!B12,Scoresheet!$BE$15,\"\")))))","v":0},0,0,null,{"$f":"'Match Total'!C9","v":0},{"$f":"IF(Scoresheet!$B$22='Match Dues'!B12,Scoresheet!$O$22,IF(Scoresheet!$B$23='Match Dues'!B12,Scoresheet!$O$23,IF(Scoresheet!$B$24='Match Dues'!B12,Scoresheet!$O$24,IF(Scoresheet!$B$25='Match Dues'!B12,Scoresheet!$O$25,IF(Scoresheet!$B$26='Match Dues'!B12,Scoresheet!$O$26,\"\")))))","v":0},{"$f":"IF(Scoresheet!$B$22='Match Dues'!B12,Scoresheet!$BE$22,IF(Scoresheet!$B$23='Match Dues'!B12,Scoresheet!$BE$23,IF(Scoresheet!$B$24='Match Dues'!B12,Scoresheet!$BE$24,IF(Scoresheet!$B$25='Match Dues'!B12,Scoresheet!$BE$25,IF(Scoresheet!$B$26='Match Dues'!B12,Scoresheet!$BE$26,\"\")))))","v":0},0,0,null,{"$f":"'Match Total'!D9","v":0},{"$f":"IF(Scoresheet!$B$33='Match Dues'!B12,Scoresheet!$O$33,IF(Scoresheet!$B$34='Match Dues'!B12,Scoresheet!$O$34,IF(Scoresheet!$B$35='Match Dues'!B12,Scoresheet!$O$35,IF(Scoresheet!$B$36='Match Dues'!B12,Scoresheet!$O$36,IF(Scoresheet!$B$37='Match Dues'!B12,Scoresheet!$O$37,\"\")))))","v":0},{"$f":"IF(Scoresheet!$B$33='Match Dues'!B12,Scoresheet!$BE$33,IF(Scoresheet!$B$34='Match Dues'!B12,Scoresheet!$BE$34,IF(Scoresheet!$B$35='Match Dues'!B12,Scoresheet!$BE$35,IF(Scoresheet!$B$36='Match Dues'!B12,Scoresheet!$BE$36,IF(Scoresheet!$B$37='Match Dues'!B12,Scoresheet!$BE$37,\"\")))))","v":0},0,0,{"$f":"IF(#REF!=B12,#REF!,IF(#REF!=B12,#REF!,IF(#REF!=B12,#REF!,IF(#REF!=B12,#REF!,IF(#REF!=B12,#REF!,IF(#REF!=B12,#REF!,))))))","v":{"$error":"#REF!"}},null,{"$f":"'Match Set Up'!F13","v":0},{"$f":"'Match Set Up'!E13","v":0},{"$f":"'Match Total'!B28","v":0},{"$f":"IF(Scoresheet!$V$11='Match Dues'!W12,Scoresheet!$AI$11,IF(Scoresheet!$V$12='Match Dues'!W12,Scoresheet!$AI$12,IF(Scoresheet!$V$13='Match Dues'!W12,Scoresheet!$AI$13,IF(Scoresheet!V21='Match Dues'!W12,Scoresheet!$AI$14,IF(Scoresheet!$V$15='Match Dues'!W12,Scoresheet!$AI$15,\"\")))))","v":0},{"$f":"IF(Scoresheet!$V$11='Match Dues'!W12,Scoresheet!$BO$11,IF(Scoresheet!$V$12='Match Dues'!W12,Scoresheet!$BO$12,IF(Scoresheet!$V$13='Match Dues'!W12,Scoresheet!$BO$13,IF(Scoresheet!$V$14='Match Dues'!W12,Scoresheet!$BO$14,IF(Scoresheet!$V$15='Match Dues'!W12,Scoresheet!$BO$15,\"\")))))","v":0},0,0,null,{"$f":"'Match Total'!C28","v":0},{"$f":"IF(Scoresheet!$V$22='Match Dues'!W12,Scoresheet!$AI$22,IF(Scoresheet!$V$23='Match Dues'!W12,Scoresheet!$AI$23,IF(Scoresheet!$V$24='Match Dues'!W12,Scoresheet!$AI$24,IF(Scoresheet!$V$25='Match Dues'!W12,Scoresheet!$AI$25,IF(Scoresheet!$V$26='Match Dues'!W12,Scoresheet!$AI$26,\"\")))))","v":0},{"$f":"IF(Scoresheet!$V$22='Match Dues'!W12,Scoresheet!$BO$22,IF(Scoresheet!$V$23='Match Dues'!W12,Scoresheet!$BO$23,IF(Scoresheet!$V$24='Match Dues'!W12,Scoresheet!$BO$24,IF(Scoresheet!$V$25='Match Dues'!W12,Scoresheet!$BO$25,IF(Scoresheet!$V$26='Match Dues'!W12,Scoresheet!$BO$26,\"\")))))","v":0},0,0,null,{"$f":"'Match Total'!D28","v":0},{"$f":"IF(Scoresheet!$V$33='Match Dues'!W12,Scoresheet!$AI$33,IF(Scoresheet!$V$34='Match Dues'!W12,Scoresheet!$AI$34,IF(Scoresheet!$V$35='Match Dues'!W12,Scoresheet!$AI$35,IF(Scoresheet!$V$36='Match Dues'!W12,Scoresheet!$AI$36,IF(Scoresheet!$V$37='Match Dues'!W12,Scoresheet!$AI$37,\"\")))))","v":0},{"$f":"IF(Scoresheet!$V$33='Match Dues'!W12,Scoresheet!$BO$33,IF(Scoresheet!$V$34='Match Dues'!W12,Scoresheet!$BO$34,IF(Scoresheet!$V$35='Match Dues'!W12,Scoresheet!$BO$35,IF(Scoresheet!V$36='Match Dues'!W12,Scoresheet!$BO$36,IF(Scoresheet!$V$37='Match Dues'!W12,Scoresheet!$BO$37,\"\")))))","v":0},0,0]
[{"$f":"'Match Set Up'!B14","v":0},{"$f":"'Match Set Up'!A14","v":0},{"$f":"'Match Total'!B10","v":0},{"$f":"IF(Scoresheet!$B$11='Match Dues'!B13,Scoresheet!$O$11,IF(Scoresheet!$B$12='Match Dues'!B13,Scoresheet!$O$12,IF(Scoresheet!$B$13='Match Dues'!B13,Scoresheet!$O$13,IF(Scoresheet!$B$14='Match Dues'!B13,Scoresheet!$O$14,IF(Scoresheet!$B$15='Match Dues'!B13,Scoresheet!$O$15,\"\")))))","v":0},{"$f":"IF(Scoresheet!$B$11='Match Dues'!B13,Scoresheet!$BE$11,IF(Scoresheet!$B$12='Match Dues'!B13,Scoresheet!$BE$12,IF(Scoresheet!$B$13='Match Dues'!B13,Scoresheet!$BE$13,IF(Scoresheet!$B$14='Match Dues'!B13,Scoresheet!$BE$14,IF(Scoresheet!$B$15='Match Dues'!B13,Scoresheet!$BE$15,\"\")))))","v":0},0,0,null,{"$f":"'Match Total'!C10","v":0},{"$f":"IF(Scoresheet!$B$22='Match Dues'!B13,Scoresheet!$O$22,IF(Scoresheet!$B$23='Match Dues'!B13,Scoresheet!$O$23,IF(Scoresheet!$B$24='Match Dues'!B13,Scoresheet!$O$24,IF(Scoresheet!$B$25='Match Dues'!B13,Scoresheet!$O$25,IF(Scoresheet!$B$26='Match Dues'!B13,Scoresheet!$O$26,\"\")))))","v":0},{"$f":"IF(Scoresheet!$B$22='Match Dues'!B13,Scoresheet!$BE$22,IF(Scoresheet!$B$23='Match Dues'!B13,Scoresheet!$BE$23,IF(Scoresheet!$B$24='Match Dues'!B13,Scoresheet!$BE$24,IF(Scoresheet!$B$25='Match Dues'!B13,Scoresheet!$BE$25,IF(Scoresheet!$B$26='Match Dues'!B13,Scoresheet!$BE$26,\"\")))))","v":0},0,0,null,{"$f":"'Match Total'!D10","v":0},{"$f":"IF(Scoresheet!$B$33='Match Dues'!B13,Scoresheet!$O$33,IF(Scoresheet!$B$34='Match Dues'!B13,Scoresheet!$O$34,IF(Scoresheet!$B$35='Match Dues'!B13,Scoresheet!$O$35,IF(Scoresheet!$B$36='Match Dues'!B13,Scoresheet!$O$36,IF(Scoresheet!$B$37='Match Dues'!B13,Scoresheet!$O$37,\"\")))))","v":0},{"$f":"IF(Scoresheet!$B$33='Match Dues'!B13,Scoresheet!$BE$33,IF(Scoresheet!$B$34='Match Dues'!B13,Scoresheet!$BE$34,IF(Scoresheet!$B$35='Match Dues'!B13,Scoresheet!$BE$35,IF(Scoresheet!$B$36='Match Dues'!B13,Scoresheet!$BE$36,IF(Scoresheet!$B$37='Match Dues'!B13,Scoresheet!$BE$37,\"\")))))","v":0},0,0,null,null,{"$f":"'Match Set Up'!F14","v":0},{"$f":"'Match Set Up'!E14","v":0},{"$f":"'Match Total'!B29","v":0},{"$f":"IF(Scoresheet!$V$11='Match Dues'!W13,Scoresheet!$AI$11,IF(Scoresheet!$V$12='Match Dues'!W13,Scoresheet!$AI$12,IF(Scoresheet!$V$13='Match Dues'!W13,Scoresheet!$AI$13,IF(Scoresheet!V22='Match Dues'!W13,Scoresheet!$AI$14,IF(Scoresheet!$V$15='Match Dues'!W13,Scoresheet!$AI$15,\"\")))))","v":0},{"$f":"IF(Scoresheet!$V$11='Match Dues'!W13,Scoresheet!$BO$11,IF(Scoresheet!$V$12='Match Dues'!W13,Scoresheet!$BO$12,IF(Scoresheet!$V$13='Match Dues'!W13,Scoresheet!$BO$13,IF(Scoresheet!$V$14='Match Dues'!W13,Scoresheet!$BO$14,IF(Scoresheet!$V$15='Match Dues'!W13,Scoresheet!$BO$15,\"\")))))","v":0},0,0,null,{"$f":"'Match Total'!C29","v":0},{"$f":"IF(Scoresheet!$V$22='Match Dues'!W13,Scoresheet!$AI$22,IF(Scoresheet!$V$23='Match Dues'!W13,Scoresheet!$AI$23,IF(Scoresheet!$V$24='Match Dues'!W13,Scoresheet!$AI$24,IF(Scoresheet!$V$25='Match Dues'!W13,Scoresheet!$AI$25,IF(Scoresheet!$V$26='Match Dues'!W13,Scoresheet!$AI$26,\"\")))))","v":0},{"$f":"IF(Scoresheet!$V$22='Match Dues'!W13,Scoresheet!$BO$22,IF(Scoresheet!$V$23='Match Dues'!W13,Scoresheet!$BO$23,IF(Scoresheet!$V$24='Match Dues'!W13,Scoresheet!$BO$24,IF(Scoresheet!$V$25='Match Dues'!W13,Scoresheet!$BO$25,IF(Scoresheet!$V$26='Match Dues'!W13,Scoresheet!$BO$26,\"\")))))","v":0},0,0,null,{"$f":"'Match Total'!D29","v":0},{"$f":"IF(Scoresheet!$V$33='Match Dues'!W13,Scoresheet!$AI$33,IF(Scoresheet!$V$34='Match Dues'!W13,Scoresheet!$AI$34,IF(Scoresheet!$V$35='Match Dues'!W13,Scoresheet!$AI$35,IF(Scoresheet!$V$36='Match Dues'!W13,Scoresheet!$AI$36,IF(Scoresheet!$V$37='Match Dues'!W13,Scoresheet!$AI$37,\"\")))))","v":0},{"$f":"IF(Scoresheet!$V$33='Match Dues'!W13,Scoresheet!$BO$33,IF(Scoresheet!$V$34='Match Dues'!W13,Scoresheet!$BO$34,IF(Scoresheet!$V$35='Match Dues'!W13,Scoresheet!$BO$35,IF(Scoresheet!V$36='Match Dues'!W13,Scoresheet!$BO$36,IF(Scoresheet!$V$37='Match Dues'!W13,Scoresheet!$BO$37,\"\")))))","v":0},0,0]
[{"$f":"'Match Set Up'!B15","v":0},{"$f":"'Match Set Up'!A15","v":0},{"$f":"'Match Total'!B11","v":0},{"$f":"IF(Scoresheet!$B$11='Match Dues'!B14,Scoresheet!$O$11,IF(Scoresheet!$B$12='Match Dues'!B14,Scoresheet!$O$12,IF(Scoresheet!$B$13='Match Dues'!B14,Scoresheet!$O$13,IF(Scoresheet!$B$14='Match Dues'!B14,Scoresheet!$O$14,IF(Scoresheet!$B$15='Match Dues'!B14,Scoresheet!$O$15,\"\")))))","v":0},{"$f":"IF(Scoresheet!$B$11='Match Dues'!B14,Scoresheet!$BE$11,IF(Scoresheet!$B$12='Match Dues'!B14,Scoresheet!$BE$12,IF(Scoresheet!$B$13='Match Dues'!B14,Scoresheet!$BE$13,IF(Scoresheet!$B$14='Match Dues'!B14,Scoresheet!$BE$14,IF(Scoresheet!$B$15='Match Dues'!B14,Scoresheet!$BE$15,\"\")))))","v":0},{"$f":"IF(C14 =\"\",\"\",C14-A14)","v":0},0,null,{"$f":"'Match Total'!C11","v":0},{"$f":"IF(Scoresheet!$B$22='Match Dues'!B14,Scoresheet!$O$22,IF(Scoresheet!$B$23='Match Dues'!B14,Scoresheet!$O$23,IF(Scoresheet!$B$24='Match Dues'!B14,Scoresheet!$O$24,IF(Scoresheet!$B$25='Match Dues'!B14,Scoresheet!$O$25,IF(Scoresheet!$B$26='Match Dues'!B14,Scoresheet!$O$26,\"\")))))","v":0},{"$f":"IF(Scoresheet!$B$22='Match Dues'!B14,Scoresheet!$BE$22,IF(Scoresheet!$B$23='Match Dues'!B14,Scoresheet!$BE$23,IF(Scoresheet!$B$24='Match Dues'!B14,Scoresheet!$BE$24,IF(Scoresheet!$B$25='Match Dues'!B14,Scoresheet!$BE$25,IF(Scoresheet!$B$26='Match Dues'!B14,Scoresheet!$BE$26,\"\")))))","v":0},0,0,null,{"$f":"'Match Total'!D11","v":0},{"$f":"IF(Scoresheet!$B$33='Match Dues'!B14,Scoresheet!$O$33,IF(Scoresheet!$B$34='Match Dues'!B14,Scoresheet!$O$34,IF(Scoresheet!$B$35='Match Dues'!B14,Scoresheet!$O$35,IF(Scoresheet!$B$36='Match Dues'!B14,Scoresheet!$O$36,IF(Scoresheet!$B$37='Match Dues'!B14,Scoresheet!$O$37,\"\")))))","v":0},{"$f":"IF(Scoresheet!$B$33='Match Dues'!B14,Scoresheet!$BE$33,IF(Scoresheet!$B$34='Match Dues'!B14,Scoresheet!$BE$34,IF(Scoresheet!$B$35='Match Dues'!B14,Scoresheet!$BE$35,IF(Scoresheet!$B$36='Match Dues'!B14,Scoresheet!$BE$36,IF(Scoresheet!$B$37='Match Dues'!B14,Scoresheet!$BE$37,\"\")))))","v":0},0,0,null,null,{"$f":"'Match Set Up'!F15","v":0},{"$f":"'Match Set Up'!E15","v":0},{"$f":"'Match Total'!B30","v":0},{"$f":"IF(Scoresheet!$V$11='Match Dues'!W14,Scoresheet!$AI$11,IF(Scoresheet!$V$12='Match Dues'!W14,Scoresheet!$AI$12,IF(Scoresheet!$V$13='Match Dues'!W14,Scoresheet!$AI$13,IF(Scoresheet!V23='Match Dues'!W14,Scoresheet!$AI$14,IF(Scoresheet!$V$15='Match Dues'!W14,Scoresheet!$AI$15,\"\")))))","v":0},{"$f":"IF(Scoresheet!$V$11='Match Dues'!W14,Scoresheet!$BO$11,IF(Scoresheet!$V$12='Match Dues'!W14,Scoresheet!$BO$12,IF(Scoresheet!$V$13='Match Dues'!W14,Scoresheet!$BO$13,IF(Scoresheet!$V$14='Match Dues'!W14,Scoresheet!$BO$14,IF(Scoresheet!$V$15='Match Dues'!W14,Scoresheet!$BO$15,\"\")))))","v":0},{"$f":"IF(X14 =\"\",\"\",X14-V14)","v":0},0,null,{"$f":"'Match Total'!C30","v":0},{"$f":"IF(Scoresheet!$V$22='Match Dues'!W14,Scoresheet!$AI$22,IF(Scoresheet!$V$23='Match Dues'!W14,Scoresheet!$AI$23,IF(Scoresheet!$V$24='Match Dues'!W14,Scoresheet!$AI$24,IF(Scoresheet!$V$25='Match Dues'!W14,Scoresheet!$AI$25,IF(Scoresheet!$V$26='Match Dues'!W14,Scoresheet!$AI$26,\"\")))))","v":0},{"$f":"IF(Scoresheet!$V$22='Match Dues'!W14,Scoresheet!$BO$22,IF(Scoresheet!$V$23='Match Dues'!W14,Scoresheet!$BO$23,IF(Scoresheet!$V$24='Match Dues'!W14,Scoresheet!$BO$24,IF(Scoresheet!$V$25='Match Dues'!W14,Scoresheet!$BO$25,IF(Scoresheet!$V$26='Match Dues'!W14,Scoresheet!$BO$26,\"\")))))","v":0},0,0,null,{"$f":"'Match Total'!D30","v":0},{"$f":"IF(Scoresheet!$V$33='Match Dues'!W14,Scoresheet!$AI$33,IF(Scoresheet!$V$34='Match Dues'!W14,Scoresheet!$AI$34,IF(Scoresheet!$V$35='Match Dues'!W14,Scoresheet!$AI$35,IF(Scoresheet!$V$36='Match Dues'!W14,Scoresheet!$AI$36,IF(Scoresheet!$V$37='Match Dues'!W14,Scoresheet!$AI$37,\"\")))))","v":0},{"$f":"IF(Scoresheet!$V$33='Match Dues'!W14,Scoresheet!$BO$33,IF(Scoresheet!$V$34='Match Dues'!W14,Scoresheet!$BO$34,IF(Scoresheet!$V$35='Match Dues'!W14,Scoresheet!$BO$35,IF(Scoresheet!V$36='Match Dues'!W14,Scoresheet!$BO$36,IF(Scoresheet!$V$37='Match Dues'!W14,Scoresheet!$BO$37,\"\")))))","v":0},0,0]
[{"$f":"'Match Set Up'!B16","v":0},{"$f":"'Match Set Up'!A16","v":0},{"$f":"'Match Total'!B12","v":0},{"$f":"IF(Scoresheet!$B$11='Match Dues'!B15,Scoresheet!$O$11,IF(Scoresheet!$B$12='Match Dues'!B15,Scoresheet!$O$12,IF(Scoresheet!$B$13='Match Dues'!B15,Scoresheet!$O$13,IF(Scoresheet!$B$14='Match Dues'!B15,Scoresheet!$O$14,IF(Scoresheet!$B$15='Match Dues'!B15,Scoresheet!$O$15,\"\")))))","v":0},{"$f":"IF(Scoresheet!$B$11='Match Dues'!B15,Scoresheet!$BE$11,IF(Scoresheet!$B$12='Match Dues'!B15,Scoresheet!$BE$12,IF(Scoresheet!$B$13='Match Dues'!B15,Scoresheet!$BE$13,IF(Scoresheet!$B$14='Match Dues'!B15,Scoresheet!$BE$14,IF(Scoresheet!$B$15='Match Dues'!B15,Scoresheet!$BE$15,\"\")))))","v":0},0,0,null,{"$f":"'Match Total'!C12","v":0},{"$f":"IF(Scoresheet!$B$22='Match Dues'!B15,Scoresheet!$O$22,IF(Scoresheet!$B$23='Match Dues'!B15,Scoresheet!$O$23,IF(Scoresheet!$B$24='Match Dues'!B15,Scoresheet!$O$24,IF(Scoresheet!$B$25='Match Dues'!B15,Scoresheet!$O$25,IF(Scoresheet!$B$26='Match Dues'!B15,Scoresheet!$O$26,\"\")))))","v":0},{"$f":"IF(Scoresheet!$B$22='Match Dues'!B15,Scoresheet!$BE$22,IF(Scoresheet!$B$23='Match Dues'!B15,Scoresheet!$BE$23,IF(Scoresheet!$B$24='Match Dues'!B15,Scoresheet!$BE$24,IF(Scoresheet!$B$25='Match Dues'!B15,Scoresheet!$BE$25,IF(Scoresheet!$B$26='Match Dues'!B15,Scoresheet!$BE$26,\"\")))))","v":0},0,0,null,{"$f":"'Match Total'!D12","v":0},{"$f":"IF(Scoresheet!$B$33='Match Dues'!B15,Scoresheet!$O$33,IF(Scoresheet!$B$34='Match Dues'!B15,Scoresheet!$O$34,IF(Scoresheet!$B$35='Match Dues'!B15,Scoresheet!$O$35,IF(Scoresheet!$B$36='Match Dues'!B15,Scoresheet!$O$36,IF(Scoresheet!$B$37='Match Dues'!B15,Scoresheet!$O$37,\"\")))))","v":0},{"$f":"IF(Scoresheet!$B$33='Match Dues'!B15,Scoresheet!$BE$33,IF(Scoresheet!$B$34='Match Dues'!B15,Scoresheet!$BE$34,IF(Scoresheet!$B$35='Match Dues'!B15,Scoresheet!$BE$35,IF(Scoresheet!$B$36='Match Dues'!B15,Scoresheet!$BE$36,IF(Scoresheet!$B$37='Match Dues'!B15,Scoresheet!$BE$37,\"\")))))","v":0},0,0,null,null,{"$f":"'Match Set Up'!F16","v":0},{"$f":"'Match Set Up'!E16","v":0},{"$f":"'Match Total'!B31","v":0},{"$f":"IF(Scoresheet!$V$11='Match Dues'!W15,Scoresheet!$AI$11,IF(Scoresheet!$V$12='Match Dues'!W15,Scoresheet!$AI$12,IF(Scoresheet!$V$13='Match Dues'!W15,Scoresheet!$AI$13,IF(Scoresheet!V24='Match Dues'!W15,Scoresheet!$AI$14,IF(Scoresheet!$V$15='Match Dues'!W15,Scoresheet!$AI$15,\"\")))))","v":0},{"$f":"IF(Scoresheet!$V$11='Match Dues'!W15,Scoresheet!$BO$11,IF(Scoresheet!$V$12='Match Dues'!W15,Scoresheet!$BO$12,IF(Scoresheet!$V$13='Match Dues'!W15,Scoresheet!$BO$13,IF(Scoresheet!$V$14='Match Dues'!W15,Scoresheet!$BO$14,IF(Scoresheet!$V$15='Match Dues'!W15,Scoresheet!$BO$15,\"\")))))","v":0},0,0,null,{"$f":"'Match Total'!C31","v":0},{"$f":"IF(Scoresheet!$V$22='Match Dues'!W15,Scoresheet!$AI$22,IF(Scoresheet!$V$23='Match Dues'!W15,Scoresheet!$AI$23,IF(Scoresheet!$V$24='Match Dues'!W15,Scoresheet!$AI$24,IF(Scoresheet!$V$25='Match Dues'!W15,Scoresheet!$AI$25,IF(Scoresheet!$V$26='Match Dues'!W15,Scoresheet!$AI$26,\"\")))))","v":0},{"$f":"IF(Scoresheet!$V$22='Match Dues'!W15,Scoresheet!$BO$22,IF(Scoresheet!$V$23='Match Dues'!W15,Scoresheet!$BO$23,IF(Scoresheet!$V$24='Match Dues'!W15,Scoresheet!$BO$24,IF(Scoresheet!$V$25='Match Dues'!W15,Scoresheet!$BO$25,IF(Scoresheet!$V$26='Match Dues'!W15,Scoresheet!$BO$26,\"\")))))","v":0},0,0,null,{"$f":"'Match Total'!D31","v":0},{"$f":"IF(Scoresheet!$V$33='Match Dues'!W15,Scoresheet!$AI$33,IF(Scoresheet!$V$34='Match Dues'!W15,Scoresheet!$AI$34,IF(Scoresheet!$V$35='Match Dues'!W15,Scoresheet!$AI$35,IF(Scoresheet!$V$36='Match Dues'!W15,Scoresheet!$AI$36,IF(Scoresheet!$V$37='Match Dues'!W15,Scoresheet!$AI$37,\"\")))))","v":0},{"$f":"IF(Scoresheet!$V$33='Match Dues'!W15,Scoresheet!$BO$33,IF(Scoresheet!$V$34='Match Dues'!W15,Scoresheet!$BO$34,IF(Scoresheet!$V$35='Match Dues'!W15,Scoresheet!$BO$35,IF(Scoresheet!V$36='Match Dues'!W15,Scoresheet!$BO$36,IF(Scoresheet!$V$37='Match Dues'!W15,Scoresheet!$BO$37,\"\")))))","v":0},0,0]
[{"$f":"'Match Set Up'!B17","v":0},{"$f":"'Match Set Up'!A17","v":0},{"$f":"'Match Total'!B13","v":0},{"$f":"IF(Scoresheet!$B$11='Match Dues'!B16,Scoresheet!$O$11,IF(Scoresheet!$B$12='Match Dues'!B16,Scoresheet!$O$12,IF(Scoresheet!$B$13='Match Dues'!B16,Scoresheet!$O$13,IF(Scoresheet!$B$14='Match Dues'!B16,Scoresheet!$O$14,IF(Scoresheet!$B$15='Match Dues'!B16,Scoresheet!$O$15,\"\")))))","v":0},{"$f":"IF(Scoresheet!$B$11='Match Dues'!B16,Scoresheet!$BE$11,IF(Scoresheet!$B$12='Match Dues'!B16,Scoresheet!$BE$12,IF(Scoresheet!$B$13='Match Dues'!B16,Scoresheet!$BE$13,IF(Scoresheet!$B$14='Match Dues'!B16,Scoresheet!$BE$14,IF(Scoresheet!$B$15='Match Dues'!B16,Scoresheet!$BE$15,\"\")))))","v":0},0,0,null,{"$f":"'Match Total'!C13","v":0},{"$f":"IF(Scoresheet!$B$22='Match Dues'!B16,Scoresheet!$O$22,IF(Scoresheet!$B$23='Match Dues'!B16,Scoresheet!$O$23,IF(Scoresheet!$B$24='Match Dues'!B16,Scoresheet!$O$24,IF(Scoresheet!$B$25='Match Dues'!B16,Scoresheet!$O$25,IF(Scoresheet!$B$26='Match Dues'!B16,Scoresheet!$O$26,\"\")))))","v":0},{"$f":"IF(Scoresheet!$B$22='Match Dues'!B16,Scoresheet!$BE$22,IF(Scoresheet!$B$23='Match Dues'!B16,Scoresheet!$BE$23,IF(Scoresheet!$B$24='Match Dues'!B16,Scoresheet!$BE$24,IF(Scoresheet!$B$25='Match Dues'!B16,Scoresheet!$BE$25,IF(Scoresheet!$B$26='Match Dues'!B16,Scoresheet!$BE$26,\"\")))))","v":0},0,0,null,{"$f":"'Match Total'!D13","v":0},{"$f":"IF(Scoresheet!$B$33='Match Dues'!B16,Scoresheet!$O$33,IF(Scoresheet!$B$34='Match Dues'!B16,Scoresheet!$O$34,IF(Scoresheet!$B$35='Match Dues'!B16,Scoresheet!$O$35,IF(Scoresheet!$B$36='Match Dues'!B16,Scoresheet!$O$36,IF(Scoresheet!$B$37='Match Dues'!B16,Scoresheet!$O$37,\"\")))))","v":0},{"$f":"IF(Scoresheet!$B$33='Match Dues'!B16,Scoresheet!$BE$33,IF(Scoresheet!$B$34='Match Dues'!B16,Scoresheet!$BE$34,IF(Scoresheet!$B$35='Match Dues'!B16,Scoresheet!$BE$35,IF(Scoresheet!$B$36='Match Dues'!B16,Scoresheet!$BE$36,IF(Scoresheet!$B$37='Match Dues'!B16,Scoresheet!$BE$37,\"\")))))","v":0},0,0,null,null,{"$f":"'Match Set Up'!F17","v":0},{"$f":"'Match Set Up'!E17","v":0},{"$f":"'Match Total'!B32","v":0},{"$f":"IF(Scoresheet!$V$11='Match Dues'!W16,Scoresheet!$AI$11,IF(Scoresheet!$V$12='Match Dues'!W16,Scoresheet!$AI$12,IF(Scoresheet!$V$13='Match Dues'!W16,Scoresheet!$AI$13,IF(Scoresheet!V25='Match Dues'!W16,Scoresheet!$AI$14,IF(Scoresheet!$V$15='Match Dues'!W16,Scoresheet!$AI$15,\"\")))))","v":0},{"$f":"IF(Scoresheet!$V$11='Match Dues'!W16,Scoresheet!$BO$11,IF(Scoresheet!$V$12='Match Dues'!W16,Scoresheet!$BO$12,IF(Scoresheet!$V$13='Match Dues'!W16,Scoresheet!$BO$13,IF(Scoresheet!$V$14='Match Dues'!W16,Scoresheet!$BO$14,IF(Scoresheet!$V$15='Match Dues'!W16,Scoresheet!$BO$15,\"\")))))","v":0},0,0,null,{"$f":"'Match Total'!C32","v":0},{"$f":"IF(Scoresheet!$V$22='Match Dues'!W16,Scoresheet!$AI$22,IF(Scoresheet!$V$23='Match Dues'!W16,Scoresheet!$AI$23,IF(Scoresheet!$V$24='Match Dues'!W16,Scoresheet!$AI$24,IF(Scoresheet!$V$25='Match Dues'!W16,Scoresheet!$AI$25,IF(Scoresheet!$V$26='Match Dues'!W16,Scoresheet!$AI$26,\"\")))))","v":0},{"$f":"IF(Scoresheet!$V$22='Match Dues'!W16,Scoresheet!$BO$22,IF(Scoresheet!$V$23='Match Dues'!W16,Scoresheet!$BO$23,IF(Scoresheet!$V$24='Match Dues'!W16,Scoresheet!$BO$24,IF(Scoresheet!$V$25='Match Dues'!W16,Scoresheet!$BO$25,IF(Scoresheet!$V$26='Match Dues'!W16,Scoresheet!$BO$26,\"\")))))","v":0},0,0,null,{"$f":"'Match Total'!D32","v":0},{"$f":"IF(Scoresheet!$V$33='Match Dues'!W16,Scoresheet!$AI$33,IF(Scoresheet!$V$34='Match Dues'!W16,Scoresheet!$AI$34,IF(Scoresheet!$V$35='Match Dues'!W16,Scoresheet!$AI$35,IF(Scoresheet!$V$36='Match Dues'!W16,Scoresheet!$AI$36,IF(Scoresheet!$V$37='Match Dues'!W16,Scoresheet!$AI$37,\"\")))))","v":0},{"$f":"IF(Scoresheet!$V$33='Match Dues'!W16,Scoresheet!$BO$33,IF(Scoresheet!$V$34='Match Dues'!W16,Scoresheet!$BO$34,IF(Scoresheet!$V$35='Match Dues'!W16,Scoresheet!$BO$35,IF(Scoresheet!V$36='Match Dues'!W16,Scoresheet!$BO$36,IF(Scoresheet!$V$37='Match Dues'!W16,Scoresheet!$BO$37,\"\")))))","v":0},0,0]
[]
[]
[null,{"$f":"B2","v":0},"as Visitor Match   $ Fines",null,null,null,null,null,null,null,null,null,null,null,"Past Dues","running total due",null,null,null,null,null,null,{"$f":"W2","v":0},"as Home Match   $ Fines",null,null,null,null,null,null,null,"Total Fines Owed","Amount Paid"]
["AVG",null,"Opens","Beer Frm < 3","GameUndr avg","Match avg",null,"Total Fines","Match Dues","Match Avg Diff","Match Undr avg","High Over avg",null,null,null,null,null,null,null,null,null,"AVG",null,"Opens","Beer Frm < 3","GameUndr avg","Match avg",null,"Total Fines","Match Dues","Match avg diff","Match Undr avg","High Over avg"]
[{"$f":"A5","v":0},0,{"$f":"IF(B21=\"Ghost\",0,SUM(D5,J5,P5))","v":0},{"$f":"IF(B21=\"Ghost\",0,SUM(E5,K5,Q5))","v":0},{"$f":"IF(B21=\"Ghost\",0,SUM(G5,M5,S5))","v":0},{"$f":"'Match Total'!G2","v":""},null,{"$f":"SUM(C21:E21)","v":0},{"$f":"IF(B21=\"Ghost\",0,IF(B21>0,1,0))","v":0},{"$f":"IF('Match Total'!F2=\"\",\"\",SUM(F21-A21))","v":""},{"$f":"IF(B21=\"Ghost\",0,IF(F21<A21,1,0))","v":0},{"$f":"IF(B21=\"Ghost\",0,IF(B21=$E$34,1,0))","v":{"$error":"#N/A"}},{"$f":"IF(tStatsTeam = $B$2,IF(Player1sub = \"X\", 0,(C21*'Match Set Up'!$J$10+D21*'Match Set Up'!$J$11+E21*'Match Set Up'!$J$12+I21*'Match Set Up'!$J$17+K21*'Match Set Up'!$J$18+L21*'Match Set Up'!$J$19) ), (C21*'Match Set Up'!$J$10+D21*'Match Set Up'!$J$11+E21*'Match Set Up'!$J$12+I21*'Match Set Up'!$J$17+K21*'Match Set Up'!$J$18+L21*'Match Set Up'!$J$19) )","v":{"$error":"#N/A"}},null,{"$f":"'Home Team Info'!D5","v":0},{"$f":"M21-N21+O21","v":{"$error":"#N/A"}},null,null,null,null,null,{"$f":"V5","v":0},0,{"$f":"IF(W21=\"Ghost\",0,SUM(Y5,AE5,AK5))","v":0},{"$f":"IF(W21=\"Ghost\",0,SUM(Z5,AF5,AL5))","v":0},{"$f":"IF(W21=\"Ghost\",0,SUM(AB5,AH5,AN5))","v":0},{"$f":"'Match Total'!G21","v":""},null,{"$f":"SUM(X21,Y21,Z21)","v":0},{"$f":"IF(W21=\"Ghost\",0,IF(W21>0,1,0))","v":0},{"$f":"IF('Match Total'!F21=\"\",\"\",SUM(AA21-V21))","v":""},{"$f":"IF(W21=\"Ghost\",0,IF(AA21<V21,1,0))","v":0},{"$f":"IF(W21=\"Ghost\",0,IF(W21=$Z$34,1,0))","v":{"$error":"#N/A"}},{"$f":"IF(tStatsTeam = $W$2,IF(Player1sub = \"X\", 0,(X21*'Match Set Up'!$J$10+Y21*'Match Set Up'!$J$11+Z21*'Match Set Up'!$J$12+AD21*'Match Set Up'!$J$17+AF21*'Match Set Up'!$J$18+AG21*'Match Set Up'!$J$19)), (X21*'Match Set Up'!$J$10+Y21*'Match Set Up'!$J$11+Z21*'Match Set Up'!$J$12+AD21*'Match Set Up'!$J$17+AF21*'Match Set Up'!$J$18+AG21*'Match Set Up'!$J$19))","v":{"$error":"#N/A"}}]
[0,0,{"$f":"IF(B22=\"Ghost\",0,SUM(D6,J6,P6))","v":0},{"$f":"IF(B22=\"Ghost\",0,SUM(E6,K6,Q6))","v":0},{"$f":"IF(B22=\"Ghost\",0,SUM(G6,M6,S6))","v":0},{"$f":"'Match Total'!G3","v":""},null,{"$f":"SUM(C22:E22)","v":0},0,{"$f":"IF('Match Total'!F3=\"\",\"\",SUM(F22-A22))","v":""},0,{"$error":"#N/A"},{"$f":"IF(tStatsTeam = $B$2,IF(Player2sub = \"X\", 0,(C22*'Match Set Up'!$J$10+D22*'Match Set Up'!$J$11+E22*'Match Set Up'!$J$12+I22*'Match Set Up'!$J$17+K22*'Match Set Up'!$J$18+L22*'Match Set Up'!$J$19) ), (C22*'Match Set Up'!$J$10+D22*'Match Set Up'!$J$11+E22*'Match Set Up'!$J$12+I22*'Match Set Up'!$J$17+K22*'Match Set Up'!$J$18+L22*'Match Set Up'!$J$19) )","v":{"$error":"#N/A"}},null,{"$f":"'Home Team Info'!D6","v":0},{"$error":"#N/A"},null,null,null,null,null,0,0,0,0,0,{"$f":"'Match Total'!G22","v":""},null,{"$f":"SUM(X22,Y22,Z22)","v":0},{"$f":"IF(W22=\"Ghost\",0,IF(W22>0,1,0))","v":0},{"$f":"IF('Match Total'!F22=\"\",\"\",SUM(AA22-V22))","v":""},0,{"$f":"IF(W22=\"Ghost\",0,IF(W22=$Z$34,1,0))","v":{"$error":"#N/A"}},{"$f":"IF(tStatsTeam = $W$2,IF(Player2sub = \"X\", 0,(X22*'Match Set Up'!$J$10+Y22*'Match Set Up'!$J$11+Z22*'Match Set Up'!$J$12+AD22*'Match Set Up'!$J$17+AF22*'Match Set Up'!$J$18+AG22*'Match Set Up'!$J$19)), (X22*'Match Set Up'!$J$10+Y22*'Match Set Up'!$J$11+Z22*'Match Set Up'!$J$12+AD22*'Match Set Up'!$J$17+AF22*'Match Set Up'!$J$18+AG22*'Match Set Up'!$J$19))","v":{"$error":"#N/A"}}]
[0,0,0,0,0,{"$f":"'Match Total'!G4","v":""},null,0,0,{"$f":"IF('Match Total'!F4=\"\",\"\",SUM(F23-A23))","v":""},0,{"$error":"#N/A"},{"$f":"IF(tStatsTeam = $B$2,IF(Player3sub = \"X\", 0,(C23*'Match Set Up'!$J$10+D23*'Match Set Up'!$J$11+E23*'Match Set Up'!$J$12+I23*'Match Set Up'!$J$17+K23*'Match Set Up'!$J$18+L23*'Match Set Up'!$J$19) ), (C23*'Match Set Up'!$J$10+D23*'Match Set Up'!$J$11+E23*'Match Set Up'!$J$12+I23*'Match Set Up'!$J$17+K23*'Match Set Up'!$J$18+L23*'Match Set Up'!$J$19) )","v":{"$error":"#N/A"}},null,{"$f":"'Home Team Info'!D7","v":0},{"$error":"#N/A"},null,null,null,null,null,0,0,0,0,0,{"$f":"'Match Total'!G23","v":""},null,0,0,{"$f":"IF('Match Total'!F23=\"\",\"\",SUM(AA23-V23))","v":""},0,{"$error":"#N/A"},{"$f":"IF(tStatsTeam = $W$2,IF(Player3sub = \"X\", 0,(X23*'Match Set Up'!$J$10+Y23*'Match Set Up'!$J$11+Z23*'Match Set Up'!$J$12+AD23*'Match Set Up'!$J$17+AF23*'Match Set Up'!$J$18+AG23*'Match Set Up'!$J$19)), (X23*'Match Set Up'!$J$10+Y23*'Match Set Up'!$J$11+Z23*'Match Set Up'!$J$12+AD23*'Match Set Up'!$J$17+AF23*'Match Set Up'!$J$18+AG23*'Match Set Up'!$J$19))","v":{"$error":"#N/A"}}]
[0,0,0,0,0,{"$f":"'Match Total'!G5","v":""},null,0,0,{"$f":"IF('Match Total'!F5=\"\",\"\",SUM(F24-A24))","v":""},0,{"$error":"#N/A"},{"$f":"IF(tStatsTeam = $B$2,IF(Player4sub = \"X\", 0,(C24*'Match Set Up'!$J$10+D24*'Match Set Up'!$J$11+E24*'Match Set Up'!$J$12+I24*'Match Set Up'!$J$17+K24*'Match Set Up'!$J$18+L24*'Match Set Up'!$J$19) ), (C24*'Match Set Up'!$J$10+D24*'Match Set Up'!$J$11+E24*'Match Set Up'!$J$12+I24*'Match Set Up'!$J$17+K24*'Match Set Up'!$J$18+L24*'Match Set Up'!$J$19) )","v":{"$error":"#N/A"}},null,{"$f":"'Home Team Info'!D8","v":0},{"$error":"#N/A"},null,null,null,null,null,0,0,0,0,0,{"$f":"'Match Total'!G24","v":""},null,0,0,{"$f":"IF('Match Total'!F24=\"\",\"\",SUM(AA24-V24))","v":""},0,{"$error":"#N/A"},{"$f":"IF(tStatsTeam = $W$2,IF(Player4sub = \"X\", 0,(X24*'Match Set Up'!$J$10+Y24*'Match Set Up'!$J$11+Z24*'Match Set Up'!$J$12+AD24*'Match Set Up'!$J$17+AF24*'Match Set Up'!$J$18+AG24*'Match Set Up'!$J$19)), (X24*'Match Set Up'!$J$10+Y24*'Match Set Up'!$J$11+Z24*'Match Set Up'!$J$12+AD24*'Match Set Up'!$J$17+AF24*'Match Set Up'!$J$18+AG24*'Match Set Up'!$J$19))","v":{"$error":"#N/A"}}]
[0,0,0,0,0,{"$f":"'Match Total'!G6","v":""},null,0,0,{"$f":"IF('Match Total'!F6=\"\",\"\",SUM(F25-A25))","v":""},0,{"$error":"#N/A"},{"$f":"IF(tStatsTeam = $B$2,IF(Player5sub = \"X\", 0,(C25*'Match Set Up'!$J$10+D25*'Match Set Up'!$J$11+E25*'Match Set Up'!$J$12+I25*'Match Set Up'!$J$17+K25*'Match Set Up'!$J$18+L25*'Match Set Up'!$J$19) ), (C25*'Match Set Up'!$J$10+D25*'Match Set Up'!$J$11+E25*'Match Set Up'!$J$12+I25*'Match Set Up'!$J$17+K25*'Match Set Up'!$J$18+L25*'Match Set Up'!$J$19) )","v":{"$error":"#N/A"}},null,{"$f":"'Home Team Info'!D9","v":0},{"$error":"#N/A"},null,null,null,null,null,0,0,0,0,0,{"$f":"'Match Total'!G25","v":""},null,0,0,{"$f":"IF('Match Total'!F25=\"\",\"\",SUM(AA25-V25))","v":""},0,{"$error":"#N/A"},{"$f":"IF(tStatsTeam = $W$2,IF(Player5sub = \"X\", 0,(X25*'Match Set Up'!$J$10+Y25*'Match Set Up'!$J$11+Z25*'Match Set Up'!$J$12+AD25*'Match Set Up'!$J$17+AF25*'Match Set Up'!$J$18+AG25*'Match Set Up'!$J$19)), (X25*'Match Set Up'!$J$10+Y25*'Match Set Up'!$J$11+Z25*'Match Set Up'!$J$12+AD25*'Match Set Up'!$J$17+AF25*'Match Set Up'!$J$18+AG25*'Match Set Up'!$J$19))","v":{"$error":"#N/A"}}]
[0,0,0,0,0,{"$f":"'Match Total'!G7","v":""},null,0,0,{"$f":"IF('Match Total'!F7=\"\",\"\",SUM(F26-A26))","v":""},0,{"$error":"#N/A"},{"$f":"IF(tStatsTeam = $B$2,IF(Player6sub = \"X\", 0,(C26*'Match Set Up'!$J$10+D26*'Match Set Up'!$J$11+E26*'Match Set Up'!$J$12+I26*'Match Set Up'!$J$17+K26*'Match Set Up'!$J$18+L26*'Match Set Up'!$J$19) ), (C26*'Match Set Up'!$J$10+D26*'Match Set Up'!$J$11+E26*'Match Set Up'!$J$12+I26*'Match Set Up'!$J$17+K26*'Match Set Up'!$J$18+L26*'Match Set Up'!$J$19) )","v":{"$error":"#N/A"}},null,{"$f":"'Home Team Info'!D10","v":0},{"$error":"#N/A"},null,null,null,null,null,0,0,0,0,0,{"$f":"'Match Total'!G26","v":""},null,0,0,{"$f":"IF('Match Total'!F26=\"\",\"\",SUM(AA26-V26))","v":""},0,{"$error":"#N/A"},{"$f":"IF(tStatsTeam = $W$2,IF(Player6sub = \"X\", 0,(X26*'Match Set Up'!$J$10+Y26*'Match Set Up'!$J$11+Z26*'Match Set Up'!$J$12+AD26*'Match Set Up'!$J$17+AF26*'Match Set Up'!$J$18+AG26*'Match Set Up'!$J$19)), (X26*'Match Set Up'!$J$10+Y26*'Match Set Up'!$J$11+Z26*'Match Set Up'!$J$12+AD26*'Match Set Up'!$J$17+AF26*'Match Set Up'!$J$18+AG26*'Match Set Up'!$J$19))","v":{"$error":"#N/A"}}]
[0,0,0,0,0,{"$f":"'Match Total'!G8","v":""},null,0,0,{"$f":"IF('Match Total'!F8=\"\",\"\",SUM(F27-A27))","v":""},0,{"$error":"#N/A"},{"$f":"IF(tStatsTeam = $B$2,IF(Player7sub = \"X\", 0,(C27*'Match Set Up'!$J$10+D27*'Match Set Up'!$J$11+E27*'Match Set Up'!$J$12+I27*'Match Set Up'!$J$17+K27*'Match Set Up'!$J$18+L27*'Match Set Up'!$J$19) ), (C27*'Match Set Up'!$J$10+D27*'Match Set Up'!$J$11+E27*'Match Set Up'!$J$12+I27*'Match Set Up'!$J$17+K27*'Match Set Up'!$J$18+L27*'Match Set Up'!$J$19) )","v":{"$error":"#N/A"}},null,{"$f":"'Home Team Info'!D11","v":0},{"$error":"#N/A"},null,null,null,null,null,{"$f":"V11","v":0},{"$f":"W11","v":0},0,0,0,{"$f":"'Match Total'!G27","v":""},null,0,0,{"$f":"IF('Match Total'!F27=\"\",\"\",SUM(AA27-V27))","v":""},0,{"$error":"#N/A"},{"$f":"IF(tStatsTeam = $W$2,IF(Player7sub = \"X\", 0,(X27*'Match Set Up'!$J$10+Y27*'Match Set Up'!$J$11+Z27*'Match Set Up'!$J$12+AD27*'Match Set Up'!$J$17+AF27*'Match Set Up'!$J$18+AG27*'Match Set Up'!$J$19)), (X27*'Match Set Up'!$J$10+Y27*'Match Set Up'!$J$11+Z27*'Match Set Up'!$J$12+AD27*'Match Set Up'!$J$17+AF27*'Match Set Up'!$J$18+AG27*'Match Set Up'!$J$19))","v":{"$error":"#N/A"}}]
[0,0,0,0,0,{"$f":"'Match Total'!G9","v":""},null,0,0,{"$f":"IF('Match Total'!F9=\"\",\"\",SUM(F28-A28))","v":""},0,{"$error":"#N/A"},{"$f":"IF(tStatsTeam = $B$2,IF(Player8sub = \"X\", 0,(C28*'Match Set Up'!$J$10+D28*'Match Set Up'!$J$11+E28*'Match Set Up'!$J$12+I28*'Match Set Up'!$J$17+K28*'Match Set Up'!$J$18+L28*'Match Set Up'!$J$19) ), (C28*'Match Set Up'!$J$10+D28*'Match Set Up'!$J$11+E28*'Match Set Up'!$J$12+I28*'Match Set Up'!$J$17+K28*'Match Set Up'!$J$18+L28*'Match Set Up'!$J$19) )","v":{"$error":"#N/A"}},null,{"$f":"'Home Team Info'!D12","v":0},{"$error":"#N/A"},null,null,null,null,null,0,{"$f":"W12","v":0},0,0,0,{"$f":"'Match Total'!G28","v":""},null,{"$f":"SUM(X28,Y28,Z28)","v":0},0,{"$f":"IF('Match Total'!F28=\"\",\"\",SUM(AA28-V28))","v":""},0,{"$error":"#N/A"},{"$f":"IF(tStatsTeam = $W$2,IF(Player8sub = \"X\", 0,(X28*'Match Set Up'!$J$10+Y28*'Match Set Up'!$J$11+Z28*'Match Set Up'!$J$12+AD28*'Match Set Up'!$J$17+AF28*'Match Set Up'!$J$18+AG28*'Match Set Up'!$J$19)), (X28*'Match Set Up'!$J$10+Y28*'Match Set Up'!$J$11+Z28*'Match Set Up'!$J$12+AD28*'Match Set Up'!$J$17+AF28*'Match Set Up'!$J$18+AG28*'Match Set Up'!$J$19))","v":{"$error":"#N/A"}}]
[{"$f":"A13","v":0},0,0,0,0,{"$f":"'Match Total'!G10","v":""},null,0,0,{"$f":"IF('Match Total'!F10=\"\",\"\",SUM(F29-A29))","v":""},0,{"$error":"#N/A"},{"$f":"IF(tStatsTeam = $B$2,IF(Player9sub = \"X\", 0,(C29*'Match Set Up'!$J$10+D29*'Match Set Up'!$J$11+E29*'Match Set Up'!$J$12+I29*'Match Set Up'!$J$17+K29*'Match Set Up'!$J$18+L29*'Match Set Up'!$J$19) ), (C29*'Match Set Up'!$J$10+D29*'Match Set Up'!$J$11+E29*'Match Set Up'!$J$12+I29*'Match Set Up'!$J$17+K29*'Match Set Up'!$J$18+L29*'Match Set Up'!$J$19) )","v":{"$error":"#N/A"}},null,{"$f":"'Home Team Info'!D13","v":0},{"$error":"#N/A"},null,null,null,null,null,0,{"$f":"W13","v":0},0,0,0,{"$f":"'Match Total'!G29","v":""},null,{"$f":"SUM(X29,Y29,Z29)","v":0},0,{"$f":"IF('Match Total'!F29=\"\",\"\",SUM(AA29-V29))","v":""},0,{"$error":"#N/A"},{"$f":"IF(tStatsTeam = $W$2,IF(Player9sub = \"X\", 0,(X29*'Match Set Up'!$J$10+Y29*'Match Set Up'!$J$11+Z29*'Match Set Up'!$J$12+AD29*'Match Set Up'!$J$17+AF29*'Match Set Up'!$J$18+AG29*'Match Set Up'!$J$19)), (X29*'Match Set Up'!$J$10+Y29*'Match Set Up'!$J$11+Z29*'Match Set Up'!$J$12+AD29*'Match Set Up'!$J$17+AF29*'Match Set Up'!$J$18+AG29*'Match Set Up'!$J$19))","v":{"$error":"#N/A"}}]
[0,0,0,0,0,{"$f":"'Match Total'!G11","v":""},null,0,0,{"$f":"IF('Match Total'!F11=\"\",\"\",SUM(F30-A30))","v":""},0,{"$error":"#N/A"},{"$f":"IF(tStatsTeam = $B$2,IF(Player10sub = \"X\", 0,(C30*'Match Set Up'!$J$10+D30*'Match Set Up'!$J$11+E30*'Match Set Up'!$J$12+I30*'Match Set Up'!$J$17+K30*'Match Set Up'!$J$18+L30*'Match Set Up'!$J$19) ), (C30*'Match Set Up'!$J$10+D30*'Match Set Up'!$J$11+E30*'Match Set Up'!$J$12+I30*'Match Set Up'!$J$17+K30*'Match Set Up'!$J$18+L30*'Match Set Up'!$J$19) )","v":{"$error":"#N/A"}},null,{"$f":"'Home Team Info'!D14","v":0},{"$error":"#N/A"},null,null,null,null,null,0,0,0,0,0,{"$f":"'Match Total'!G30","v":""},null,{"$f":"SUM(X30,Y30,Z30)","v":0},0,{"$f":"IF('Match Total'!F30=\"\",\"\",SUM(AA30-V30))","v":""},0,{"$error":"#N/A"},{"$f":"IF(tStatsTeam = $W$2,IF(Player10sub = \"X\", 0,(X30*'Match Set Up'!$J$10+Y30*'Match Set Up'!$J$11+Z30*'Match Set Up'!$J$12+AD30*'Match Set Up'!$J$17+AF30*'Match Set Up'!$J$18+AG30*'Match Set Up'!$J$19)), (X30*'Match Set Up'!$J$10+Y30*'Match Set Up'!$J$11+Z30*'Match Set Up'!$J$12+AD30*'Match Set Up'!$J$17+AF30*'Match Set Up'!$J$18+AG30*'Match Set Up'!$J$19))","v":{"$error":"#N/A"}}]
[0,0,0,0,0,{"$f":"'Match Total'!G12","v":""},null,0,0,{"$f":"IF('Match Total'!F12=\"\",\"\",SUM(F31-A31))","v":""},0,{"$error":"#N/A"},{"$f":"IF(tStatsTeam = $B$2,IF(Player11sub = \"X\", 0,(C31*'Match Set Up'!$J$10+D31*'Match Set Up'!$J$11+E31*'Match Set Up'!$J$12+I31*'Match Set Up'!$J$17+K31*'Match Set Up'!$J$18+L31*'Match Set Up'!$J$19) ), (C31*'Match Set Up'!$J$10+D31*'Match Set Up'!$J$11+E31*'Match Set Up'!$J$12+I31*'Match Set Up'!$J$17+K31*'Match Set Up'!$J$18+L31*'Match Set Up'!$J$19) )","v":{"$error":"#N/A"}},null,{"$f":"'Home Team Info'!D15","v":0},{"$error":"#N/A"},null,null,null,null,null,0,0,0,0,0,{"$f":"'Match Total'!G31","v":""},null,{"$f":"SUM(X31,Y31,Z31)","v":0},0,{"$f":"IF('Match Total'!F31=\"\",\"\",SUM(AA31-V31))","v":""},0,{"$error":"#N/A"},{"$f":"IF(tStatsTeam = $W$2,IF(Player11sub = \"X\", 0,(X31*'Match Set Up'!$J$10+Y31*'Match Set Up'!$J$11+Z31*'Match Set Up'!$J$12+AD31*'Match Set Up'!$J$17+AF31*'Match Set Up'!$J$18+AG31*'Match Set Up'!$J$19)), (X31*'Match Set Up'!$J$10+Y31*'Match Set Up'!$J$11+Z31*'Match Set Up'!$J$12+AD31*'Match Set Up'!$J$17+AF31*'Match Set Up'!$J$18+AG31*'Match Set Up'!$J$19))","v":{"$error":"#N/A"}}]
[0,0,0,0,0,{"$f":"'Match Total'!G12","v":""},null,0,0,{"$f":"IF('Match Total'!F13=\"\",\"\",SUM(F32-A32))","v":""},0,{"$error":"#N/A"},{"$f":"IF(tStatsTeam = $B$2,IF(Player12sub = \"X\", 0,(C32*'Match Set Up'!$J$10+D32*'Match Set Up'!$J$11+E32*'Match Set Up'!$J$12+I32*'Match Set Up'!$J$17+K32*'Match Set Up'!$J$18+L32*'Match Set Up'!$J$19) ), (C32*'Match Set Up'!$J$10+D32*'Match Set Up'!$J$11+E32*'Match Set Up'!$J$12+I32*'Match Set Up'!$J$17+K32*'Match Set Up'!$J$18+L32*'Match Set Up'!$J$19) )","v":{"$error":"#N/A"}},null,{"$f":"'Home Team Info'!D16","v":0},{"$error":"#N/A"},null,null,null,null,null,0,0,0,0,0,{"$f":"'Match Total'!G32","v":""},null,{"$f":"SUM(X32,Y32,Z32)","v":0},0,{"$f":"IF('Match Total'!F32=\"\",\"\",SUM(AA32-V32))","v":""},0,{"$error":"#N/A"},{"$f":"IF(tStatsTeam = $W$2,IF(Player12sub = \"X\", 0,(X32*'Match Set Up'!$J$10+Y32*'Match Set Up'!$J$11+Z32*'Match Set Up'!$J$12+AD32*'Match Set Up'!$J$17+AF32*'Match Set Up'!$J$18+AG32*'Match Set Up'!$J$19)), (X32*'Match Set Up'!$J$10+Y32*'Match Set Up'!$J$11+Z32*'Match Set Up'!$J$12+AD32*'Match Set Up'!$J$17+AF32*'Match Set Up'!$J$18+AG32*'Match Set Up'!$J$19))","v":{"$error":"#N/A"}}]
[null,null,null,null,{"$f":"SUM(E21:E32)","v":0},null,null,null,{"$f":"SUM(I21:I32)","v":0},null,{"$f":"SUM(K21:K32)","v":0},"Totals",{"$f":"SUM(N21:P32)","v":{"$error":"#N/A"}},null,null,null,null,null,null,null,null,null,null,null,null,{"$f":"SUM(Z21:Z32)","v":0},null,null,null,{"$f":"SUM(AD21:AD32)","v":0},"Totals",{"$f":"SUM(AF21:AF32)","v":0},"Totals",{"$f":"SUM(AH21:AI32)","v":{"$error":"#N/A"}}]
["High Match Over Avg ",null,{"$f":"MAX(J21:J32)","v":0},null,{"$f":"INDIRECT(CONCATENATE(\"b\",MATCH(MAX(J21:J32),J21:J32,0)+20))","v":{"$error":"#N/A"}},null,null,null,null,null,null,null,null,null,null,null,null,null,null,null,null,"High Match Over Avg ",null,{"$f":"MAX(AE21:AE32)","v":0},null,{"$f":"INDIRECT(CONCATENATE(\"w\",MATCH(MAX(AE21:AE32),AE21:AE32,0)+20))","v":{"$error":"#N/A"}}]

{"sheet":"Home Team Info","index":3,"n_rows":21,"n_cols":2,"rows_kept":21,"cut":false,"hidden":false,"merged":[[2,16,2,17],[2,6,2,7],[2,8,2,9],[2,10,2,11],[2,12,2,13],[2,14,2,15],[2,26,2,27],[2,28,2,29],[2,18,2,19],[2,20,2,21],[2,22,2,23],[2,24,2,25],[2,50,2,51],[2,52,2,53],[2,30,2,31],[2,32,2,33],[2,34,2,35],[2,36,2,37],[2,38,2,39],[2,40,2,41],[2,42,2,43],[2,44,2,45],[2,46,2,47],[2,48,2,49],[2,74,2,75],[2,76,2,77],[2,54,2,55],[2,56,2,57],[2,58,2,59],[2,60,2,61],[2,70,2,71],[2,72,2,73],[2,66,2,67],[2,68,2,69],[2,62,2,63],[2,64,2,65]]}
["Treasury Team Name"]
[]
[]
["Players","SUB X"]
[]
[]
[]
[]
[]
[]
[]
[]
[]
[]
[]
[]
[]
[]
[]
["Number of Players minus subs minus 1 (for High over average)"]
[{"$f":"COUNTA(A5:A16) - COUNTA(B5:B16) -1","v":-1}]

{"sheet":"Match Total","index":4,"n_rows":36,"n_cols":26,"rows_kept":36,"cut":false,"hidden":false,"merged":[]}
[{"$f":"VisitorsName","v":0},"Game 1","Game 2","Game3","Total","Games Shot","Average",null,"High Game","Red",8,9,null,null,null,null,null,"Red",8,9,"Red",8,9,"Red",8,9]
[{"$f":"'Match Set Up'!A6","v":0},{"$f":"IF(Scoresheet!$B$11='Match Total'!A2,Scoresheet!$L$11,IF(Scoresheet!$B$12='Match Total'!A2,Scoresheet!$L$12,IF(Scoresheet!$B$13='Match Total'!A2,Scoresheet!$L$13,IF(Scoresheet!$B$14='Match Total'!A2,Scoresheet!$L$14,IF(Scoresheet!$B$15='Match Total'!A2,Scoresheet!$L$15,\"\")))))","v":0},{"$f":"IF(Scoresheet!$B$22='Match Total'!A2,Scoresheet!$L$22,IF(Scoresheet!$B$23='Match Total'!A2,Scoresheet!$L$23,IF(Scoresheet!$B$24='Match Total'!A2,Scoresheet!$L$24,IF(Scoresheet!$B$25='Match Total'!A2,Scoresheet!$L$25,IF(Scoresheet!$B$26='Match Total'!A2,Scoresheet!$L$26,\"\")))))","v":0},{"$f":"IF(Scoresheet!$B$33='Match Total'!A2,Scoresheet!$L$33,IF(Scoresheet!$B$34='Match Total'!A2,Scoresheet!$L$34,IF(Scoresheet!$B$35='Match Total'!A2,Scoresheet!$L$35,IF(Scoresheet!$B$36='Match Total'!A2,Scoresheet!$L$36,IF(Scoresheet!$B$37='Match Total'!A2,Scoresheet!$L$37,\"\")))))","v":0},{"$f":"SUM(B2:D2)","v":0},{"$f":"IF(E2=0,\"\",COUNT(B2:D2))","v":""},{"$f":"IF(E2=0,\"\",E2/F2)","v":""},null,{"$f":"IF(Scoresheet!Q45= Scoresheet!Q49, Scoresheet!D45,IF(Scoresheet!Q46= Scoresheet!Q49, Scoresheet!D46,IF(Scoresheet!Q47= Scoresheet!Q49, Scoresheet!D47,)))","v":0},{"$f":"SUM(+R2+U2+X2)","v":0},{"$f":"SUM(+S2+V2+Y2)","v":0},0,{"$f":"'Match Set Up'!B6","v":0},null,null,null,null,{"$f":"IF(Scoresheet!$B$11='Match Total'!A2,Scoresheet!$AW$11,IF(Scoresheet!$B$12='Match Total'!A2,Scoresheet!$AW$12,IF(Scoresheet!$B$13='Match Total'!A2,Scoresheet!$AW$13,IF(Scoresheet!$B$14='Match Total'!A2,Scoresheet!$AW$14,IF(Scoresheet!$B$15='Match Total'!A2,Scoresheet!$AW$15,0)))))","v":0},{"$f":"IF(Scoresheet!$B$11='Match Total'!A2,Scoresheet!$AX$11,IF(Scoresheet!$B$12='Match Total'!A2,Scoresheet!$AX$12,IF(Scoresheet!$B$13='Match Total'!A2,Scoresheet!$AX$13,IF(Scoresheet!$B$14='Match Total'!A2,Scoresheet!$AX$14,IF(Scoresheet!$B$15='Match Total'!A2,Scoresheet!$AX$15,0)))))","v":0},{"$f":"IF(Scoresheet!$B$11='Match Total'!A2,Scoresheet!$AY$11,IF(Scoresheet!$B$12='Match Total'!A2,Scoresheet!$AY$12,IF(Scoresheet!$B$13='Match Total'!A2,Scoresheet!$AY$13,IF(Scoresheet!$B$14='Match Total'!A2,Scoresheet!$AY$14,IF(Scoresheet!$B$15='Match Total'!A2,Scoresheet!$AY$15,0)))))","v":0},{"$f":"IF(Scoresheet!$B$22='Match Total'!A2,Scoresheet!$AW$22,IF(Scoresheet!$B$23='Match Total'!A2,Scoresheet!$AW$23,IF(Scoresheet!$B$24='Match Total'!A2,Scoresheet!$AW$24,IF(Scoresheet!$B$25='Match Total'!A2,Scoresheet!$AW$25,IF(Scoresheet!$B$26='Match Total'!A2,Scoresheet!$AW$26,0)))))","v":0},{"$f":"IF(Scoresheet!$B$22='Match Total'!A2,Scoresheet!$AX$22,IF(Scoresheet!$B$23='Match Total'!A2,Scoresheet!$AX$23,IF(Scoresheet!$B$24='Match Total'!A2,Scoresheet!$AX$24,IF(Scoresheet!$B$25='Match Total'!A2,Scoresheet!$AX$25,IF(Scoresheet!$B$26='Match Total'!A2,Scoresheet!$AX$26,0)))))","v":0},{"$f":"IF(Scoresheet!$B$22='Match Total'!A2,Scoresheet!$AY$22,IF(Scoresheet!$B$23='Match Total'!A2,Scoresheet!$AY$23,IF(Scoresheet!$B$24='Match Total'!A2,Scoresheet!$AY$24,IF(Scoresheet!$B$25='Match Total'!A2,Scoresheet!$AY$25,IF(Scoresheet!$B$26='Match Total'!A2,Scoresheet!$AY$26,0)))))","v":0},{"$f":"IF(Scoresheet!$B$33='Match Total'!A2,Scoresheet!$AW$33,IF(Scoresheet!$B$34='Match Total'!A2,Scoresheet!$AW$34,IF(Scoresheet!$B$35='Match Total'!A2,Scoresheet!$AW$35,IF(Scoresheet!$B$36='Match Total'!A2,Scoresheet!$AW$36,IF(Scoresheet!$B$37='Match Total'!A2,Scoresheet!$AW$37,0)))))","v":0},{"$f":"IF(Scoresheet!$B$33='Match Total'!A2,Scoresheet!$AX$33,IF(Scoresheet!$B$34='Match Total'!A2,Scoresheet!$AX$34,IF(Scoresheet!$B$35='Match Total'!A2,Scoresheet!$AX$35,IF(Scoresheet!$B$36='Match Total'!A2,Scoresheet!$AX$36,IF(Scoresheet!$B$37='Match Total'!A2,Scoresheet!$AX$37,0)))))","v":0},{"$f":"IF(Scoresheet!$B$33='Match Total'!A2,Scoresheet!$AY$33,IF(Scoresheet!$B$34='Match Total'!A2,Scoresheet!$AY$34,IF(Scoresheet!$B$35='Match Total'!A2,Scoresheet!$AY$35,IF(Scoresheet!$B$36='Match Total'!A2,Scoresheet!$AY$36,IF(Scoresheet!$B$37='Match Total'!A2,Scoresheet!$AY$37,0)))))","v":0}]
[{"$f":"'Match Set Up'!A7","v":0},{"$f":"IF(Scoresheet!$B$11='Match Total'!A3,Scoresheet!$L$11,IF(Scoresheet!$B$12='Match Total'!A3,Scoresheet!$L$12,IF(Scoresheet!$B$13='Match Total'!A3,Scoresheet!$L$13,IF(Scoresheet!$B$14='Match Total'!A3,Scoresheet!$L$14,IF(Scoresheet!$B$15='Match Total'!A3,Scoresheet!$L$15,\"\")))))","v":0},{"$f":"IF(Scoresheet!$B$22='Match Total'!A3,Scoresheet!$L$22,IF(Scoresheet!$B$23='Match Total'!A3,Scoresheet!$L$23,IF(Scoresheet!$B$24='Match Total'!A3,Scoresheet!$L$24,IF(Scoresheet!$B$25='Match Total'!A3,Scoresheet!$L$25,IF(Scoresheet!$B$26='Match Total'!A3,Scoresheet!$L$26,\"\")))))","v":0},{"$f":"IF(Scoresheet!$B$33='Match Total'!A3,Scoresheet!$L$33,IF(Scoresheet!$B$34='Match Total'!A3,Scoresheet!$L$34,IF(Scoresheet!$B$35='Match Total'!A3,Scoresheet!$L$35,IF(Scoresheet!$B$36='Match Total'!A3,Scoresheet!$L$36,IF(Scoresheet!$B$37='Match Total'!A3,Scoresheet!$L$37,\"\")))))","v":0},0,{"$f":"IF(E3=0,\"\",COUNT(B3:D3))","v":""},{"$f":"IF(E3=0,\"\",E3/F3)","v":""},null,{"$f":"MAX(B2:D13)","v":0},{"$f":"SUM(+R3+U3+X3)","v":0},{"$f":"SUM(+S3+V3+Y3)","v":0},{"$f":"SUM(+T3+W3+Z3)","v":0},{"$f":"'Match Set Up'!B7","v":0},null,null,null,null,{"$f":"IF(Scoresheet!$B$11='Match Total'!A3,Scoresheet!$AW$11,IF(Scoresheet!$B$12='Match Total'!A3,Scoresheet!$AW$12,IF(Scoresheet!$B$13='Match Total'!A3,Scoresheet!$AW$13,IF(Scoresheet!$B$14='Match Total'!A3,Scoresheet!$AW$14,IF(Scoresheet!$B$15='Match Total'!A3,Scoresheet!$AW$15,0)))))","v":0},{"$f":"IF(Scoresheet!$B$11='Match Total'!A3,Scoresheet!$AX$11,IF(Scoresheet!$B$12='Match Total'!A3,Scoresheet!$AX$12,IF(Scoresheet!$B$13='Match Total'!A3,Scoresheet!$AX$13,IF(Scoresheet!$B$14='Match Total'!A3,Scoresheet!$AX$14,IF(Scoresheet!$B$15='Match Total'!A3,Scoresheet!$AX$15,0)))))","v":0},{"$f":"IF(Scoresheet!$B$11='Match Total'!A3,Scoresheet!$AY$11,IF(Scoresheet!$B$12='Match Total'!A3,Scoresheet!$AY$12,IF(Scoresheet!$B$13='Match Total'!A3,Scoresheet!$AY$13,IF(Scoresheet!$B$14='Match Total'!A3,Scoresheet!$AY$14,IF(Scoresheet!$B$15='Match Total'!A3,Scoresheet!$AY$15,0)))))","v":0},{"$f":"IF(Scoresheet!$B$22='Match Total'!A3,Scoresheet!$AW$22,IF(Scoresheet!$B$23='Match Total'!A3,Scoresheet!$AW$23,IF(Scoresheet!$B$24='Match Total'!A3,Scoresheet!$AW$24,IF(Scoresheet!$B$25='Match Total'!A3,Scoresheet!$AW$25,IF(Scoresheet!$B$26='Match Total'!A3,Scoresheet!$AW$26,0)))))","v":0},{"$f":"IF(Scoresheet!$B$22='Match Total'!A3,Scoresheet!$AX$22,IF(Scoresheet!$B$23='Match Total'!A3,Scoresheet!$AX$23,IF(Scoresheet!$B$24='Match Total'!A3,Scoresheet!$AX$24,IF(Scoresheet!$B$25='Match Total'!A3,Scoresheet!$AX$25,IF(Scoresheet!$B$26='Match Total'!A3,Scoresheet!$AX$26,0)))))","v":0},{"$f":"IF(Scoresheet!$B$22='Match Total'!A3,Scoresheet!$AY$22,IF(Scoresheet!$B$23='Match Total'!A3,Scoresheet!$AY$23,IF(Scoresheet!$B$24='Match Total'!A3,Scoresheet!$AY$24,IF(Scoresheet!$B$25='Match Total'!A3,Scoresheet!$AY$25,IF(Scoresheet!$B$26='Match Total'!A3,Scoresheet!$AY$26,0)))))","v":0},{"$f":"IF(Scoresheet!$B$33='Match Total'!A3,Scoresheet!$AW$33,IF(Scoresheet!$B$34='Match Total'!A3,Scoresheet!$AW$34,IF(Scoresheet!$B$35='Match Total'!A3,Scoresheet!$AW$35,IF(Scoresheet!$B$36='Match Total'!A3,Scoresheet!$AW$36,IF(Scoresheet!$B$37='Match Total'!A3,Scoresheet!$AW$37,0)))))","v":0},{"$f":"IF(Scoresheet!$B$33='Match Total'!A3,Scoresheet!$AX$33,IF(Scoresheet!$B$34='Match Total'!A3,Scoresheet!$AX$34,IF(Scoresheet!$B$35='Match Total'!A3,Scoresheet!$AX$35,IF(Scoresheet!$B$36='Match Total'!A3,Scoresheet!$AX$36,IF(Scoresheet!$B$37='Match Total'!A3,Scoresheet!$AX$37,0)))))","v":0},{"$f":"IF(Scoresheet!$B$33='Match Total'!A3,Scoresheet!$AY$33,IF(Scoresheet!$B$34='Match Total'!A3,Scoresheet!$AY$34,IF(Scoresheet!$B$35='Match Total'!A3,Scoresheet!$AY$35,IF(Scoresheet!$B$36='Match Total'!A3,Scoresheet!$AY$36,IF(Scoresheet!$B$37='Match Total'!A3,Scoresheet!$AY$37,0)))))","v":0}]
[{"$f":"'Match Set Up'!A8","v":0},{"$f":"IF(Scoresheet!$B$11='Match Total'!A4,Scoresheet!$L$11,IF(Scoresheet!$B$12='Match Total'!A4,Scoresheet!$L$12,IF(Scoresheet!$B$13='Match Total'!A4,Scoresheet!$L$13,IF(Scoresheet!$B$14='Match Total'!A4,Scoresheet!$L$14,IF(Scoresheet!$B$15='Match Total'!A4,Scoresheet!$L$15,\"\")))))","v":0},{"$f":"IF(Scoresheet!$B$22='Match Total'!A4,Scoresheet!$L$22,IF(Scoresheet!$B$23='Match Total'!A4,Scoresheet!$L$23,IF(Scoresheet!$B$24='Match Total'!A4,Scoresheet!$L$24,IF(Scoresheet!$B$25='Match Total'!A4,Scoresheet!$L$25,IF(Scoresheet!$B$26='Match Total'!A4,Scoresheet!$L$26,\"\")))))","v":0},{"$f":"IF(Scoresheet!$B$33='Match Total'!A4,Scoresheet!$L$33,IF(Scoresheet!$B$34='Match Total'!A4,Scoresheet!$L$34,IF(Scoresheet!$B$35='Match Total'!A4,Scoresheet!$L$35,IF(Scoresheet!$B$36='Match Total'!A4,Scoresheet!$L$36,IF(Scoresheet!$B$37='Match Total'!A4,Scoresheet!$L$37,\"\")))))","v":0},0,"","",null,null,0,0,0,{"$f":"'Match Set Up'!B8","v":0},null,null,null,null,{"$f":"IF(Scoresheet!$B$11='Match Total'!A4,Scoresheet!$AW$11,IF(Scoresheet!$B$12='Match Total'!A4,Scoresheet!$AW$12,IF(Scoresheet!$B$13='Match Total'!A4,Scoresheet!$AW$13,IF(Scoresheet!$B$14='Match Total'!A4,Scoresheet!$AW$14,IF(Scoresheet!$B$15='Match Total'!A4,Scoresheet!$AW$15,0)))))","v":0},{"$f":"IF(Scoresheet!$B$11='Match Total'!A4,Scoresheet!$AX$11,IF(Scoresheet!$B$12='Match Total'!A4,Scoresheet!$AX$12,IF(Scoresheet!$B$13='Match Total'!A4,Scoresheet!$AX$13,IF(Scoresheet!$B$14='Match Total'!A4,Scoresheet!$AX$14,IF(Scoresheet!$B$15='Match Total'!A4,Scoresheet!$AX$15,0)))))","v":0},{"$f":"IF(Scoresheet!$B$11='Match Total'!A4,Scoresheet!$AY$11,IF(Scoresheet!$B$12='Match Total'!A4,Scoresheet!$AY$12,IF(Scoresheet!$B$13='Match Total'!A4,Scoresheet!$AY$13,IF(Scoresheet!$B$14='Match Total'!A4,Scoresheet!$AY$14,IF(Scoresheet!$B$15='Match Total'!A4,Scoresheet!$AY$15,0)))))","v":0},{"$f":"IF(Scoresheet!$B$22='Match Total'!A4,Scoresheet!$AW$22,IF(Scoresheet!$B$23='Match Total'!A4,Scoresheet!$AW$23,IF(Scoresheet!$B$24='Match Total'!A4,Scoresheet!$AW$24,IF(Scoresheet!$B$25='Match Total'!A4,Scoresheet!$AW$25,IF(Scoresheet!$B$26='Match Total'!A4,Scoresheet!$AW$26,0)))))","v":0},{"$f":"IF(Scoresheet!$B$22='Match Total'!A4,Scoresheet!$AX$22,IF(Scoresheet!$B$23='Match Total'!A4,Scoresheet!$AX$23,IF(Scoresheet!$B$24='Match Total'!A4,Scoresheet!$AX$24,IF(Scoresheet!$B$25='Match Total'!A4,Scoresheet!$AX$25,IF(Scoresheet!$B$26='Match Total'!A4,Scoresheet!$AX$26,0)))))","v":0},{"$f":"IF(Scoresheet!$B$22='Match Total'!A4,Scoresheet!$AY$22,IF(Scoresheet!$B$23='Match Total'!A4,Scoresheet!$AY$23,IF(Scoresheet!$B$24='Match Total'!A4,Scoresheet!$AY$24,IF(Scoresheet!$B$25='Match Total'!A4,Scoresheet!$AY$25,IF(Scoresheet!$B$26='Match Total'!A4,Scoresheet!$AY$26,0)))))","v":0},{"$f":"IF(Scoresheet!$B$33='Match Total'!A4,Scoresheet!$AW$33,IF(Scoresheet!$B$34='Match Total'!A4,Scoresheet!$AW$34,IF(Scoresheet!$B$35='Match Total'!A4,Scoresheet!$AW$35,IF(Scoresheet!$B$36='Match Total'!A4,Scoresheet!$AW$36,IF(Scoresheet!$B$37='Match Total'!A4,Scoresheet!$AW$37,0)))))","v":0},{"$f":"IF(Scoresheet!$B$33='Match Total'!A4,Scoresheet!$AX$33,IF(Scoresheet!$B$34='Match Total'!A4,Scoresheet!$AX$34,IF(Scoresheet!$B$35='Match Total'!A4,Scoresheet!$AX$35,IF(Scoresheet!$B$36='Match Total'!A4,Scoresheet!$AX$36,IF(Scoresheet!$B$37='Match Total'!A4,Scoresheet!$AX$37,0)))))","v":0},{"$f":"IF(Scoresheet!$B$33='Match Total'!A4,Scoresheet!$AY$33,IF(Scoresheet!$B$34='Match Total'!A4,Scoresheet!$AY$34,IF(Scoresheet!$B$35='Match Total'!A4,Scoresheet!$AY$35,IF(Scoresheet!$B$36='Match Total'!A4,Scoresheet!$AY$36,IF(Scoresheet!$B$37='Match Total'!A4,Scoresheet!$AY$37,0)))))","v":0}]
[{"$f":"'Match Set Up'!A9","v":0},{"$f":"IF(Scoresheet!$B$11='Match Total'!A5,Scoresheet!$L$11,IF(Scoresheet!$B$12='Match Total'!A5,Scoresheet!$L$12,IF(Scoresheet!$B$13='Match Total'!A5,Scoresheet!$L$13,IF(Scoresheet!$B$14='Match Total'!A5,Scoresheet!$L$14,IF(Scoresheet!$B$15='Match Total'!A5,Scoresheet!$L$15,\"\")))))","v":0},{"$f":"IF(Scoresheet!$B$22='Match Total'!A5,Scoresheet!$L$22,IF(Scoresheet!$B$23='Match Total'!A5,Scoresheet!$L$23,IF(Scoresheet!$B$24='Match Total'!A5,Scoresheet!$L$24,IF(Scoresheet!$B$25='Match Total'!A5,Scoresheet!$L$25,IF(Scoresheet!$B$26='Match Total'!A5,Scoresheet!$L$26,\"\")))))","v":0},{"$f":"IF(Scoresheet!$B$33='Match Total'!A5,Scoresheet!$L$33,IF(Scoresheet!$B$34='Match Total'!A5,Scoresheet!$L$34,IF(Scoresheet!$B$35='Match Total'!A5,Scoresheet!$L$35,IF(Scoresheet!$B$36='Match Total'!A5,Scoresheet!$L$36,IF(Scoresheet!$B$37='Match Total'!A5,Scoresheet!$L$37,\"\")))))","v":0},0,"","",null,"High Series",0,0,0,{"$f":"'Match Set Up'!B9","v":0},null,null,null,null,{"$f":"IF(Scoresheet!$B$11='Match Total'!A5,Scoresheet!$AW$11,IF(Scoresheet!$B$12='Match Total'!A5,Scoresheet!$AW$12,IF(Scoresheet!$B$13='Match Total'!A5,Scoresheet!$AW$13,IF(Scoresheet!$B$14='Match Total'!A5,Scoresheet!$AW$14,IF(Scoresheet!$B$15='Match Total'!A5,Scoresheet!$AW$15,0)))))","v":0},{"$f":"IF(Scoresheet!$B$11='Match Total'!A5,Scoresheet!$AX$11,IF(Scoresheet!$B$12='Match Total'!A5,Scoresheet!$AX$12,IF(Scoresheet!$B$13='Match Total'!A5,Scoresheet!$AX$13,IF(Scoresheet!$B$14='Match Total'!A5,Scoresheet!$AX$14,IF(Scoresheet!$B$15='Match Total'!A5,Scoresheet!$AX$15,0)))))","v":0},{"$f":"IF(Scoresheet!$B$11='Match Total'!A5,Scoresheet!$AY$11,IF(Scoresheet!$B$12='Match Total'!A5,Scoresheet!$AY$12,IF(Scoresheet!$B$13='Match Total'!A5,Scoresheet!$AY$13,IF(Scoresheet!$B$14='Match Total'!A5,Scoresheet!$AY$14,IF(Scoresheet!$B$15='Match Total'!A5,Scoresheet!$AY$15,0)))))","v":0},{"$f":"IF(Scoresheet!$B$22='Match Total'!A5,Scoresheet!$AW$22,IF(Scoresheet!$B$23='Match Total'!A5,Scoresheet!$AW$23,IF(Scoresheet!$B$24='Match Total'!A5,Scoresheet!$AW$24,IF(Scoresheet!$B$25='Match Total'!A5,Scoresheet!$AW$25,IF(Scoresheet!$B$26='Match Total'!A5,Scoresheet!$AW$26,0)))))","v":0},{"$f":"IF(Scoresheet!$B$22='Match Total'!A5,Scoresheet!$AX$22,IF(Scoresheet!$B$23='Match Total'!A5,Scoresheet!$AX$23,IF(Scoresheet!$B$24='Match Total'!A5,Scoresheet!$AX$24,IF(Scoresheet!$B$25='Match Total'!A5,Scoresheet!$AX$25,IF(Scoresheet!$B$26='Match Total'!A5,Scoresheet!$AX$26,0)))))","v":0},{"$f":"IF(Scoresheet!$B$22='Match Total'!A5,Scoresheet!$AY$22,IF(Scoresheet!$B$23='Match Total'!A5,Scoresheet!$AY$23,IF(Scoresheet!$B$24='Match Total'!A5,Scoresheet!$AY$24,IF(Scoresheet!$B$25='Match Total'!A5,Scoresheet!$AY$25,IF(Scoresheet!$B$26='Match Total'!A5,Scoresheet!$AY$26,0)))))","v":0},{"$f":"IF(Scoresheet!$B$33='Match Total'!A5,Scoresheet!$AW$33,IF(Scoresheet!$B$34='Match Total'!A5,Scoresheet!$AW$34,IF(Scoresheet!$B$35='Match Total'!A5,Scoresheet!$AW$35,IF(Scoresheet!$B$36='Match Total'!A5,Scoresheet!$AW$36,IF(Scoresheet!$B$37='Match Total'!A5,Scoresheet!$AW$37,0)))))","v":0},{"$f":"IF(Scoresheet!$B$33='Match Total'!A5,Scoresheet!$AX$33,IF(Scoresheet!$B$34='Match Total'!A5,Scoresheet!$AX$34,IF(Scoresheet!$B$35='Match Total'!A5,Scoresheet!$AX$35,IF(Scoresheet!$B$36='Match Total'!A5,Scoresheet!$AX$36,IF(Scoresheet!$B$37='Match Total'!A5,Scoresheet!$AX$37,0)))))","v":0},{"$f":"IF(Scoresheet!$B$33='Match Total'!A5,Scoresheet!$AY$33,IF(Scoresheet!$B$34='Match Total'!A5,Scoresheet!$AY$34,IF(Scoresheet!$B$35='Match Total'!A5,Scoresheet!$AY$35,IF(Scoresheet!$B$36='Match Total'!A5,Scoresheet!$AY$36,IF(Scoresheet!$B$37='Match Total'!A5,Scoresheet!$AY$37,0)))))","v":0}]
[{"$f":"'Match Set Up'!A10","v":0},{"$f":"IF(Scoresheet!$B$11='Match Total'!A6,Scoresheet!$L$11,IF(Scoresheet!$B$12='Match Total'!A6,Scoresheet!$L$12,IF(Scoresheet!$B$13='Match Total'!A6,Scoresheet!$L$13,IF(Scoresheet!$B$14='Match Total'!A6,Scoresheet!$L$14,IF(Scoresheet!$B$15='Match Total'!A6,Scoresheet!$L$15,\"\")))))","v":0},{"$f":"IF(Scoresheet!$B$22='Match Total'!A6,Scoresheet!$L$22,IF(Scoresheet!$B$23='Match Total'!A6,Scoresheet!$L$23,IF(Scoresheet!$B$24='Match Total'!A6,Scoresheet!$L$24,IF(Scoresheet!$B$25='Match Total'!A6,Scoresheet!$L$25,IF(Scoresheet!$B$26='Match Total'!A6,Scoresheet!$L$26,\"\")))))","v":0},{"$f":"IF(Scoresheet!$B$33='Match Total'!A6,Scoresheet!$L$33,IF(Scoresheet!$B$34='Match Total'!A6,Scoresheet!$L$34,IF(Scoresheet!$B$35='Match Total'!A6,Scoresheet!$L$35,IF(Scoresheet!$B$36='Match Total'!A6,Scoresheet!$L$36,IF(Scoresheet!$B$37='Match Total'!A6,Scoresheet!$L$37,\"\")))))","v":0},0,"","",null,{"$f":"INDIRECT(CONCATENATE(\"A\",MATCH(MAX(E2:E13),E2:E13,0)+1))","v":0},0,0,0,{"$f":"'Match Set Up'!B10","v":0},null,null,null,null,{"$f":"IF(Scoresheet!$B$11='Match Total'!A6,Scoresheet!$AW$11,IF(Scoresheet!$B$12='Match Total'!A6,Scoresheet!$AW$12,IF(Scoresheet!$B$13='Match Total'!A6,Scoresheet!$AW$13,IF(Scoresheet!$B$14='Match Total'!A6,Scoresheet!$AW$14,IF(Scoresheet!$B$15='Match Total'!A6,Scoresheet!$AW$15,0)))))","v":0},{"$f":"IF(Scoresheet!$B$11='Match Total'!A6,Scoresheet!$AX$11,IF(Scoresheet!$B$12='Match Total'!A6,Scoresheet!$AX$12,IF(Scoresheet!$B$13='Match Total'!A6,Scoresheet!$AX$13,IF(Scoresheet!$B$14='Match Total'!A6,Scoresheet!$AX$14,IF(Scoresheet!$B$15='Match Total'!A6,Scoresheet!$AX$15,0)))))","v":0},{"$f":"IF(Scoresheet!$B$11='Match Total'!A6,Scoresheet!$AY$11,IF(Scoresheet!$B$12='Match Total'!A6,Scoresheet!$AY$12,IF(Scoresheet!$B$13='Match Total'!A6,Scoresheet!$AY$13,IF(Scoresheet!$B$14='Match Total'!A6,Scoresheet!$AY$14,IF(Scoresheet!$B$15='Match Total'!A6,Scoresheet!$AY$15,0)))))","v":0},{"$f":"IF(Scoresheet!$B$22='Match Total'!A6,Scoresheet!$AW$22,IF(Scoresheet!$B$23='Match Total'!A6,Scoresheet!$AW$23,IF(Scoresheet!$B$24='Match Total'!A6,Scoresheet!$AW$24,IF(Scoresheet!$B$25='Match Total'!A6,Scoresheet!$AW$25,IF(Scoresheet!$B$26='Match Total'!A6,Scoresheet!$AW$26,0)))))","v":0},{"$f":"IF(Scoresheet!$B$22='Match Total'!A6,Scoresheet!$AX$22,IF(Scoresheet!$B$23='Match Total'!A6,Scoresheet!$AX$23,IF(Scoresheet!$B$24='Match Total'!A6,Scoresheet!$AX$24,IF(Scoresheet!$B$25='Match Total'!A6,Scoresheet!$AX$25,IF(Scoresheet!$B$26='Match Total'!A6,Scoresheet!$AX$26,0)))))","v":0},{"$f":"IF(Scoresheet!$B$22='Match Total'!A6,Scoresheet!$AY$22,IF(Scoresheet!$B$23='Match Total'!A6,Scoresheet!$AY$23,IF(Scoresheet!$B$24='Match Total'!A6,Scoresheet!$AY$24,IF(Scoresheet!$B$25='Match Total'!A6,Scoresheet!$AY$25,IF(Scoresheet!$B$26='Match Total'!A6,Scoresheet!$AY$26,0)))))","v":0},{"$f":"IF(Scoresheet!$B$33='Match Total'!A6,Scoresheet!$AW$33,IF(Scoresheet!$B$34='Match Total'!A6,Scoresheet!$AW$34,IF(Scoresheet!$B$35='Match Total'!A6,Scoresheet!$AW$35,IF(Scoresheet!$B$36='Match Total'!A6,Scoresheet!$AW$36,IF(Scoresheet!$B$37='Match Total'!A6,Scoresheet!$AW$37,0)))))","v":0},{"$f":"IF(Scoresheet!$B$33='Match Total'!A6,Scoresheet!$AX$33,IF(Scoresheet!$B$34='Match Total'!A6,Scoresheet!$AX$34,IF(Scoresheet!$B$35='Match Total'!A6,Scoresheet!$AX$35,IF(Scoresheet!$B$36='Match Total'!A6,Scoresheet!$AX$36,IF(Scoresheet!$B$37='Match Total'!A6,Scoresheet!$AX$37,0)))))","v":0},{"$f":"IF(Scoresheet!$B$33='Match Total'!A6,Scoresheet!$AY$33,IF(Scoresheet!$B$34='Match Total'!A6,Scoresheet!$AY$34,IF(Scoresheet!$B$35='Match Total'!A6,Scoresheet!$AY$35,IF(Scoresheet!$B$36='Match Total'!A6,Scoresheet!$AY$36,IF(Scoresheet!$B$37='Match Total'!A6,Scoresheet!$AY$37,0)))))","v":0}]
[{"$f":"'Match Set Up'!A11","v":0},{"$f":"IF(Scoresheet!$B$11='Match Total'!A7,Scoresheet!$L$11,IF(Scoresheet!$B$12='Match Total'!A7,Scoresheet!$L$12,IF(Scoresheet!$B$13='Match Total'!A7,Scoresheet!$L$13,IF(Scoresheet!$B$14='Match Total'!A7,Scoresheet!$L$14,IF(Scoresheet!$B$15='Match Total'!A7,Scoresheet!$L$15,\"\")))))","v":0},{"$f":"IF(Scoresheet!$B$22='Match Total'!A7,Scoresheet!$L$22,IF(Scoresheet!$B$23='Match Total'!A7,Scoresheet!$L$23,IF(Scoresheet!$B$24='Match Total'!A7,Scoresheet!$L$24,IF(Scoresheet!$B$25='Match Total'!A7,Scoresheet!$L$25,IF(Scoresheet!$B$26='Match Total'!A7,Scoresheet!$L$26,\"\")))))","v":0},{"$f":"IF(Scoresheet!$B$33='Match Total'!A7,Scoresheet!$L$33,IF(Scoresheet!$B$34='Match Total'!A7,Scoresheet!$L$34,IF(Scoresheet!$B$35='Match Total'!A7,Scoresheet!$L$35,IF(Scoresheet!$B$36='Match Total'!A7,Scoresheet!$L$36,IF(Scoresheet!$B$37='Match Total'!A7,Scoresheet!$L$37,\"\")))))","v":0},0,"","",null,{"$f":"MAX(E2:E13)","v":0},0,0,0,{"$f":"'Match Set Up'!B11","v":0},null,null,null,null,{"$f":"IF(Scoresheet!$B$11='Match Total'!A7,Scoresheet!$AW$11,IF(Scoresheet!$B$12='Match Total'!A7,Scoresheet!$AW$12,IF(Scoresheet!$B$13='Match Total'!A7,Scoresheet!$AW$13,IF(Scoresheet!$B$14='Match Total'!A7,Scoresheet!$AW$14,IF(Scoresheet!$B$15='Match Total'!A7,Scoresheet!$AW$15,0)))))","v":0},{"$f":"IF(Scoresheet!$B$11='Match Total'!A7,Scoresheet!$AX$11,IF(Scoresheet!$B$12='Match Total'!A7,Scoresheet!$AX$12,IF(Scoresheet!$B$13='Match Total'!A7,Scoresheet!$AX$13,IF(Scoresheet!$B$14='Match Total'!A7,Scoresheet!$AX$14,IF(Scoresheet!$B$15='Match Total'!A7,Scoresheet!$AX$15,0)))))","v":0},{"$f":"IF(Scoresheet!$B$11='Match Total'!A7,Scoresheet!$AY$11,IF(Scoresheet!$B$12='Match Total'!A7,Scoresheet!$AY$12,IF(Scoresheet!$B$13='Match Total'!A7,Scoresheet!$AY$13,IF(Scoresheet!$B$14='Match Total'!A7,Scoresheet!$AY$14,IF(Scoresheet!$B$15='Match Total'!A7,Scoresheet!$AY$15,0)))))","v":0},{"$f":"IF(Scoresheet!$B$22='Match Total'!A7,Scoresheet!$AW$22,IF(Scoresheet!$B$23='Match Total'!A7,Scoresheet!$AW$23,IF(Scoresheet!$B$24='Match Total'!A7,Scoresheet!$AW$24,IF(Scoresheet!$B$25='Match Total'!A7,Scoresheet!$AW$25,IF(Scoresheet!$B$26='Match Total'!A7,Scoresheet!$AW$26,0)))))","v":0},{"$f":"IF(Scoresheet!$B$22='Match Total'!A7,Scoresheet!$AX$22,IF(Scoresheet!$B$23='Match Total'!A7,Scoresheet!$AX$23,IF(Scoresheet!$B$24='Match Total'!A7,Scoresheet!$AX$24,IF(Scoresheet!$B$25='Match Total'!A7,Scoresheet!$AX$25,IF(Scoresheet!$B$26='Match Total'!A7,Scoresheet!$AX$26,0)))))","v":0},{"$f":"IF(Scoresheet!$B$22='Match Total'!A7,Scoresheet!$AY$22,IF(Scoresheet!$B$23='Match Total'!A7,Scoresheet!$AY$23,IF(Scoresheet!$B$24='Match Total'!A7,Scoresheet!$AY$24,IF(Scoresheet!$B$25='Match Total'!A7,Scoresheet!$AY$25,IF(Scoresheet!$B$26='Match Total'!A7,Scoresheet!$AY$26,0)))))","v":0},{"$f":"IF(Scoresheet!$B$33='Match Total'!A7,Scoresheet!$AW$33,IF(Scoresheet!$B$34='Match Total'!A7,Scoresheet!$AW$34,IF(Scoresheet!$B$35='Match Total'!A7,Scoresheet!$AW$35,IF(Scoresheet!$B$36='Match Total'!A7,Scoresheet!$AW$36,IF(Scoresheet!$B$37='Match Total'!A7,Scoresheet!$AW$37,0)))))","v":0},{"$f":"IF(Scoresheet!$B$33='Match Total'!A7,Scoresheet!$AX$33,IF(Scoresheet!$B$34='Match Total'!A7,Scoresheet!$AX$34,IF(Scoresheet!$B$35='Match Total'!A7,Scoresheet!$AX$35,IF(Scoresheet!$B$36='Match Total'!A7,Scoresheet!$AX$36,IF(Scoresheet!$B$37='Match Total'!A7,Scoresheet!$AX$37,0)))))","v":0},{"$f":"IF(Scoresheet!$B$33='Match Total'!A7,Scoresheet!$AY$33,IF(Scoresheet!$B$34='Match Total'!A7,Scoresheet!$AY$34,IF(Scoresheet!$B$35='Match Total'!A7,Scoresheet!$AY$35,IF(Scoresheet!$B$36='Match Total'!A7,Scoresheet!$AY$36,IF(Scoresheet!$B$37='Match Total'!A7,Scoresheet!$AY$37,0)))))","v":0}]
[{"$f":"'Match Set Up'!A12","v":0},{"$f":"IF(Scoresheet!$B$11='Match Total'!A8,Scoresheet!$L$11,IF(Scoresheet!$B$12='Match Total'!A8,Scoresheet!$L$12,IF(Scoresheet!$B$13='Match Total'!A8,Scoresheet!$L$13,IF(Scoresheet!$B$14='Match Total'!A8,Scoresheet!$L$14,IF(Scoresheet!$B$15='Match Total'!A8,Scoresheet!$L$15,\"\")))))","v":0},{"$f":"IF(Scoresheet!$B$22='Match Total'!A8,Scoresheet!$L$22,IF(Scoresheet!$B$23='Match Total'!A8,Scoresheet!$L$23,IF(Scoresheet!$B$24='Match Total'!A8,Scoresheet!$L$24,IF(Scoresheet!$B$25='Match Total'!A8,Scoresheet!$L$25,IF(Scoresheet!$B$26='Match Total'!A8,Scoresheet!$L$26,\"\")))))","v":0},{"$f":"IF(Scoresheet!$B$33='Match Total'!A8,Scoresheet!$L$33,IF(Scoresheet!$B$34='Match Total'!A8,Scoresheet!$L$34,IF(Scoresheet!$B$35='Match Total'!A8,Scoresheet!$L$35,IF(Scoresheet!$B$36='Match Total'!A8,Scoresheet!$L$36,IF(Scoresheet!$B$37='Match Total'!A8,Scoresheet!$L$37,\"\")))))","v":0},0,"","",null,null,0,0,0,{"$f":"'Match Set Up'!B12","v":0},null,null,null,null,{"$f":"IF(Scoresheet!$B$11='Match Total'!A8,Scoresheet!$AW$11,IF(Scoresheet!$B$12='Match Total'!A8,Scoresheet!$AW$12,IF(Scoresheet!$B$13='Match Total'!A8,Scoresheet!$AW$13,IF(Scoresheet!$B$14='Match Total'!A8,Scoresheet!$AW$14,IF(Scoresheet!$B$15='Match Total'!A8,Scoresheet!$AW$15,0)))))","v":0},{"$f":"IF(Scoresheet!$B$11='Match Total'!A8,Scoresheet!$AX$11,IF(Scoresheet!$B$12='Match Total'!A8,Scoresheet!$AX$12,IF(Scoresheet!$B$13='Match Total'!A8,Scoresheet!$AX$13,IF(Scoresheet!$B$14='Match Total'!A8,Scoresheet!$AX$14,IF(Scoresheet!$B$15='Match Total'!A8,Scoresheet!$AX$15,0)))))","v":0},{"$f":"IF(Scoresheet!$B$11='Match Total'!A8,Scoresheet!$AY$11,IF(Scoresheet!$B$12='Match Total'!A8,Scoresheet!$AY$12,IF(Scoresheet!$B$13='Match Total'!A8,Scoresheet!$AY$13,IF(Scoresheet!$B$14='Match Total'!A8,Scoresheet!$AY$14,IF(Scoresheet!$B$15='Match Total'!A8,Scoresheet!$AY$15,0)))))","v":0},{"$f":"IF(Scoresheet!$B$22='Match Total'!A8,Scoresheet!$AW$22,IF(Scoresheet!$B$23='Match Total'!A8,Scoresheet!$AW$23,IF(Scoresheet!$B$24='Match Total'!A8,Scoresheet!$AW$24,IF(Scoresheet!$B$25='Match Total'!A8,Scoresheet!$AW$25,IF(Scoresheet!$B$26='Match Total'!A8,Scoresheet!$AW$26,0)))))","v":0},{"$f":"IF(Scoresheet!$B$22='Match Total'!A8,Scoresheet!$AX$22,IF(Scoresheet!$B$23='Match Total'!A8,Scoresheet!$AX$23,IF(Scoresheet!$B$24='Match Total'!A8,Scoresheet!$AX$24,IF(Scoresheet!$B$25='Match Total'!A8,Scoresheet!$AX$25,IF(Scoresheet!$B$26='Match Total'!A8,Scoresheet!$AX$26,0)))))","v":0},{"$f":"IF(Scoresheet!$B$22='Match Total'!A8,Scoresheet!$AY$22,IF(Scoresheet!$B$23='Match Total'!A8,Scoresheet!$AY$23,IF(Scoresheet!$B$24='Match Total'!A8,Scoresheet!$AY$24,IF(Scoresheet!$B$25='Match Total'!A8,Scoresheet!$AY$25,IF(Scoresheet!$B$26='Match Total'!A8,Scoresheet!$AY$26,0)))))","v":0},{"$f":"IF(Scoresheet!$B$33='Match Total'!A8,Scoresheet!$AW$33,IF(Scoresheet!$B$34='Match Total'!A8,Scoresheet!$AW$34,IF(Scoresheet!$B$35='Match Total'!A8,Scoresheet!$AW$35,IF(Scoresheet!$B$36='Match Total'!A8,Scoresheet!$AW$36,IF(Scoresheet!$B$37='Match Total'!A8,Scoresheet!$AW$37,0)))))","v":0},{"$f":"IF(Scoresheet!$B$33='Match Total'!A8,Scoresheet!$AX$33,IF(Scoresheet!$B$34='Match Total'!A8,Scoresheet!$AX$34,IF(Scoresheet!$B$35='Match Total'!A8,Scoresheet!$AX$35,IF(Scoresheet!$B$36='Match Total'!A8,Scoresheet!$AX$36,IF(Scoresheet!$B$37='Match Total'!A8,Scoresheet!$AX$37,0)))))","v":0},{"$f":"IF(Scoresheet!$B$33='Match Total'!A8,Scoresheet!$AY$33,IF(Scoresheet!$B$34='Match Total'!A8,Scoresheet!$AY$34,IF(Scoresheet!$B$35='Match Total'!A8,Scoresheet!$AY$35,IF(Scoresheet!$B$36='Match Total'!A8,Scoresheet!$AY$36,IF(Scoresheet!$B$37='Match Total'!A8,Scoresheet!$AY$37,0)))))","v":0}]
[{"$f":"'Match Set Up'!A13","v":0},{"$f":"IF(Scoresheet!$B$11='Match Total'!A9,Scoresheet!$L$11,IF(Scoresheet!$B$12='Match Total'!A9,Scoresheet!$L$12,IF(Scoresheet!$B$13='Match Total'!A9,Scoresheet!$L$13,IF(Scoresheet!$B$14='Match Total'!A9,Scoresheet!$L$14,IF(Scoresheet!$B$15='Match Total'!A9,Scoresheet!$L$15,\"\")))))","v":0},{"$f":"IF(Scoresheet!$B$22='Match Total'!A9,Scoresheet!$L$22,IF(Scoresheet!$B$23='Match Total'!A9,Scoresheet!$L$23,IF(Scoresheet!$B$24='Match Total'!A9,Scoresheet!$L$24,IF(Scoresheet!$B$25='Match Total'!A9,Scoresheet!$L$25,IF(Scoresheet!$B$26='Match Total'!A9,Scoresheet!$L$26,\"\")))))","v":0},{"$f":"IF(Scoresheet!$B$33='Match Total'!A9,Scoresheet!$L$33,IF(Scoresheet!$B$34='Match Total'!A9,Scoresheet!$L$34,IF(Scoresheet!$B$35='Match Total'!A9,Scoresheet!$L$35,IF(Scoresheet!$B$36='Match Total'!A9,Scoresheet!$L$36,IF(Scoresheet!$B$37='Match Total'!A9,Scoresheet!$L$37,\"\")))))","v":0},{"$f":"SUM(B9:D9)","v":0},"","",null,"High Team Game",0,0,0,{"$f":"'Match Set Up'!B13","v":0},null,null,null,null,{"$f":"IF(Scoresheet!$B$11='Match Total'!A9,Scoresheet!$AW$11,IF(Scoresheet!$B$12='Match Total'!A9,Scoresheet!$AW$12,IF(Scoresheet!$B$13='Match Total'!A9,Scoresheet!$AW$13,IF(Scoresheet!$B$14='Match Total'!A9,Scoresheet!$AW$14,IF(Scoresheet!$B$15='Match Total'!A9,Scoresheet!$AW$15,0)))))","v":0},{"$f":"IF(Scoresheet!$B$11='Match Total'!A9,Scoresheet!$AX$11,IF(Scoresheet!$B$12='Match Total'!A9,Scoresheet!$AX$12,IF(Scoresheet!$B$13='Match Total'!A9,Scoresheet!$AX$13,IF(Scoresheet!$B$14='Match Total'!A9,Scoresheet!$AX$14,IF(Scoresheet!$B$15='Match Total'!A9,Scoresheet!$AX$15,0)))))","v":0},{"$f":"IF(Scoresheet!$B$11='Match Total'!A9,Scoresheet!$AY$11,IF(Scoresheet!$B$12='Match Total'!A9,Scoresheet!$AY$12,IF(Scoresheet!$B$13='Match Total'!A9,Scoresheet!$AY$13,IF(Scoresheet!$B$14='Match Total'!A9,Scoresheet!$AY$14,IF(Scoresheet!$B$15='Match Total'!A9,Scoresheet!$AY$15,0)))))","v":0},{"$f":"IF(Scoresheet!$B$22='Match Total'!A9,Scoresheet!$AW$22,IF(Scoresheet!$B$23='Match Total'!A9,Scoresheet!$AW$23,IF(Scoresheet!$B$24='Match Total'!A9,Scoresheet!$AW$24,IF(Scoresheet!$B$25='Match Total'!A9,Scoresheet!$AW$25,IF(Scoresheet!$B$26='Match Total'!A9,Scoresheet!$AW$26,0)))))","v":0},{"$f":"IF(Scoresheet!$B$22='Match Total'!A9,Scoresheet!$AX$22,IF(Scoresheet!$B$23='Match Total'!A9,Scoresheet!$AX$23,IF(Scoresheet!$B$24='Match Total'!A9,Scoresheet!$AX$24,IF(Scoresheet!$B$25='Match Total'!A9,Scoresheet!$AX$25,IF(Scoresheet!$B$26='Match Total'!A9,Scoresheet!$AX$26,0)))))","v":0},{"$f":"IF(Scoresheet!$B$22='Match Total'!A9,Scoresheet!$AY$22,IF(Scoresheet!$B$23='Match Total'!A9,Scoresheet!$AY$23,IF(Scoresheet!$B$24='Match Total'!A9,Scoresheet!$AY$24,IF(Scoresheet!$B$25='Match Total'!A9,Scoresheet!$AY$25,IF(Scoresheet!$B$26='Match Total'!A9,Scoresheet!$AY$26,0)))))","v":0},{"$f":"IF(Scoresheet!$B$33='Match Total'!A9,Scoresheet!$AW$33,IF(Scoresheet!$B$34='Match Total'!A9,Scoresheet!$AW$34,IF(Scoresheet!$B$35='Match Total'!A9,Scoresheet!$AW$35,IF(Scoresheet!$B$36='Match Total'!A9,Scoresheet!$AW$36,IF(Scoresheet!$B$37='Match Total'!A9,Scoresheet!$AW$37,0)))))","v":0},{"$f":"IF(Scoresheet!$B$33='Match Total'!A9,Scoresheet!$AX$33,IF(Scoresheet!$B$34='Match Total'!A9,Scoresheet!$AX$34,IF(Scoresheet!$B$35='Match Total'!A9,Scoresheet!$AX$35,IF(Scoresheet!$B$36='Match Total'!A9,Scoresheet!$AX$36,IF(Scoresheet!$B$37='Match Total'!A9,Scoresheet!$AX$37,0)))))","v":0},{"$f":"IF(Scoresheet!$B$33='Match Total'!A9,Scoresheet!$AY$33,IF(Scoresheet!$B$34='Match Total'!A9,Scoresheet!$AY$34,IF(Scoresheet!$B$35='Match Total'!A9,Scoresheet!$AY$35,IF(Scoresheet!$B$36='Match Total'!A9,Scoresheet!$AY$36,IF(Scoresheet!$B$37='Match Total'!A9,Scoresheet!$AY$37,0)))))","v":0}]
[{"$f":"'Match Set Up'!A14","v":0},{"$f":"IF(Scoresheet!$B$11='Match Total'!A10,Scoresheet!$L$11,IF(Scoresheet!$B$12='Match Total'!A10,Scoresheet!$L$12,IF(Scoresheet!$B$13='Match Total'!A10,Scoresheet!$L$13,IF(Scoresheet!$B$14='Match Total'!A10,Scoresheet!$L$14,IF(Scoresheet!$B$15='Match Total'!A10,Scoresheet!$L$15,\"\")))))","v":0},{"$f":"IF(Scoresheet!$B$22='Match Total'!A10,Scoresheet!$L$22,IF(Scoresheet!$B$23='Match Total'!A10,Scoresheet!$L$23,IF(Scoresheet!$B$24='Match Total'!A10,Scoresheet!$L$24,IF(Scoresheet!$B$25='Match Total'!A10,Scoresheet!$L$25,IF(Scoresheet!$B$26='Match Total'!A10,Scoresheet!$L$26,\"\")))))","v":0},{"$f":"IF(Scoresheet!$B$33='Match Total'!A10,Scoresheet!$L$33,IF(Scoresheet!$B$34='Match Total'!A10,Scoresheet!$L$34,IF(Scoresheet!$B$35='Match Total'!A10,Scoresheet!$L$35,IF(Scoresheet!$B$36='Match Total'!A10,Scoresheet!$L$36,IF(Scoresheet!$B$37='Match Total'!A10,Scoresheet!$L$37,\"\")))))","v":0},{"$f":"SUM(B10:D10)","v":0},"","",null,{"$f":"MAX(B15:D15)","v":0},0,0,0,{"$f":"'Match Set Up'!B14","v":0},null,null,null,null,{"$f":"IF(Scoresheet!$B$11='Match Total'!A10,Scoresheet!$AW$11,IF(Scoresheet!$B$12='Match Total'!A10,Scoresheet!$AW$12,IF(Scoresheet!$B$13='Match Total'!A10,Scoresheet!$AW$13,IF(Scoresheet!$B$14='Match Total'!A10,Scoresheet!$AW$14,IF(Scoresheet!$B$15='Match Total'!A10,Scoresheet!$AW$15,0)))))","v":0},{"$f":"IF(Scoresheet!$B$11='Match Total'!A10,Scoresheet!$AX$11,IF(Scoresheet!$B$12='Match Total'!A10,Scoresheet!$AX$12,IF(Scoresheet!$B$13='Match Total'!A10,Scoresheet!$AX$13,IF(Scoresheet!$B$14='Match Total'!A10,Scoresheet!$AX$14,IF(Scoresheet!$B$15='Match Total'!A10,Scoresheet!$AX$15,0)))))","v":0},{"$f":"IF(Scoresheet!$B$11='Match Total'!A10,Scoresheet!$AY$11,IF(Scoresheet!$B$12='Match Total'!A10,Scoresheet!$AY$12,IF(Scoresheet!$B$13='Match Total'!A10,Scoresheet!$AY$13,IF(Scoresheet!$B$14='Match Total'!A10,Scoresheet!$AY$14,IF(Scoresheet!$B$15='Match Total'!A10,Scoresheet!$AY$15,0)))))","v":0},{"$f":"IF(Scoresheet!$B$22='Match Total'!A10,Scoresheet!$AW$22,IF(Scoresheet!$B$23='Match Total'!A10,Scoresheet!$AW$23,IF(Scoresheet!$B$24='Match Total'!A10,Scoresheet!$AW$24,IF(Scoresheet!$B$25='Match Total'!A10,Scoresheet!$AW$25,IF(Scoresheet!$B$26='Match Total'!A10,Scoresheet!$AW$26,0)))))","v":0},{"$f":"IF(Scoresheet!$B$22='Match Total'!A10,Scoresheet!$AX$22,IF(Scoresheet!$B$23='Match Total'!A10,Scoresheet!$AX$23,IF(Scoresheet!$B$24='Match Total'!A10,Scoresheet!$AX$24,IF(Scoresheet!$B$25='Match Total'!A10,Scoresheet!$AX$25,IF(Scoresheet!$B$26='Match Total'!A10,Scoresheet!$AX$26,0)))))","v":0},{"$f":"IF(Scoresheet!$B$22='Match Total'!A10,Scoresheet!$AY$22,IF(Scoresheet!$B$23='Match Total'!A10,Scoresheet!$AY$23,IF(Scoresheet!$B$24='Match Total'!A10,Scoresheet!$AY$24,IF(Scoresheet!$B$25='Match Total'!A10,Scoresheet!$AY$25,IF(Scoresheet!$B$26='Match Total'!A10,Scoresheet!$AY$26,0)))))","v":0},{"$f":"IF(Scoresheet!$B$33='Match Total'!A10,Scoresheet!$AW$33,IF(Scoresheet!$B$34='Match Total'!A10,Scoresheet!$AW$34,IF(Scoresheet!$B$35='Match Total'!A10,Scoresheet!$AW$35,IF(Scoresheet!$B$36='Match Total'!A10,Scoresheet!$AW$36,IF(Scoresheet!$B$37='Match Total'!A10,Scoresheet!$AW$37,0)))))","v":0},{"$f":"IF(Scoresheet!$B$33='Match Total'!A10,Scoresheet!$AX$33,IF(Scoresheet!$B$34='Match Total'!A10,Scoresheet!$AX$34,IF(Scoresheet!$B$35='Match Total'!A10,Scoresheet!$AX$35,IF(Scoresheet!$B$36='Match Total'!A10,Scoresheet!$AX$36,IF(Scoresheet!$B$37='Match Total'!A10,Scoresheet!$AX$37,0)))))","v":0},{"$f":"IF(Scoresheet!$B$33='Match Total'!A10,Scoresheet!$AY$33,IF(Scoresheet!$B$34='Match Total'!A10,Scoresheet!$AY$34,IF(Scoresheet!$B$35='Match Total'!A10,Scoresheet!$AY$35,IF(Scoresheet!$B$36='Match Total'!A10,Scoresheet!$AY$36,IF(Scoresheet!$B$37='Match Total'!A10,Scoresheet!$AY$37,0)))))","v":0}]
[{"$f":"'Match Set Up'!A15","v":0},{"$f":"IF(Scoresheet!$B$11='Match Total'!A11,Scoresheet!$L$11,IF(Scoresheet!$B$12='Match Total'!A11,Scoresheet!$L$12,IF(Scoresheet!$B$13='Match Total'!A11,Scoresheet!$L$13,IF(Scoresheet!$B$14='Match Total'!A11,Scoresheet!$L$14,IF(Scoresheet!$B$15='Match Total'!A11,Scoresheet!$L$15,\"\")))))","v":0},{"$f":"IF(Scoresheet!$B$22='Match Total'!A11,Scoresheet!$L$22,IF(Scoresheet!$B$23='Match Total'!A11,Scoresheet!$L$23,IF(Scoresheet!$B$24='Match Total'!A11,Scoresheet!$L$24,IF(Scoresheet!$B$25='Match Total'!A11,Scoresheet!$L$25,IF(Scoresheet!$B$26='Match Total'!A11,Scoresheet!$L$26,\"\")))))","v":0},{"$f":"IF(Scoresheet!$B$33='Match Total'!A11,Scoresheet!$L$33,IF(Scoresheet!$B$34='Match Total'!A11,Scoresheet!$L$34,IF(Scoresheet!$B$35='Match Total'!A11,Scoresheet!$L$35,IF(Scoresheet!$B$36='Match Total'!A11,Scoresheet!$L$36,IF(Scoresheet!$B$37='Match Total'!A11,Scoresheet!$L$37,\"\")))))","v":0},{"$f":"SUM(B11:D11)","v":0},"","",null,null,0,0,0,{"$f":"'Match Set Up'!B15","v":0},null,null,null,null,{"$f":"IF(Scoresheet!$B$11='Match Total'!A11,Scoresheet!$AW$11,IF(Scoresheet!$B$12='Match Total'!A11,Scoresheet!$AW$12,IF(Scoresheet!$B$13='Match Total'!A11,Scoresheet!$AW$13,IF(Scoresheet!$B$14='Match Total'!A11,Scoresheet!$AW$14,IF(Scoresheet!$B$15='Match Total'!A11,Scoresheet!$AW$15,0)))))","v":0},{"$f":"IF(Scoresheet!$B$11='Match Total'!A11,Scoresheet!$AX$11,IF(Scoresheet!$B$12='Match Total'!A11,Scoresheet!$AX$12,IF(Scoresheet!$B$13='Match Total'!A11,Scoresheet!$AX$13,IF(Scoresheet!$B$14='Match Total'!A11,Scoresheet!$AX$14,IF(Scoresheet!$B$15='Match Total'!A11,Scoresheet!$AX$15,0)))))","v":0},{"$f":"IF(Scoresheet!$B$11='Match Total'!A11,Scoresheet!$AY$11,IF(Scoresheet!$B$12='Match Total'!A11,Scoresheet!$AY$12,IF(Scoresheet!$B$13='Match Total'!A11,Scoresheet!$AY$13,IF(Scoresheet!$B$14='Match Total'!A11,Scoresheet!$AY$14,IF(Scoresheet!$B$15='Match Total'!A11,Scoresheet!$AY$15,0)))))","v":0},{"$f":"IF(Scoresheet!$B$22='Match Total'!A11,Scoresheet!$AW$22,IF(Scoresheet!$B$23='Match Total'!A11,Scoresheet!$AW$23,IF(Scoresheet!$B$24='Match Total'!A11,Scoresheet!$AW$24,IF(Scoresheet!$B$25='Match Total'!A11,Scoresheet!$AW$25,IF(Scoresheet!$B$26='Match Total'!A11,Scoresheet!$AW$26,0)))))","v":0},{"$f":"IF(Scoresheet!$B$22='Match Total'!A11,Scoresheet!$AX$22,IF(Scoresheet!$B$23='Match Total'!A11,Scoresheet!$AX$23,IF(Scoresheet!$B$24='Match Total'!A11,Scoresheet!$AX$24,IF(Scoresheet!$B$25='Match Total'!A11,Scoresheet!$AX$25,IF(Scoresheet!$B$26='Match Total'!A11,Scoresheet!$AX$26,0)))))","v":0},{"$f":"IF(Scoresheet!$B$22='Match Total'!A11,Scoresheet!$AY$22,IF(Scoresheet!$B$23='Match Total'!A11,Scoresheet!$AY$23,IF(Scoresheet!$B$24='Match Total'!A11,Scoresheet!$AY$24,IF(Scoresheet!$B$25='Match Total'!A11,Scoresheet!$AY$25,IF(Scoresheet!$B$26='Match Total'!A11,Scoresheet!$AY$26,0)))))","v":0},{"$f":"IF(Scoresheet!$B$33='Match Total'!A11,Scoresheet!$AW$33,IF(Scoresheet!$B$34='Match Total'!A11,Scoresheet!$AW$34,IF(Scoresheet!$B$35='Match Total'!A11,Scoresheet!$AW$35,IF(Scoresheet!$B$36='Match Total'!A11,Scoresheet!$AW$36,IF(Scoresheet!$B$37='Match Total'!A11,Scoresheet!$AW$37,0)))))","v":0},{"$f":"IF(Scoresheet!$B$33='Match Total'!A11,Scoresheet!$AX$33,IF(Scoresheet!$B$34='Match Total'!A11,Scoresheet!$AX$34,IF(Scoresheet!$B$35='Match Total'!A11,Scoresheet!$AX$35,IF(Scoresheet!$B$36='Match Total'!A11,Scoresheet!$AX$36,IF(Scoresheet!$B$37='Match Total'!A11,Scoresheet!$AX$37,0)))))","v":0},{"$f":"IF(Scoresheet!$B$33='Match Total'!A11,Scoresheet!$AY$33,IF(Scoresheet!$B$34='Match Total'!A11,Scoresheet!$AY$34,IF(Scoresheet!$B$35='Match Total'!A11,Scoresheet!$AY$35,IF(Scoresheet!$B$36='Match Total'!A11,Scoresheet!$AY$36,IF(Scoresheet!$B$37='Match Total'!A11,Scoresheet!$AY$37,0)))))","v":0}]
[{"$f":"'Match Set Up'!A16","v":0},{"$f":"IF(Scoresheet!$B$11='Match Total'!A12,Scoresheet!$L$11,IF(Scoresheet!$B$12='Match Total'!A12,Scoresheet!$L$12,IF(Scoresheet!$B$13='Match Total'!A12,Scoresheet!$L$13,IF(Scoresheet!$B$14='Match Total'!A12,Scoresheet!$L$14,IF(Scoresheet!$B$15='Match Total'!A12,Scoresheet!$L$15,\"\")))))","v":0},{"$f":"IF(Scoresheet!$B$22='Match Total'!A12,Scoresheet!$L$22,IF(Scoresheet!$B$23='Match Total'!A12,Scoresheet!$L$23,IF(Scoresheet!$B$24='Match Total'!A12,Scoresheet!$L$24,IF(Scoresheet!$B$25='Match Total'!A12,Scoresheet!$L$25,IF(Scoresheet!$B$26='Match Total'!A12,Scoresheet!$L$26,\"\")))))","v":0},{"$f":"IF(Scoresheet!$B$33='Match Total'!A12,Scoresheet!$L$33,IF(Scoresheet!$B$34='Match Total'!A12,Scoresheet!$L$34,IF(Scoresheet!$B$35='Match Total'!A12,Scoresheet!$L$35,IF(Scoresheet!$B$36='Match Total'!A12,Scoresheet!$L$36,IF(Scoresheet!$B$37='Match Total'!A12,Scoresheet!$L$37,\"\")))))","v":0},{"$f":"SUM(B12:D12)","v":0},"","",null,null,0,0,0,{"$f":"'Match Set Up'!B16","v":0},null,null,null,null,{"$f":"IF(Scoresheet!$B$11='Match Total'!A12,Scoresheet!$AW$11,IF(Scoresheet!$B$12='Match Total'!A12,Scoresheet!$AW$12,IF(Scoresheet!$B$13='Match Total'!A12,Scoresheet!$AW$13,IF(Scoresheet!$B$14='Match Total'!A12,Scoresheet!$AW$14,IF(Scoresheet!$B$15='Match Total'!A12,Scoresheet!$AW$15,0)))))","v":0},{"$f":"IF(Scoresheet!$B$11='Match Total'!A12,Scoresheet!$AX$11,IF(Scoresheet!$B$12='Match Total'!A12,Scoresheet!$AX$12,IF(Scoresheet!$B$13='Match Total'!A12,Scoresheet!$AX$13,IF(Scoresheet!$B$14='Match Total'!A12,Scoresheet!$AX$14,IF(Scoresheet!$B$15='Match Total'!A12,Scoresheet!$AX$15,0)))))","v":0},{"$f":"IF(Scoresheet!$B$11='Match Total'!A12,Scoresheet!$AY$11,IF(Scoresheet!$B$12='Match Total'!A12,Scoresheet!$AY$12,IF(Scoresheet!$B$13='Match Total'!A12,Scoresheet!$AY$13,IF(Scoresheet!$B$14='Match Total'!A12,Scoresheet!$AY$14,IF(Scoresheet!$B$15='Match Total'!A12,Scoresheet!$AY$15,0)))))","v":0},{"$f":"IF(Scoresheet!$B$22='Match Total'!A12,Scoresheet!$AW$22,IF(Scoresheet!$B$23='Match Total'!A12,Scoresheet!$AW$23,IF(Scoresheet!$B$24='Match Total'!A12,Scoresheet!$AW$24,IF(Scoresheet!$B$25='Match Total'!A12,Scoresheet!$AW$25,IF(Scoresheet!$B$26='Match Total'!A12,Scoresheet!$AW$26,0)))))","v":0},{"$f":"IF(Scoresheet!$B$22='Match Total'!A12,Scoresheet!$AX$22,IF(Scoresheet!$B$23='Match Total'!A12,Scoresheet!$AX$23,IF(Scoresheet!$B$24='Match Total'!A12,Scoresheet!$AX$24,IF(Scoresheet!$B$25='Match Total'!A12,Scoresheet!$AX$25,IF(Scoresheet!$B$26='Match Total'!A12,Scoresheet!$AX$26,0)))))","v":0},{"$f":"IF(Scoresheet!$B$22='Match Total'!A12,Scoresheet!$AY$22,IF(Scoresheet!$B$23='Match Total'!A12,Scoresheet!$AY$23,IF(Scoresheet!$B$24='Match Total'!A12,Scoresheet!$AY$24,IF(Scoresheet!$B$25='Match Total'!A12,Scoresheet!$AY$25,IF(Scoresheet!$B$26='Match Total'!A12,Scoresheet!$AY$26,0)))))","v":0},{"$f":"IF(Scoresheet!$B$33='Match Total'!A12,Scoresheet!$AW$33,IF(Scoresheet!$B$34='Match Total'!A12,Scoresheet!$AW$34,IF(Scoresheet!$B$35='Match Total'!A12,Scoresheet!$AW$35,IF(Scoresheet!$B$36='Match Total'!A12,Scoresheet!$AW$36,IF(Scoresheet!$B$37='Match Total'!A12,Scoresheet!$AW$37,0)))))","v":0},{"$f":"IF(Scoresheet!$B$33='Match Total'!A12,Scoresheet!$AX$33,IF(Scoresheet!$B$34='Match Total'!A12,Scoresheet!$AX$34,IF(Scoresheet!$B$35='Match Total'!A12,Scoresheet!$AX$35,IF(Scoresheet!$B$36='Match Total'!A12,Scoresheet!$AX$36,IF(Scoresheet!$B$37='Match Total'!A12,Scoresheet!$AX$37,0)))))","v":0},{"$f":"IF(Scoresheet!$B$33='Match Total'!A12,Scoresheet!$AY$33,IF(Scoresheet!$B$34='Match Total'!A12,Scoresheet!$AY$34,IF(Scoresheet!$B$35='Match Total'!A12,Scoresheet!$AY$35,IF(Scoresheet!$B$36='Match Total'!A12,Scoresheet!$AY$36,IF(Scoresheet!$B$37='Match Total'!A12,Scoresheet!$AY$37,0)))))","v":0}]
[{"$f":"'Match Set Up'!A17","v":0},{"$f":"IF(Scoresheet!$B$11='Match Total'!A13,Scoresheet!$L$11,IF(Scoresheet!$B$12='Match Total'!A13,Scoresheet!$L$12,IF(Scoresheet!$B$13='Match Total'!A13,Scoresheet!$L$13,IF(Scoresheet!$B$14='Match Total'!A13,Scoresheet!$L$14,IF(Scoresheet!$B$15='Match Total'!A13,Scoresheet!$L$15,\"\")))))","v":0},{"$f":"IF(Scoresheet!$B$22='Match Total'!A13,Scoresheet!$L$22,IF(Scoresheet!$B$23='Match Total'!A13,Scoresheet!$L$23,IF(Scoresheet!$B$24='Match Total'!A13,Scoresheet!$L$24,IF(Scoresheet!$B$25='Match Total'!A13,Scoresheet!$L$25,IF(Scoresheet!$B$26='Match Total'!A13,Scoresheet!$L$26,\"\")))))","v":0},{"$f":"IF(Scoresheet!$B$33='Match Total'!A13,Scoresheet!$L$33,IF(Scoresheet!$B$34='Match Total'!A13,Scoresheet!$L$34,IF(Scoresheet!$B$35='Match Total'!A13,Scoresheet!$L$35,IF(Scoresheet!$B$36='Match Total'!A13,Scoresheet!$L$36,IF(Scoresheet!$B$37='Match Total'!A13,Scoresheet!$L$37,\"\")))))","v":0},{"$f":"SUM(B13:D13)","v":0},"","",null,null,0,0,0,{"$f":"'Match Set Up'!B17","v":0},null,null,null,null,{"$f":"IF(Scoresheet!$B$11='Match Total'!A13,Scoresheet!$AW$11,IF(Scoresheet!$B$12='Match Total'!A13,Scoresheet!$AW$12,IF(Scoresheet!$B$13='Match Total'!A13,Scoresheet!$AW$13,IF(Scoresheet!$B$14='Match Total'!A13,Scoresheet!$AW$14,IF(Scoresheet!$B$15='Match Total'!A13,Scoresheet!$AW$15,0)))))","v":0},{"$f":"IF(Scoresheet!$B$11='Match Total'!A13,Scoresheet!$AX$11,IF(Scoresheet!$B$12='Match Total'!A13,Scoresheet!$AX$12,IF(Scoresheet!$B$13='Match Total'!A13,Scoresheet!$AX$13,IF(Scoresheet!$B$14='Match Total'!A13,Scoresheet!$AX$14,IF(Scoresheet!$B$15='Match Total'!A13,Scoresheet!$AX$15,0)))))","v":0},{"$f":"IF(Scoresheet!$B$11='Match Total'!A13,Scoresheet!$AY$11,IF(Scoresheet!$B$12='Match Total'!A13,Scoresheet!$AY$12,IF(Scoresheet!$B$13='Match Total'!A13,Scoresheet!$AY$13,IF(Scoresheet!$B$14='Match Total'!A13,Scoresheet!$AY$14,IF(Scoresheet!$B$15='Match Total'!A13,Scoresheet!$AY$15,0)))))","v":0},{"$f":"IF(Scoresheet!$B$22='Match Total'!A13,Scoresheet!$AW$22,IF(Scoresheet!$B$23='Match Total'!A13,Scoresheet!$AW$23,IF(Scoresheet!$B$24='Match Total'!A13,Scoresheet!$AW$24,IF(Scoresheet!$B$25='Match Total'!A13,Scoresheet!$AW$25,IF(Scoresheet!$B$26='Match Total'!A13,Scoresheet!$AW$26,0)))))","v":0},{"$f":"IF(Scoresheet!$B$22='Match Total'!A13,Scoresheet!$AX$22,IF(Scoresheet!$B$23='Match Total'!A13,Scoresheet!$AX$23,IF(Scoresheet!$B$24='Match Total'!A13,Scoresheet!$AX$24,IF(Scoresheet!$B$25='Match Total'!A13,Scoresheet!$AX$25,IF(Scoresheet!$B$26='Match Total'!A13,Scoresheet!$AX$26,0)))))","v":0},{"$f":"IF(Scoresheet!$B$22='Match Total'!A13,Scoresheet!$AY$22,IF(Scoresheet!$B$23='Match Total'!A13,Scoresheet!$AY$23,IF(Scoresheet!$B$24='Match Total'!A13,Scoresheet!$AY$24,IF(Scoresheet!$B$25='Match Total'!A13,Scoresheet!$AY$25,IF(Scoresheet!$B$26='Match Total'!A13,Scoresheet!$AY$26,0)))))","v":0},{"$f":"IF(Scoresheet!$B$33='Match Total'!A13,Scoresheet!$AW$33,IF(Scoresheet!$B$34='Match Total'!A13,Scoresheet!$AW$34,IF(Scoresheet!$B$35='Match Total'!A13,Scoresheet!$AW$35,IF(Scoresheet!$B$36='Match Total'!A13,Scoresheet!$AW$36,IF(Scoresheet!$B$37='Match Total'!A13,Scoresheet!$AW$37,0)))))","v":0},{"$f":"IF(Scoresheet!$B$33='Match Total'!A13,Scoresheet!$AX$33,IF(Scoresheet!$B$34='Match Total'!A13,Scoresheet!$AX$34,IF(Scoresheet!$B$35='Match Total'!A13,Scoresheet!$AX$35,IF(Scoresheet!$B$36='Match Total'!A13,Scoresheet!$AX$36,IF(Scoresheet!$B$37='Match Total'!A13,Scoresheet!$AX$37,0)))))","v":0},{"$f":"IF(Scoresheet!$B$33='Match Total'!A13,Scoresheet!$AY$33,IF(Scoresheet!$B$34='Match Total'!A13,Scoresheet!$AY$34,IF(Scoresheet!$B$35='Match Total'!A13,Scoresheet!$AY$35,IF(Scoresheet!$B$36='Match Total'!A13,Scoresheet!$AY$36,IF(Scoresheet!$B$37='Match Total'!A13,Scoresheet!$AY$37,0)))))","v":0}]
[null,null,null,null,null,null,""]
["Total",{"$f":"SUM(B2:B14)","v":0},{"$f":"SUM(C2:C14)","v":0},{"$f":"SUM(D2:D14)","v":0},{"$f":"SUM(E2:E14)","v":0},{"$f":"COUNT(B15:D15)","v":3},{"$f":"E15/F15","v":0}]
["Difference",0,0,0,{"$f":"SUM(B16:D16)","v":0},"WINS"]
["Grand Total",{"$f":"SUM(B15:B16)","v":0},{"$f":"SUM(C15:C16)","v":0},{"$f":"SUM(D15:D16)","v":0},{"$f":"SUM(B17:D17)","v":0},{"$f":"Scoresheet!R$43","v":0}]
[]
[]
[{"$f":"HomeName","v":0},"Game 1","Game 2","Game3","Total","Games Shot","Average",null,"High Game"]
[{"$f":"'Match Set Up'!E6","v":0},{"$f":"IF(Scoresheet!$V$11='Match Total'!A21,Scoresheet!$AF$11,IF(Scoresheet!$V$12='Match Total'!A21,Scoresheet!$AF$12,IF(Scoresheet!$V$13='Match Total'!A21,Scoresheet!$AF$13,IF(Scoresheet!$V$14='Match Total'!A21,Scoresheet!$AF$14,IF(Scoresheet!$V$15='Match Total'!A21,Scoresheet!$AF$15,\"\")))))","v":0},{"$f":"IF(Scoresheet!$V$22='Match Total'!A21,Scoresheet!$AF$22,IF(Scoresheet!$V$23='Match Total'!A21,Scoresheet!$AF$23,IF(Scoresheet!$V$24='Match Total'!A21,Scoresheet!$AF$24,IF(Scoresheet!$V$25='Match Total'!A21,Scoresheet!$AF$25,IF(Scoresheet!$V$26='Match Total'!A21,Scoresheet!$AF$26,\"\")))))","v":0},{"$f":"IF(Scoresheet!$V$33='Match Total'!A21,Scoresheet!$AF$33,IF(Scoresheet!$V$34='Match Total'!A21,Scoresheet!$AF$34,IF(Scoresheet!$V$35='Match Total'!A21,Scoresheet!$AF$35,IF(Scoresheet!$V$36='Match Total'!A21,Scoresheet!$AF$36,IF(Scoresheet!$V$37='Match Total'!A21,Scoresheet!$AF$37,\"\")))))","v":0},{"$f":"SUM(B21:D21)","v":0},{"$f":"IF(E21=0,\"\",COUNT(B21:D21))","v":""},{"$f":"IF(E21=0,\"\",E21/F21)","v":""},null,{"$f":"IF(Scoresheet!AK45= Scoresheet!AK49, Scoresheet!X45,IF(Scoresheet!AK46= Scoresheet!AK49, Scoresheet!X46,IF(Scoresheet!AK47= Scoresheet!AK49, Scoresheet!X47,)))","v":0},{"$f":"SUM(+R21+U21+X21)","v":0},{"$f":"SUM(+S21+V21+Y21)","v":0},{"$f":"SUM(+T21+W21+Z21)","v":0},{"$f":"'Match Set Up'!F6","v":0},null,null,null,null,{"$f":"IF(Scoresheet!$V$11='Match Total'!A21,Scoresheet!$BS$11,IF(Scoresheet!$V$12='Match Total'!A21,Scoresheet!$BS$12,IF(Scoresheet!$V$13='Match Total'!A21,Scoresheet!$BS$13,IF(Scoresheet!$V$14='Match Total'!A21,Scoresheet!$BS$14,IF(Scoresheet!$V$15='Match Total'!A21,Scoresheet!$BS$15,0)))))","v":0},{"$f":"IF(Scoresheet!$V$11='Match Total'!A21,Scoresheet!$BT$11,IF(Scoresheet!$V$12='Match Total'!A21,Scoresheet!$BT$12,IF(Scoresheet!$V$13='Match Total'!A21,Scoresheet!$BT$13,IF(Scoresheet!$V$14='Match Total'!A21,Scoresheet!$BT$14,IF(Scoresheet!$V$15='Match Total'!A21,Scoresheet!$BT$15,0)))))","v":0},{"$f":"IF(Scoresheet!$V$11='Match Total'!A21,Scoresheet!$BU$11,IF(Scoresheet!$V$12='Match Total'!A21,Scoresheet!$BU$12,IF(Scoresheet!$V$13='Match Total'!A21,Scoresheet!$BU$13,IF(Scoresheet!$V$14='Match Total'!A21,Scoresheet!$BU$14,IF(Scoresheet!$V$15='Match Total'!A21,Scoresheet!$BU$15,0)))))","v":0},{"$f":"IF(Scoresheet!$V$22='Match Total'!A21,Scoresheet!$BS$22,IF(Scoresheet!$V$23='Match Total'!A21,Scoresheet!$BS$23,IF(Scoresheet!$V$24='Match Total'!A21,Scoresheet!$BS$24,IF(Scoresheet!$V$25='Match Total'!A21,Scoresheet!$BS$25,IF(Scoresheet!$V$26='Match Total'!A21,Scoresheet!$BS$26,0)))))","v":0},{"$f":"IF(Scoresheet!$V$22='Match Total'!A21,Scoresheet!$BT$22,IF(Scoresheet!$V$23='Match Total'!A21,Scoresheet!$BT$23,IF(Scoresheet!$V$24='Match Total'!A21,Scoresheet!$BT$24,IF(Scoresheet!$V$25='Match Total'!A21,Scoresheet!$BT$25,IF(Scoresheet!$V$26='Match Total'!A21,Scoresheet!$BT$26,0)))))","v":0},{"$f":"IF(Scoresheet!$V$22='Match Total'!A21,Scoresheet!$BU$22,IF(Scoresheet!$V$23='Match Total'!A21,Scoresheet!$BU$23,IF(Scoresheet!$V$24='Match Total'!A21,Scoresheet!$BU$24,IF(Scoresheet!$V$25='Match Total'!A21,Scoresheet!$BU$25,IF(Scoresheet!$V$26='Match Total'!A21,Scoresheet!$BU$26,0)))))","v":0},{"$f":"IF(Scoresheet!$V$33='Match Total'!A21,Scoresheet!$BS$33,IF(Scoresheet!$V$34='Match Total'!A21,Scoresheet!$BS$34,IF(Scoresheet!$V$35='Match Total'!A21,Scoresheet!$BS$35,IF(Scoresheet!$V$36='Match Total'!A21,Scoresheet!$BS$36,IF(Scoresheet!$V$37='Match Total'!A21,Scoresheet!$BS$37,0)))))","v":0},{"$f":"IF(Scoresheet!$V$33='Match Total'!A21,Scoresheet!$BT$33,IF(Scoresheet!$V$34='Match Total'!A21,Scoresheet!$BT$34,IF(Scoresheet!$V$35='Match Total'!A21,Scoresheet!$BT$35,IF(Scoresheet!$V$36='Match Total'!A21,Scoresheet!$BT$36,IF(Scoresheet!$V$37='Match Total'!A21,Scoresheet!$BT$37,0)))))","v":0},{"$f":"IF(Scoresheet!$V$33='Match Total'!A21,Scoresheet!$BU$33,IF(Scoresheet!$V$34='Match Total'!A21,Scoresheet!$BU$34,IF(Scoresheet!$V$35='Match Total'!A21,Scoresheet!$BU$35,IF(Scoresheet!$V$36='Match Total'!A21,Scoresheet!$BU$36,IF(Scoresheet!$V$37='Match Total'!A21,Scoresheet!$BU$37,0)))))","v":0}]
[{"$f":"'Match Set Up'!E7","v":0},{"$f":"IF(Scoresheet!$V$11='Match Total'!A22,Scoresheet!$AF$11,IF(Scoresheet!$V$12='Match Total'!A22,Scoresheet!$AF$12,IF(Scoresheet!$V$13='Match Total'!A22,Scoresheet!$AF$13,IF(Scoresheet!$V$14='Match Total'!A22,Scoresheet!$AF$14,IF(Scoresheet!$V$15='Match Total'!A22,Scoresheet!$AF$15,\"\")))))","v":0},{"$f":"IF(Scoresheet!$V$22='Match Total'!A22,Scoresheet!$AF$22,IF(Scoresheet!$V$23='Match Total'!A22,Scoresheet!$AF$23,IF(Scoresheet!$V$24='Match Total'!A22,Scoresheet!$AF$24,IF(Scoresheet!$V$25='Match Total'!A22,Scoresheet!$AF$25,IF(Scoresheet!$V$26='Match Total'!A22,Scoresheet!$AF$26,\"\")))))","v":0},{"$f":"IF(Scoresheet!$V$33='Match Total'!A22,Scoresheet!$AF$33,IF(Scoresheet!$V$34='Match Total'!A22,Scoresheet!$AF$34,IF(Scoresheet!$V$35='Match Total'!A22,Scoresheet!$AF$35,IF(Scoresheet!$V$36='Match Total'!A22,Scoresheet!$AF$36,IF(Scoresheet!$V$37='Match Total'!A22,Scoresheet!$AF$37,\"\")))))","v":0},0,{"$f":"IF(E22=0,\"\",COUNT(B22:D22))","v":""},{"$f":"IF(E22=0,\"\",E22/F22)","v":""},null,{"$f":"MAX(B21:D32)","v":0},{"$f":"SUM(+R22+U22+X22)","v":0},{"$f":"SUM(+S22+V22+Y22)","v":0},{"$f":"SUM(+T22+W22+Z22)","v":0},{"$f":"'Match Set Up'!F7","v":0},null,null,null,null,{"$f":"IF(Scoresheet!$V$11='Match Total'!A22,Scoresheet!$BS$11,IF(Scoresheet!$V$12='Match Total'!A22,Scoresheet!$BS$12,IF(Scoresheet!$V$13='Match Total'!A22,Scoresheet!$BS$13,IF(Scoresheet!$V$14='Match Total'!A22,Scoresheet!$BS$14,IF(Scoresheet!$V$15='Match Total'!A22,Scoresheet!$BS$15,0)))))","v":0},{"$f":"IF(Scoresheet!$V$11='Match Total'!A22,Scoresheet!$BT$11,IF(Scoresheet!$V$12='Match Total'!A22,Scoresheet!$BT$12,IF(Scoresheet!$V$13='Match Total'!A22,Scoresheet!$BT$13,IF(Scoresheet!$V$14='Match Total'!A22,Scoresheet!$BT$14,IF(Scoresheet!$V$15='Match Total'!A22,Scoresheet!$BT$15,0)))))","v":0},{"$f":"IF(Scoresheet!$V$11='Match Total'!A22,Scoresheet!$BU$11,IF(Scoresheet!$V$12='Match Total'!A22,Scoresheet!$BU$12,IF(Scoresheet!$V$13='Match Total'!A22,Scoresheet!$BU$13,IF(Scoresheet!$V$14='Match Total'!A22,Scoresheet!$BU$14,IF(Scoresheet!$V$15='Match Total'!A22,Scoresheet!$BU$15,0)))))","v":0},{"$f":"IF(Scoresheet!$V$22='Match Total'!A22,Scoresheet!$BS$22,IF(Scoresheet!$V$23='Match Total'!A22,Scoresheet!$BS$23,IF(Scoresheet!$V$24='Match Total'!A22,Scoresheet!$BS$24,IF(Scoresheet!$V$25='Match Total'!A22,Scoresheet!$BS$25,IF(Scoresheet!$V$26='Match Total'!A22,Scoresheet!$BS$26,0)))))","v":0},{"$f":"IF(Scoresheet!$V$22='Match Total'!A22,Scoresheet!$BT$22,IF(Scoresheet!$V$23='Match Total'!A22,Scoresheet!$BT$23,IF(Scoresheet!$V$24='Match Total'!A22,Scoresheet!$BT$24,IF(Scoresheet!$V$25='Match Total'!A22,Scoresheet!$BT$25,IF(Scoresheet!$V$26='Match Total'!A22,Scoresheet!$BT$26,0)))))","v":0},{"$f":"IF(Scoresheet!$V$22='Match Total'!A22,Scoresheet!$BU$22,IF(Scoresheet!$V$23='Match Total'!A22,Scoresheet!$BU$23,IF(Scoresheet!$V$24='Match Total'!A22,Scoresheet!$BU$24,IF(Scoresheet!$V$25='Match Total'!A22,Scoresheet!$BU$25,IF(Scoresheet!$V$26='Match Total'!A22,Scoresheet!$BU$26,0)))))","v":0},{"$f":"IF(Scoresheet!$V$33='Match Total'!A22,Scoresheet!$BS$33,IF(Scoresheet!$V$34='Match Total'!A22,Scoresheet!$BS$34,IF(Scoresheet!$V$35='Match Total'!A22,Scoresheet!$BS$35,IF(Scoresheet!$V$36='Match Total'!A22,Scoresheet!$BS$36,IF(Scoresheet!$V$37='Match Total'!A22,Scoresheet!$BS$37,0)))))","v":0},{"$f":"IF(Scoresheet!$V$33='Match Total'!A22,Scoresheet!$BT$33,IF(Scoresheet!$V$34='Match Total'!A22,Scoresheet!$BT$34,IF(Scoresheet!$V$35='Match Total'!A22,Scoresheet!$BT$35,IF(Scoresheet!$V$36='Match Total'!A22,Scoresheet!$BT$36,IF(Scoresheet!$V$37='Match Total'!A22,Scoresheet!$BT$37,0)))))","v":0},{"$f":"IF(Scoresheet!$V$33='Match Total'!A22,Scoresheet!$BU$33,IF(Scoresheet!$V$34='Match Total'!A22,Scoresheet!$BU$34,IF(Scoresheet!$V$35='Match Total'!A22,Scoresheet!$BU$35,IF(Scoresheet!$V$36='Match Total'!A22,Scoresheet!$BU$36,IF(Scoresheet!$V$37='Match Total'!A22,Scoresheet!$BU$37,0)))))","v":0}]
[{"$f":"'Match Set Up'!E8","v":0},{"$f":"IF(Scoresheet!$V$11='Match Total'!A23,Scoresheet!$AF$11,IF(Scoresheet!$V$12='Match Total'!A23,Scoresheet!$AF$12,IF(Scoresheet!$V$13='Match Total'!A23,Scoresheet!$AF$13,IF(Scoresheet!$V$14='Match Total'!A23,Scoresheet!$AF$14,IF(Scoresheet!$V$15='Match Total'!A23,Scoresheet!$AF$15,\"\")))))","v":0},{"$f":"IF(Scoresheet!$V$22='Match Total'!A23,Scoresheet!$AF$22,IF(Scoresheet!$V$23='Match Total'!A23,Scoresheet!$AF$23,IF(Scoresheet!$V$24='Match Total'!A23,Scoresheet!$AF$24,IF(Scoresheet!$V$25='Match Total'!A23,Scoresheet!$AF$25,IF(Scoresheet!$V$26='Match Total'!A23,Scoresheet!$AF$26,\"\")))))","v":0},{"$f":"IF(Scoresheet!$V$33='Match Total'!A23,Scoresheet!$AF$33,IF(Scoresheet!$V$34='Match Total'!A23,Scoresheet!$AF$34,IF(Scoresheet!$V$35='Match Total'!A23,Scoresheet!$AF$35,IF(Scoresheet!$V$36='Match Total'!A23,Scoresheet!$AF$36,IF(Scoresheet!$V$37='Match Total'!A23,Scoresheet!$AF$37,\"\")))))","v":0},0,"","",null,null,0,0,0,{"$f":"'Match Set Up'!F8","v":0},null,null,null,null,{"$f":"IF(Scoresheet!$V$11='Match Total'!A23,Scoresheet!$BS$11,IF(Scoresheet!$V$12='Match Total'!A23,Scoresheet!$BS$12,IF(Scoresheet!$V$13='Match Total'!A23,Scoresheet!$BS$13,IF(Scoresheet!$V$14='Match Total'!A23,Scoresheet!$BS$14,IF(Scoresheet!$V$15='Match Total'!A23,Scoresheet!$BS$15,0)))))","v":0},{"$f":"IF(Scoresheet!$V$11='Match Total'!A23,Scoresheet!$BT$11,IF(Scoresheet!$V$12='Match Total'!A23,Scoresheet!$BT$12,IF(Scoresheet!$V$13='Match Total'!A23,Scoresheet!$BT$13,IF(Scoresheet!$V$14='Match Total'!A23,Scoresheet!$BT$14,IF(Scoresheet!$V$15='Match Total'!A23,Scoresheet!$BT$15,0)))))","v":0},{"$f":"IF(Scoresheet!$V$11='Match Total'!A23,Scoresheet!$BU$11,IF(Scoresheet!$V$12='Match Total'!A23,Scoresheet!$BU$12,IF(Scoresheet!$V$13='Match Total'!A23,Scoresheet!$BU$13,IF(Scoresheet!$V$14='Match Total'!A23,Scoresheet!$BU$14,IF(Scoresheet!$V$15='Match Total'!A23,Scoresheet!$BU$15,0)))))","v":0},{"$f":"IF(Scoresheet!$V$22='Match Total'!A23,Scoresheet!$BS$22,IF(Scoresheet!$V$23='Match Total'!A23,Scoresheet!$BS$23,IF(Scoresheet!$V$24='Match Total'!A23,Scoresheet!$BS$24,IF(Scoresheet!$V$25='Match Total'!A23,Scoresheet!$BS$25,IF(Scoresheet!$V$26='Match Total'!A23,Scoresheet!$BS$26,0)))))","v":0},{"$f":"IF(Scoresheet!$V$22='Match Total'!A23,Scoresheet!$BT$22,IF(Scoresheet!$V$23='Match Total'!A23,Scoresheet!$BT$23,IF(Scoresheet!$V$24='Match Total'!A23,Scoresheet!$BT$24,IF(Scoresheet!$V$25='Match Total'!A23,Scoresheet!$BT$25,IF(Scoresheet!$V$26='Match Total'!A23,Scoresheet!$BT$26,0)))))","v":0},{"$f":"IF(Scoresheet!$V$22='Match Total'!A23,Scoresheet!$BU$22,IF(Scoresheet!$V$23='Match Total'!A23,Scoresheet!$BU$23,IF(Scoresheet!$V$24='Match Total'!A23,Scoresheet!$BU$24,IF(Scoresheet!$V$25='Match Total'!A23,Scoresheet!$BU$25,IF(Scoresheet!$V$26='Match Total'!A23,Scoresheet!$BU$26,0)))))","v":0},{"$f":"IF(Scoresheet!$V$33='Match Total'!A23,Scoresheet!$BS$33,IF(Scoresheet!$V$34='Match Total'!A23,Scoresheet!$BS$34,IF(Scoresheet!$V$35='Match Total'!A23,Scoresheet!$BS$35,IF(Scoresheet!$V$36='Match Total'!A23,Scoresheet!$BS$36,IF(Scoresheet!$V$37='Match Total'!A23,Scoresheet!$BS$37,0)))))","v":0},{"$f":"IF(Scoresheet!$V$33='Match Total'!A23,Scoresheet!$BT$33,IF(Scoresheet!$V$34='Match Total'!A23,Scoresheet!$BT$34,IF(Scoresheet!$V$35='Match Total'!A23,Scoresheet!$BT$35,IF(Scoresheet!$V$36='Match Total'!A23,Scoresheet!$BT$36,IF(Scoresheet!$V$37='Match Total'!A23,Scoresheet!$BT$37,0)))))","v":0},{"$f":"IF(Scoresheet!$V$33='Match Total'!A23,Scoresheet!$BU$33,IF(Scoresheet!$V$34='Match Total'!A23,Scoresheet!$BU$34,IF(Scoresheet!$V$35='Match Total'!A23,Scoresheet!$BU$35,IF(Scoresheet!$V$36='Match Total'!A23,Scoresheet!$BU$36,IF(Scoresheet!$V$37='Match Total'!A23,Scoresheet!$BU$37,0)))))","v":0}]
[{"$f":"'Match Set Up'!E9","v":0},{"$f":"IF(Scoresheet!$V$11='Match Total'!A24,Scoresheet!$AF$11,IF(Scoresheet!$V$12='Match Total'!A24,Scoresheet!$AF$12,IF(Scoresheet!$V$13='Match Total'!A24,Scoresheet!$AF$13,IF(Scoresheet!$V$14='Match Total'!A24,Scoresheet!$AF$14,IF(Scoresheet!$V$15='Match Total'!A24,Scoresheet!$AF$15,\"\")))))","v":0},{"$f":"IF(Scoresheet!$V$22='Match Total'!A24,Scoresheet!$AF$22,IF(Scoresheet!$V$23='Match Total'!A24,Scoresheet!$AF$23,IF(Scoresheet!$V$24='Match Total'!A24,Scoresheet!$AF$24,IF(Scoresheet!$V$25='Match Total'!A24,Scoresheet!$AF$25,IF(Scoresheet!$V$26='Match Total'!A24,Scoresheet!$AF$26,\"\")))))","v":0},{"$f":"IF(Scoresheet!$V$33='Match Total'!A24,Scoresheet!$AF$33,IF(Scoresheet!$V$34='Match Total'!A24,Scoresheet!$AF$34,IF(Scoresheet!$V$35='Match Total'!A24,Scoresheet!$AF$35,IF(Scoresheet!$V$36='Match Total'!A24,Scoresheet!$AF$36,IF(Scoresheet!$V$37='Match Total'!A24,Scoresheet!$AF$37,\"\")))))","v":0},0,"","",null,"High Series",0,0,0,{"$f":"'Match Set Up'!F9","v":0},null,null,null,null,{"$f":"IF(Scoresheet!$V$11='Match Total'!A24,Scoresheet!$BS$11,IF(Scoresheet!$V$12='Match Total'!A24,Scoresheet!$BS$12,IF(Scoresheet!$V$13='Match Total'!A24,Scoresheet!$BS$13,IF(Scoresheet!$V$14='Match Total'!A24,Scoresheet!$BS$14,IF(Scoresheet!$V$15='Match Total'!A24,Scoresheet!$BS$15,0)))))","v":0},{"$f":"IF(Scoresheet!$V$11='Match Total'!A24,Scoresheet!$BT$11,IF(Scoresheet!$V$12='Match Total'!A24,Scoresheet!$BT$12,IF(Scoresheet!$V$13='Match Total'!A24,Scoresheet!$BT$13,IF(Scoresheet!$V$14='Match Total'!A24,Scoresheet!$BT$14,IF(Scoresheet!$V$15='Match Total'!A24,Scoresheet!$BT$15,0)))))","v":0},{"$f":"IF(Scoresheet!$V$11='Match Total'!A24,Scoresheet!$BU$11,IF(Scoresheet!$V$12='Match Total'!A24,Scoresheet!$BU$12,IF(Scoresheet!$V$13='Match Total'!A24,Scoresheet!$BU$13,IF(Scoresheet!$V$14='Match Total'!A24,Scoresheet!$BU$14,IF(Scoresheet!$V$15='Match Total'!A24,Scoresheet!$BU$15,0)))))","v":0},{"$f":"IF(Scoresheet!$V$22='Match Total'!A24,Scoresheet!$BS$22,IF(Scoresheet!$V$23='Match Total'!A24,Scoresheet!$BS$23,IF(Scoresheet!$V$24='Match Total'!A24,Scoresheet!$BS$24,IF(Scoresheet!$V$25='Match Total'!A24,Scoresheet!$BS$25,IF(Scoresheet!$V$26='Match Total'!A24,Scoresheet!$BS$26,0)))))","v":0},{"$f":"IF(Scoresheet!$V$22='Match Total'!A24,Scoresheet!$BT$22,IF(Scoresheet!$V$23='Match Total'!A24,Scoresheet!$BT$23,IF(Scoresheet!$V$24='Match Total'!A24,Scoresheet!$BT$24,IF(Scoresheet!$V$25='Match Total'!A24,Scoresheet!$BT$25,IF(Scoresheet!$V$26='Match Total'!A24,Scoresheet!$BT$26,0)))))","v":0},{"$f":"IF(Scoresheet!$V$22='Match Total'!A24,Scoresheet!$BU$22,IF(Scoresheet!$V$23='Match Total'!A24,Scoresheet!$BU$23,IF(Scoresheet!$V$24='Match Total'!A24,Scoresheet!$BU$24,IF(Scoresheet!$V$25='Match Total'!A24,Scoresheet!$BU$25,IF(Scoresheet!$V$26='Match Total'!A24,Scoresheet!$BU$26,0)))))","v":0},{"$f":"IF(Scoresheet!$V$33='Match Total'!A24,Scoresheet!$BS$33,IF(Scoresheet!$V$34='Match Total'!A24,Scoresheet!$BS$34,IF(Scoresheet!$V$35='Match Total'!A24,Scoresheet!$BS$35,IF(Scoresheet!$V$36='Match Total'!A24,Scoresheet!$BS$36,IF(Scoresheet!$V$37='Match Total'!A24,Scoresheet!$BS$37,0)))))","v":0},{"$f":"IF(Scoresheet!$V$33='Match Total'!A24,Scoresheet!$BT$33,IF(Scoresheet!$V$34='Match Total'!A24,Scoresheet!$BT$34,IF(Scoresheet!$V$35='Match Total'!A24,Scoresheet!$BT$35,IF(Scoresheet!$V$36='Match Total'!A24,Scoresheet!$BT$36,IF(Scoresheet!$V$37='Match Total'!A24,Scoresheet!$BT$37,0)))))","v":0},{"$f":"IF(Scoresheet!$V$33='Match Total'!A24,Scoresheet!$BU$33,IF(Scoresheet!$V$34='Match Total'!A24,Scoresheet!$BU$34,IF(Scoresheet!$V$35='Match Total'!A24,Scoresheet!$BU$35,IF(Scoresheet!$V$36='Match Total'!A24,Scoresheet!$BU$36,IF(Scoresheet!$V$37='Match Total'!A24,Scoresheet!$BU$37,0)))))","v":0}]
[{"$f":"'Match Set Up'!E10","v":0},{"$f":"IF(Scoresheet!$V$11='Match Total'!A25,Scoresheet!$AF$11,IF(Scoresheet!$V$12='Match Total'!A25,Scoresheet!$AF$12,IF(Scoresheet!$V$13='Match Total'!A25,Scoresheet!$AF$13,IF(Scoresheet!$V$14='Match Total'!A25,Scoresheet!$AF$14,IF(Scoresheet!$V$15='Match Total'!A25,Scoresheet!$AF$15,\"\")))))","v":0},{"$f":"IF(Scoresheet!$V$22='Match Total'!A25,Scoresheet!$AF$22,IF(Scoresheet!$V$23='Match Total'!A25,Scoresheet!$AF$23,IF(Scoresheet!$V$24='Match Total'!A25,Scoresheet!$AF$24,IF(Scoresheet!$V$25='Match Total'!A25,Scoresheet!$AF$25,IF(Scoresheet!$V$26='Match Total'!A25,Scoresheet!$AF$26,\"\")))))","v":0},{"$f":"IF(Scoresheet!$V$33='Match Total'!A25,Scoresheet!$AF$33,IF(Scoresheet!$V$34='Match Total'!A25,Scoresheet!$AF$34,IF(Scoresheet!$V$35='Match Total'!A25,Scoresheet!$AF$35,IF(Scoresheet!$V$36='Match Total'!A25,Scoresheet!$AF$36,IF(Scoresheet!$V$37='Match Total'!A25,Scoresheet!$AF$37,\"\")))))","v":0},0,"","",null,{"$f":"INDIRECT(CONCATENATE(\"A\",MATCH(MAX(E21:E32),E21:E32,0)+20))","v":0},0,0,0,{"$f":"'Match Set Up'!F10","v":0},null,null,null,null,{"$f":"IF(Scoresheet!$V$11='Match Total'!A25,Scoresheet!$BS$11,IF(Scoresheet!$V$12='Match Total'!A25,Scoresheet!$BS$12,IF(Scoresheet!$V$13='Match Total'!A25,Scoresheet!$BS$13,IF(Scoresheet!$V$14='Match Total'!A25,Scoresheet!$BS$14,IF(Scoresheet!$V$15='Match Total'!A25,Scoresheet!$BS$15,0)))))","v":0},{"$f":"IF(Scoresheet!$V$11='Match Total'!A25,Scoresheet!$BT$11,IF(Scoresheet!$V$12='Match Total'!A25,Scoresheet!$BT$12,IF(Scoresheet!$V$13='Match Total'!A25,Scoresheet!$BT$13,IF(Scoresheet!$V$14='Match Total'!A25,Scoresheet!$BT$14,IF(Scoresheet!$V$15='Match Total'!A25,Scoresheet!$BT$15,0)))))","v":0},{"$f":"IF(Scoresheet!$V$11='Match Total'!A25,Scoresheet!$BU$11,IF(Scoresheet!$V$12='Match Total'!A25,Scoresheet!$BU$12,IF(Scoresheet!$V$13='Match Total'!A25,Scoresheet!$BU$13,IF(Scoresheet!$V$14='Match Total'!A25,Scoresheet!$BU$14,IF(Scoresheet!$V$15='Match Total'!A25,Scoresheet!$BU$15,0)))))","v":0},{"$f":"IF(Scoresheet!$V$22='Match Total'!A25,Scoresheet!$BS$22,IF(Scoresheet!$V$23='Match Total'!A25,Scoresheet!$BS$23,IF(Scoresheet!$V$24='Match Total'!A25,Scoresheet!$BS$24,IF(Scoresheet!$V$25='Match Total'!A25,Scoresheet!$BS$25,IF(Scoresheet!$V$26='Match Total'!A25,Scoresheet!$BS$26,0)))))","v":0},{"$f":"IF(Scoresheet!$V$22='Match Total'!A25,Scoresheet!$BT$22,IF(Scoresheet!$V$23='Match Total'!A25,Scoresheet!$BT$23,IF(Scoresheet!$V$24='Match Total'!A25,Scoresheet!$BT$24,IF(Scoresheet!$V$25='Match Total'!A25,Scoresheet!$BT$25,IF(Scoresheet!$V$26='Match Total'!A25,Scoresheet!$BT$26,0)))))","v":0},{"$f":"IF(Scoresheet!$V$22='Match Total'!A25,Scoresheet!$BU$22,IF(Scoresheet!$V$23='Match Total'!A25,Scoresheet!$BU$23,IF(Scoresheet!$V$24='Match Total'!A25,Scoresheet!$BU$24,IF(Scoresheet!$V$25='Match Total'!A25,Scoresheet!$BU$25,IF(Scoresheet!$V$26='Match Total'!A25,Scoresheet!$BU$26,0)))))","v":0},{"$f":"IF(Scoresheet!$V$33='Match Total'!A25,Scoresheet!$BS$33,IF(Scoresheet!$V$34='Match Total'!A25,Scoresheet!$BS$34,IF(Scoresheet!$V$35='Match Total'!A25,Scoresheet!$BS$35,IF(Scoresheet!$V$36='Match Total'!A25,Scoresheet!$BS$36,IF(Scoresheet!$V$37='Match Total'!A25,Scoresheet!$BS$37,0)))))","v":0},{"$f":"IF(Scoresheet!$V$33='Match Total'!A25,Scoresheet!$BT$33,IF(Scoresheet!$V$34='Match Total'!A25,Scoresheet!$BT$34,IF(Scoresheet!$V$35='Match Total'!A25,Scoresheet!$BT$35,IF(Scoresheet!$V$36='Match Total'!A25,Scoresheet!$BT$36,IF(Scoresheet!$V$37='Match Total'!A25,Scoresheet!$BT$37,0)))))","v":0},{"$f":"IF(Scoresheet!$V$33='Match Total'!A25,Scoresheet!$BU$33,IF(Scoresheet!$V$34='Match Total'!A25,Scoresheet!$BU$34,IF(Scoresheet!$V$35='Match Total'!A25,Scoresheet!$BU$35,IF(Scoresheet!$V$36='Match Total'!A25,Scoresheet!$BU$36,IF(Scoresheet!$V$37='Match Total'!A25,Scoresheet!$BU$37,0)))))","v":0}]
[{"$f":"'Match Set Up'!E11","v":0},{"$f":"IF(Scoresheet!$V$11='Match Total'!A26,Scoresheet!$AF$11,IF(Scoresheet!$V$12='Match Total'!A26,Scoresheet!$AF$12,IF(Scoresheet!$V$13='Match Total'!A26,Scoresheet!$AF$13,IF(Scoresheet!$V$14='Match Total'!A26,Scoresheet!$AF$14,IF(Scoresheet!$V$15='Match Total'!A26,Scoresheet!$AF$15,\"\")))))","v":0},{"$f":"IF(Scoresheet!$V$22='Match Total'!A26,Scoresheet!$AF$22,IF(Scoresheet!$V$23='Match Total'!A26,Scoresheet!$AF$23,IF(Scoresheet!$V$24='Match Total'!A26,Scoresheet!$AF$24,IF(Scoresheet!$V$25='Match Total'!A26,Scoresheet!$AF$25,IF(Scoresheet!$V$26='Match Total'!A26,Scoresheet!$AF$26,\"\")))))","v":0},{"$f":"IF(Scoresheet!$V$33='Match Total'!A26,Scoresheet!$AF$33,IF(Scoresheet!$V$34='Match Total'!A26,Scoresheet!$AF$34,IF(Scoresheet!$V$35='Match Total'!A26,Scoresheet!$AF$35,IF(Scoresheet!$V$36='Match Total'!A26,Scoresheet!$AF$36,IF(Scoresheet!$V$37='Match Total'!A26,Scoresheet!$AF$37,\"\")))))","v":0},0,"","",null,{"$f":"MAX(E21:E32)","v":0},0,0,0,{"$f":"'Match Set Up'!F11","v":0},null,null,null,null,{"$f":"IF(Scoresheet!$V$11='Match Total'!A26,Scoresheet!$BS$11,IF(Scoresheet!$V$12='Match Total'!A26,Scoresheet!$BS$12,IF(Scoresheet!$V$13='Match Total'!A26,Scoresheet!$BS$13,IF(Scoresheet!$V$14='Match Total'!A26,Scoresheet!$BS$14,IF(Scoresheet!$V$15='Match Total'!A26,Scoresheet!$BS$15,0)))))","v":0},{"$f":"IF(Scoresheet!$V$11='Match Total'!A26,Scoresheet!$BT$11,IF(Scoresheet!$V$12='Match Total'!A26,Scoresheet!$BT$12,IF(Scoresheet!$V$13='Match Total'!A26,Scoresheet!$BT$13,IF(Scoresheet!$V$14='Match Total'!A26,Scoresheet!$BT$14,IF(Scoresheet!$V$15='Match Total'!A26,Scoresheet!$BT$15,0)))))","v":0},{"$f":"IF(Scoresheet!$V$11='Match Total'!A26,Scoresheet!$BU$11,IF(Scoresheet!$V$12='Match Total'!A26,Scoresheet!$BU$12,IF(Scoresheet!$V$13='Match Total'!A26,Scoresheet!$BU$13,IF(Scoresheet!$V$14='Match Total'!A26,Scoresheet!$BU$14,IF(Scoresheet!$V$15='Match Total'!A26,Scoresheet!$BU$15,0)))))","v":0},{"$f":"IF(Scoresheet!$V$22='Match Total'!A26,Scoresheet!$BS$22,IF(Scoresheet!$V$23='Match Total'!A26,Scoresheet!$BS$23,IF(Scoresheet!$V$24='Match Total'!A26,Scoresheet!$BS$24,IF(Scoresheet!$V$25='Match Total'!A26,Scoresheet!$BS$25,IF(Scoresheet!$V$26='Match Total'!A26,Scoresheet!$BS$26,0)))))","v":0},{"$f":"IF(Scoresheet!$V$22='Match Total'!A26,Scoresheet!$BT$22,IF(Scoresheet!$V$23='Match Total'!A26,Scoresheet!$BT$23,IF(Scoresheet!$V$24='Match Total'!A26,Scoresheet!$BT$24,IF(Scoresheet!$V$25='Match Total'!A26,Scoresheet!$BT$25,IF(Scoresheet!$V$26='Match Total'!A26,Scoresheet!$BT$26,0)))))","v":0},{"$f":"IF(Scoresheet!$V$22='Match Total'!A26,Scoresheet!$BU$22,IF(Scoresheet!$V$23='Match Total'!A26,Scoresheet!$BU$23,IF(Scoresheet!$V$24='Match Total'!A26,Scoresheet!$BU$24,IF(Scoresheet!$V$25='Match Total'!A26,Scoresheet!$BU$25,IF(Scoresheet!$V$26='Match Total'!A26,Scoresheet!$BU$26,0)))))","v":0},{"$f":"IF(Scoresheet!$V$33='Match Total'!A26,Scoresheet!$BS$33,IF(Scoresheet!$V$34='Match Total'!A26,Scoresheet!$BS$34,IF(Scoresheet!$V$35='Match Total'!A26,Scoresheet!$BS$35,IF(Scoresheet!$V$36='Match Total'!A26,Scoresheet!$BS$36,IF(Scoresheet!$V$37='Match Total'!A26,Scoresheet!$BS$37,0)))))","v":0},{"$f":"IF(Scoresheet!$V$33='Match Total'!A26,Scoresheet!$BT$33,IF(Scoresheet!$V$34='Match Total'!A26,Scoresheet!$BT$34,IF(Scoresheet!$V$35='Match Total'!A26,Scoresheet!$BT$35,IF(Scoresheet!$V$36='Match Total'!A26,Scoresheet!$BT$36,IF(Scoresheet!$V$37='Match Total'!A26,Scoresheet!$BT$37,0)))))","v":0},{"$f":"IF(Scoresheet!$V$33='Match Total'!A26,Scoresheet!$BU$33,IF(Scoresheet!$V$34='Match Total'!A26,Scoresheet!$BU$34,IF(Scoresheet!$V$35='Match Total'!A26,Scoresheet!$BU$35,IF(Scoresheet!$V$36='Match Total'!A26,Scoresheet!$BU$36,IF(Scoresheet!$V$37='Match Total'!A26,Scoresheet!$BU$37,0)))))","v":0}]
[{"$f":"'Match Set Up'!E12","v":0},{"$f":"IF(Scoresheet!$V$11='Match Total'!A27,Scoresheet!$AF$11,IF(Scoresheet!$V$12='Match Total'!A27,Scoresheet!$AF$12,IF(Scoresheet!$V$13='Match Total'!A27,Scoresheet!$AF$13,IF(Scoresheet!$V$14='Match Total'!A27,Scoresheet!$AF$14,IF(Scoresheet!$V$15='Match Total'!A27,Scoresheet!$AF$15,\"\")))))","v":0},{"$f":"IF(Scoresheet!$V$22='Match Total'!A27,Scoresheet!$AF$22,IF(Scoresheet!$V$23='Match Total'!A27,Scoresheet!$AF$23,IF(Scoresheet!$V$24='Match Total'!A27,Scoresheet!$AF$24,IF(Scoresheet!$V$25='Match Total'!A27,Scoresheet!$AF$25,IF(Scoresheet!$V$26='Match Total'!A27,Scoresheet!$AF$26,\"\")))))","v":0},{"$f":"IF(Scoresheet!$V$33='Match Total'!A27,Scoresheet!$AF$33,IF(Scoresheet!$V$34='Match Total'!A27,Scoresheet!$AF$34,IF(Scoresheet!$V$35='Match Total'!A27,Scoresheet!$AF$35,IF(Scoresheet!$V$36='Match Total'!A27,Scoresheet!$AF$36,IF(Scoresheet!$V$37='Match Total'!A27,Scoresheet!$AF$37,\"\")))))","v":0},{"$f":"SUM(B27:D27)","v":0},"","",null,null,0,0,0,{"$f":"'Match Set Up'!F12","v":0},null,null,null,null,{"$f":"IF(Scoresheet!$V$11='Match Total'!A27,Scoresheet!$BS$11,IF(Scoresheet!$V$12='Match Total'!A27,Scoresheet!$BS$12,IF(Scoresheet!$V$13='Match Total'!A27,Scoresheet!$BS$13,IF(Scoresheet!$V$14='Match Total'!A27,Scoresheet!$BS$14,IF(Scoresheet!$V$15='Match Total'!A27,Scoresheet!$BS$15,0)))))","v":0},{"$f":"IF(Scoresheet!$V$11='Match Total'!A27,Scoresheet!$BT$11,IF(Scoresheet!$V$12='Match Total'!A27,Scoresheet!$BT$12,IF(Scoresheet!$V$13='Match Total'!A27,Scoresheet!$BT$13,IF(Scoresheet!$V$14='Match Total'!A27,Scoresheet!$BT$14,IF(Scoresheet!$V$15='Match Total'!A27,Scoresheet!$BT$15,0)))))","v":0},{"$f":"IF(Scoresheet!$V$11='Match Total'!A27,Scoresheet!$BU$11,IF(Scoresheet!$V$12='Match Total'!A27,Scoresheet!$BU$12,IF(Scoresheet!$V$13='Match Total'!A27,Scoresheet!$BU$13,IF(Scoresheet!$V$14='Match Total'!A27,Scoresheet!$BU$14,IF(Scoresheet!$V$15='Match Total'!A27,Scoresheet!$BU$15,0)))))","v":0},{"$f":"IF(Scoresheet!$V$22='Match Total'!A27,Scoresheet!$BS$22,IF(Scoresheet!$V$23='Match Total'!A27,Scoresheet!$BS$23,IF(Scoresheet!$V$24='Match Total'!A27,Scoresheet!$BS$24,IF(Scoresheet!$V$25='Match Total'!A27,Scoresheet!$BS$25,IF(Scoresheet!$V$26='Match Total'!A27,Scoresheet!$BS$26,0)))))","v":0},{"$f":"IF(Scoresheet!$V$22='Match Total'!A27,Scoresheet!$BT$22,IF(Scoresheet!$V$23='Match Total'!A27,Scoresheet!$BT$23,IF(Scoresheet!$V$24='Match Total'!A27,Scoresheet!$BT$24,IF(Scoresheet!$V$25='Match Total'!A27,Scoresheet!$BT$25,IF(Scoresheet!$V$26='Match Total'!A27,Scoresheet!$BT$26,0)))))","v":0},{"$f":"IF(Scoresheet!$V$22='Match Total'!A27,Scoresheet!$BU$22,IF(Scoresheet!$V$23='Match Total'!A27,Scoresheet!$BU$23,IF(Scoresheet!$V$24='Match Total'!A27,Scoresheet!$BU$24,IF(Scoresheet!$V$25='Match Total'!A27,Scoresheet!$BU$25,IF(Scoresheet!$V$26='Match Total'!A27,Scoresheet!$BU$26,0)))))","v":0},{"$f":"IF(Scoresheet!$V$33='Match Total'!A27,Scoresheet!$BS$33,IF(Scoresheet!$V$34='Match Total'!A27,Scoresheet!$BS$34,IF(Scoresheet!$V$35='Match Total'!A27,Scoresheet!$BS$35,IF(Scoresheet!$V$36='Match Total'!A27,Scoresheet!$BS$36,IF(Scoresheet!$V$37='Match Total'!A27,Scoresheet!$BS$37,0)))))","v":0},{"$f":"IF(Scoresheet!$V$33='Match Total'!A27,Scoresheet!$BT$33,IF(Scoresheet!$V$34='Match Total'!A27,Scoresheet!$BT$34,IF(Scoresheet!$V$35='Match Total'!A27,Scoresheet!$BT$35,IF(Scoresheet!$V$36='Match Total'!A27,Scoresheet!$BT$36,IF(Scoresheet!$V$37='Match Total'!A27,Scoresheet!$BT$37,0)))))","v":0},{"$f":"IF(Scoresheet!$V$33='Match Total'!A27,Scoresheet!$BU$33,IF(Scoresheet!$V$34='Match Total'!A27,Scoresheet!$BU$34,IF(Scoresheet!$V$35='Match Total'!A27,Scoresheet!$BU$35,IF(Scoresheet!$V$36='Match Total'!A27,Scoresheet!$BU$36,IF(Scoresheet!$V$37='Match Total'!A27,Scoresheet!$BU$37,0)))))","v":0}]
[{"$f":"'Match Set Up'!E13","v":0},{"$f":"IF(Scoresheet!$V$11='Match Total'!A28,Scoresheet!$AF$11,IF(Scoresheet!$V$12='Match Total'!A28,Scoresheet!$AF$12,IF(Scoresheet!$V$13='Match Total'!A28,Scoresheet!$AF$13,IF(Scoresheet!$V$14='Match Total'!A28,Scoresheet!$AF$14,IF(Scoresheet!$V$15='Match Total'!A28,Scoresheet!$AF$15,\"\")))))","v":0},{"$f":"IF(Scoresheet!$V$22='Match Total'!A28,Scoresheet!$AF$22,IF(Scoresheet!$V$23='Match Total'!A28,Scoresheet!$AF$23,IF(Scoresheet!$V$24='Match Total'!A28,Scoresheet!$AF$24,IF(Scoresheet!$V$25='Match Total'!A28,Scoresheet!$AF$25,IF(Scoresheet!$V$26='Match Total'!A28,Scoresheet!$AF$26,\"\")))))","v":0},{"$f":"IF(Scoresheet!$V$33='Match Total'!A28,Scoresheet!$AF$33,IF(Scoresheet!$V$34='Match Total'!A28,Scoresheet!$AF$34,IF(Scoresheet!$V$35='Match Total'!A28,Scoresheet!$AF$35,IF(Scoresheet!$V$36='Match Total'!A28,Scoresheet!$AF$36,IF(Scoresheet!$V$37='Match Total'!A28,Scoresheet!$AF$37,\"\")))))","v":0},0,"","",null,"High Team Game",0,0,0,{"$f":"'Match Set Up'!F13","v":0},null,null,null,null,{"$f":"IF(Scoresheet!$V$11='Match Total'!A28,Scoresheet!$BS$11,IF(Scoresheet!$V$12='Match Total'!A28,Scoresheet!$BS$12,IF(Scoresheet!$V$13='Match Total'!A28,Scoresheet!$BS$13,IF(Scoresheet!$V$14='Match Total'!A28,Scoresheet!$BS$14,IF(Scoresheet!$V$15='Match Total'!A28,Scoresheet!$BS$15,0)))))","v":0},{"$f":"IF(Scoresheet!$V$11='Match Total'!A28,Scoresheet!$BT$11,IF(Scoresheet!$V$12='Match Total'!A28,Scoresheet!$BT$12,IF(Scoresheet!$V$13='Match Total'!A28,Scoresheet!$BT$13,IF(Scoresheet!$V$14='Match Total'!A28,Scoresheet!$BT$14,IF(Scoresheet!$V$15='Match Total'!A28,Scoresheet!$BT$15,0)))))","v":0},{"$f":"IF(Scoresheet!$V$11='Match Total'!A28,Scoresheet!$BU$11,IF(Scoresheet!$V$12='Match Total'!A28,Scoresheet!$BU$12,IF(Scoresheet!$V$13='Match Total'!A28,Scoresheet!$BU$13,IF(Scoresheet!$V$14='Match Total'!A28,Scoresheet!$BU$14,IF(Scoresheet!$V$15='Match Total'!A28,Scoresheet!$BU$15,0)))))","v":0},{"$f":"IF(Scoresheet!$V$22='Match Total'!A28,Scoresheet!$BS$22,IF(Scoresheet!$V$23='Match Total'!A28,Scoresheet!$BS$23,IF(Scoresheet!$V$24='Match Total'!A28,Scoresheet!$BS$24,IF(Scoresheet!$V$25='Match Total'!A28,Scoresheet!$BS$25,IF(Scoresheet!$V$26='Match Total'!A28,Scoresheet!$BS$26,0)))))","v":0},{"$f":"IF(Scoresheet!$V$22='Match Total'!A28,Scoresheet!$BT$22,IF(Scoresheet!$V$23='Match Total'!A28,Scoresheet!$BT$23,IF(Scoresheet!$V$24='Match Total'!A28,Scoresheet!$BT$24,IF(Scoresheet!$V$25='Match Total'!A28,Scoresheet!$BT$25,IF(Scoresheet!$V$26='Match Total'!A28,Scoresheet!$BT$26,0)))))","v":0},{"$f":"IF(Scoresheet!$V$22='Match Total'!A28,Scoresheet!$BU$22,IF(Scoresheet!$V$23='Match Total'!A28,Scoresheet!$BU$23,IF(Scoresheet!$V$24='Match Total'!A28,Scoresheet!$BU$24,IF(Scoresheet!$V$25='Match Total'!A28,Scoresheet!$BU$25,IF(Scoresheet!$V$26='Match Total'!A28,Scoresheet!$BU$26,0)))))","v":0},{"$f":"IF(Scoresheet!$V$33='Match Total'!A28,Scoresheet!$BS$33,IF(Scoresheet!$V$34='Match Total'!A28,Scoresheet!$BS$34,IF(Scoresheet!$V$35='Match Total'!A28,Scoresheet!$BS$35,IF(Scoresheet!$V$36='Match Total'!A28,Scoresheet!$BS$36,IF(Scoresheet!$V$37='Match Total'!A28,Scoresheet!$BS$37,0)))))","v":0},{"$f":"IF(Scoresheet!$V$33='Match Total'!A28,Scoresheet!$BT$33,IF(Scoresheet!$V$34='Match Total'!A28,Scoresheet!$BT$34,IF(Scoresheet!$V$35='Match Total'!A28,Scoresheet!$BT$35,IF(Scoresheet!$V$36='Match Total'!A28,Scoresheet!$BT$36,IF(Scoresheet!$V$37='Match Total'!A28,Scoresheet!$BT$37,0)))))","v":0},{"$f":"IF(Scoresheet!$V$33='Match Total'!A28,Scoresheet!$BU$33,IF(Scoresheet!$V$34='Match Total'!A28,Scoresheet!$BU$34,IF(Scoresheet!$V$35='Match Total'!A28,Scoresheet!$BU$35,IF(Scoresheet!$V$36='Match Total'!A28,Scoresheet!$BU$36,IF(Scoresheet!$V$37='Match Total'!A28,Scoresheet!$BU$37,0)))))","v":0}]
[{"$f":"'Match Set Up'!E14","v":0},{"$f":"IF(Scoresheet!$V$11='Match Total'!A29,Scoresheet!$AF$11,IF(Scoresheet!$V$12='Match Total'!A29,Scoresheet!$AF$12,IF(Scoresheet!$V$13='Match Total'!A29,Scoresheet!$AF$13,IF(Scoresheet!$V$14='Match Total'!A29,Scoresheet!$AF$14,IF(Scoresheet!$V$15='Match Total'!A29,Scoresheet!$AF$15,\"\")))))","v":0},{"$f":"IF(Scoresheet!$V$22='Match Total'!A29,Scoresheet!$AF$22,IF(Scoresheet!$V$23='Match Total'!A29,Scoresheet!$AF$23,IF(Scoresheet!$V$24='Match Total'!A29,Scoresheet!$AF$24,IF(Scoresheet!$V$25='Match Total'!A29,Scoresheet!$AF$25,IF(Scoresheet!$V$26='Match Total'!A29,Scoresheet!$AF$26,\"\")))))","v":0},{"$f":"IF(Scoresheet!$V$33='Match Total'!A29,Scoresheet!$AF$33,IF(Scoresheet!$V$34='Match Total'!A29,Scoresheet!$AF$34,IF(Scoresheet!$V$35='Match Total'!A29,Scoresheet!$AF$35,IF(Scoresheet!$V$36='Match Total'!A29,Scoresheet!$AF$36,IF(Scoresheet!$V$37='Match Total'!A29,Scoresheet!$AF$37,\"\")))))","v":0},0,"","",null,{"$f":"MAX(B34:D34)","v":0},0,0,0,{"$f":"'Match Set Up'!F14","v":0},null,null,null,null,{"$f":"IF(Scoresheet!$V$11='Match Total'!A29,Scoresheet!$BS$11,IF(Scoresheet!$V$12='Match Total'!A29,Scoresheet!$BS$12,IF(Scoresheet!$V$13='Match Total'!A29,Scoresheet!$BS$13,IF(Scoresheet!$V$14='Match Total'!A29,Scoresheet!$BS$14,IF(Scoresheet!$V$15='Match Total'!A29,Scoresheet!$BS$15,0)))))","v":0},{"$f":"IF(Scoresheet!$V$11='Match Total'!A29,Scoresheet!$BT$11,IF(Scoresheet!$V$12='Match Total'!A29,Scoresheet!$BT$12,IF(Scoresheet!$V$13='Match Total'!A29,Scoresheet!$BT$13,IF(Scoresheet!$V$14='Match Total'!A29,Scoresheet!$BT$14,IF(Scoresheet!$V$15='Match Total'!A29,Scoresheet!$BT$15,0)))))","v":0},{"$f":"IF(Scoresheet!$V$11='Match Total'!A29,Scoresheet!$BU$11,IF(Scoresheet!$V$12='Match Total'!A29,Scoresheet!$BU$12,IF(Scoresheet!$V$13='Match Total'!A29,Scoresheet!$BU$13,IF(Scoresheet!$V$14='Match Total'!A29,Scoresheet!$BU$14,IF(Scoresheet!$V$15='Match Total'!A29,Scoresheet!$BU$15,0)))))","v":0},{"$f":"IF(Scoresheet!$V$22='Match Total'!A29,Scoresheet!$BS$22,IF(Scoresheet!$V$23='Match Total'!A29,Scoresheet!$BS$23,IF(Scoresheet!$V$24='Match Total'!A29,Scoresheet!$BS$24,IF(Scoresheet!$V$25='Match Total'!A29,Scoresheet!$BS$25,IF(Scoresheet!$V$26='Match Total'!A29,Scoresheet!$BS$26,0)))))","v":0},{"$f":"IF(Scoresheet!$V$22='Match Total'!A29,Scoresheet!$BT$22,IF(Scoresheet!$V$23='Match Total'!A29,Scoresheet!$BT$23,IF(Scoresheet!$V$24='Match Total'!A29,Scoresheet!$BT$24,IF(Scoresheet!$V$25='Match Total'!A29,Scoresheet!$BT$25,IF(Scoresheet!$V$26='Match Total'!A29,Scoresheet!$BT$26,0)))))","v":0},{"$f":"IF(Scoresheet!$V$22='Match Total'!A29,Scoresheet!$BU$22,IF(Scoresheet!$V$23='Match Total'!A29,Scoresheet!$BU$23,IF(Scoresheet!$V$24='Match Total'!A29,Scoresheet!$BU$24,IF(Scoresheet!$V$25='Match Total'!A29,Scoresheet!$BU$25,IF(Scoresheet!$V$26='Match Total'!A29,Scoresheet!$BU$26,0)))))","v":0},{"$f":"IF(Scoresheet!$V$33='Match Total'!A29,Scoresheet!$BS$33,IF(Scoresheet!$V$34='Match Total'!A29,Scoresheet!$BS$34,IF(Scoresheet!$V$35='Match Total'!A29,Scoresheet!$BS$35,IF(Scoresheet!$V$36='Match Total'!A29,Scoresheet!$BS$36,IF(Scoresheet!$V$37='Match Total'!A29,Scoresheet!$BS$37,0)))))","v":0},{"$f":"IF(Scoresheet!$V$33='Match Total'!A29,Scoresheet!$BT$33,IF(Scoresheet!$V$34='Match Total'!A29,Scoresheet!$BT$34,IF(Scoresheet!$V$35='Match Total'!A29,Scoresheet!$BT$35,IF(Scoresheet!$V$36='Match Total'!A29,Scoresheet!$BT$36,IF(Scoresheet!$V$37='Match Total'!A29,Scoresheet!$BT$37,0)))))","v":0},{"$f":"IF(Scoresheet!$V$33='Match Total'!A29,Scoresheet!$BU$33,IF(Scoresheet!$V$34='Match Total'!A29,Scoresheet!$BU$34,IF(Scoresheet!$V$35='Match Total'!A29,Scoresheet!$BU$35,IF(Scoresheet!$V$36='Match Total'!A29,Scoresheet!$BU$36,IF(Scoresheet!$V$37='Match Total'!A29,Scoresheet!$BU$37,0)))))","v":0}]
[{"$f":"'Match Set Up'!E15","v":0},{"$f":"IF(Scoresheet!$V$11='Match Total'!A30,Scoresheet!$AF$11,IF(Scoresheet!$V$12='Match Total'!A30,Scoresheet!$AF$12,IF(Scoresheet!$V$13='Match Total'!A30,Scoresheet!$AF$13,IF(Scoresheet!$V$14='Match Total'!A30,Scoresheet!$AF$14,IF(Scoresheet!$V$15='Match Total'!A30,Scoresheet!$AF$15,\"\")))))","v":0},{"$f":"IF(Scoresheet!$V$22='Match Total'!A30,Scoresheet!$AF$22,IF(Scoresheet!$V$23='Match Total'!A30,Scoresheet!$AF$23,IF(Scoresheet!$V$24='Match Total'!A30,Scoresheet!$AF$24,IF(Scoresheet!$V$25='Match Total'!A30,Scoresheet!$AF$25,IF(Scoresheet!$V$26='Match Total'!A30,Scoresheet!$AF$26,\"\")))))","v":0},{"$f":"IF(Scoresheet!$V$33='Match Total'!A30,Scoresheet!$AF$33,IF(Scoresheet!$V$34='Match Total'!A30,Scoresheet!$AF$34,IF(Scoresheet!$V$35='Match Total'!A30,Scoresheet!$AF$35,IF(Scoresheet!$V$36='Match Total'!A30,Scoresheet!$AF$36,IF(Scoresheet!$V$37='Match Total'!A30,Scoresheet!$AF$37,\"\")))))","v":0},0,"","",null,null,0,0,0,{"$f":"'Match Set Up'!F15","v":0},null,null,null,null,{"$f":"IF(Scoresheet!$V$11='Match Total'!A30,Scoresheet!$BS$11,IF(Scoresheet!$V$12='Match Total'!A30,Scoresheet!$BS$12,IF(Scoresheet!$V$13='Match Total'!A30,Scoresheet!$BS$13,IF(Scoresheet!$V$14='Match Total'!A30,Scoresheet!$BS$14,IF(Scoresheet!$V$15='Match Total'!A30,Scoresheet!$BS$15,0)))))","v":0},{"$f":"IF(Scoresheet!$V$11='Match Total'!A30,Scoresheet!$BT$11,IF(Scoresheet!$V$12='Match Total'!A30,Scoresheet!$BT$12,IF(Scoresheet!$V$13='Match Total'!A30,Scoresheet!$BT$13,IF(Scoresheet!$V$14='Match Total'!A30,Scoresheet!$BT$14,IF(Scoresheet!$V$15='Match Total'!A30,Scoresheet!$BT$15,0)))))","v":0},{"$f":"IF(Scoresheet!$V$11='Match Total'!A30,Scoresheet!$BU$11,IF(Scoresheet!$V$12='Match Total'!A30,Scoresheet!$BU$12,IF(Scoresheet!$V$13='Match Total'!A30,Scoresheet!$BU$13,IF(Scoresheet!$V$14='Match Total'!A30,Scoresheet!$BU$14,IF(Scoresheet!$V$15='Match Total'!A30,Scoresheet!$BU$15,0)))))","v":0},{"$f":"IF(Scoresheet!$V$22='Match Total'!A30,Scoresheet!$BS$22,IF(Scoresheet!$V$23='Match Total'!A30,Scoresheet!$BS$23,IF(Scoresheet!$V$24='Match Total'!A30,Scoresheet!$BS$24,IF(Scoresheet!$V$25='Match Total'!A30,Scoresheet!$BS$25,IF(Scoresheet!$V$26='Match Total'!A30,Scoresheet!$BS$26,0)))))","v":0},{"$f":"IF(Scoresheet!$V$22='Match Total'!A30,Scoresheet!$BT$22,IF(Scoresheet!$V$23='Match Total'!A30,Scoresheet!$BT$23,IF(Scoresheet!$V$24='Match Total'!A30,Scoresheet!$BT$24,IF(Scoresheet!$V$25='Match Total'!A30,Scoresheet!$BT$25,IF(Scoresheet!$V$26='Match Total'!A30,Scoresheet!$BT$26,0)))))","v":0},{"$f":"IF(Scoresheet!$V$22='Match Total'!A30,Scoresheet!$BU$22,IF(Scoresheet!$V$23='Match Total'!A30,Scoresheet!$BU$23,IF(Scoresheet!$V$24='Match Total'!A30,Scoresheet!$BU$24,IF(Scoresheet!$V$25='Match Total'!A30,Scoresheet!$BU$25,IF(Scoresheet!$V$26='Match Total'!A30,Scoresheet!$BU$26,0)))))","v":0},{"$f":"IF(Scoresheet!$V$33='Match Total'!A30,Scoresheet!$BS$33,IF(Scoresheet!$V$34='Match Total'!A30,Scoresheet!$BS$34,IF(Scoresheet!$V$35='Match Total'!A30,Scoresheet!$BS$35,IF(Scoresheet!$V$36='Match Total'!A30,Scoresheet!$BS$36,IF(Scoresheet!$V$37='Match Total'!A30,Scoresheet!$BS$37,0)))))","v":0},{"$f":"IF(Scoresheet!$V$33='Match Total'!A30,Scoresheet!$BT$33,IF(Scoresheet!$V$34='Match Total'!A30,Scoresheet!$BT$34,IF(Scoresheet!$V$35='Match Total'!A30,Scoresheet!$BT$35,IF(Scoresheet!$V$36='Match Total'!A30,Scoresheet!$BT$36,IF(Scoresheet!$V$37='Match Total'!A30,Scoresheet!$BT$37,0)))))","v":0},{"$f":"IF(Scoresheet!$V$33='Match Total'!A30,Scoresheet!$BU$33,IF(Scoresheet!$V$34='Match Total'!A30,Scoresheet!$BU$34,IF(Scoresheet!$V$35='Match Total'!A30,Scoresheet!$BU$35,IF(Scoresheet!$V$36='Match Total'!A30,Scoresheet!$BU$36,IF(Scoresheet!$V$37='Match Total'!A30,Scoresheet!$BU$37,0)))))","v":0}]
[{"$f":"'Match Set Up'!E16","v":0},{"$f":"IF(Scoresheet!$V$11='Match Total'!A31,Scoresheet!$AF$11,IF(Scoresheet!$V$12='Match Total'!A31,Scoresheet!$AF$12,IF(Scoresheet!$V$13='Match Total'!A31,Scoresheet!$AF$13,IF(Scoresheet!$V$14='Match Total'!A31,Scoresheet!$AF$14,IF(Scoresheet!$V$15='Match Total'!A31,Scoresheet!$AF$15,\"\")))))","v":0},{"$f":"IF(Scoresheet!$V$22='Match Total'!A31,Scoresheet!$AF$22,IF(Scoresheet!$V$23='Match Total'!A31,Scoresheet!$AF$23,IF(Scoresheet!$V$24='Match Total'!A31,Scoresheet!$AF$24,IF(Scoresheet!$V$25='Match Total'!A31,Scoresheet!$AF$25,IF(Scoresheet!$V$26='Match Total'!A31,Scoresheet!$AF$26,\"\")))))","v":0},{"$f":"IF(Scoresheet!$V$33='Match Total'!A31,Scoresheet!$AF$33,IF(Scoresheet!$V$34='Match Total'!A31,Scoresheet!$AF$34,IF(Scoresheet!$V$35='Match Total'!A31,Scoresheet!$AF$35,IF(Scoresheet!$V$36='Match Total'!A31,Scoresheet!$AF$36,IF(Scoresheet!$V$37='Match Total'!A31,Scoresheet!$AF$37,\"\")))))","v":0},0,"","",null,null,0,0,0,{"$f":"'Match Set Up'!F16","v":0},null,null,null,null,{"$f":"IF(Scoresheet!$V$11='Match Total'!A31,Scoresheet!$BS$11,IF(Scoresheet!$V$12='Match Total'!A31,Scoresheet!$BS$12,IF(Scoresheet!$V$13='Match Total'!A31,Scoresheet!$BS$13,IF(Scoresheet!$V$14='Match Total'!A31,Scoresheet!$BS$14,IF(Scoresheet!$V$15='Match Total'!A31,Scoresheet!$BS$15,0)))))","v":0},{"$f":"IF(Scoresheet!$V$11='Match Total'!A31,Scoresheet!$BT$11,IF(Scoresheet!$V$12='Match Total'!A31,Scoresheet!$BT$12,IF(Scoresheet!$V$13='Match Total'!A31,Scoresheet!$BT$13,IF(Scoresheet!$V$14='Match Total'!A31,Scoresheet!$BT$14,IF(Scoresheet!$V$15='Match Total'!A31,Scoresheet!$BT$15,0)))))","v":0},{"$f":"IF(Scoresheet!$V$11='Match Total'!A31,Scoresheet!$BU$11,IF(Scoresheet!$V$12='Match Total'!A31,Scoresheet!$BU$12,IF(Scoresheet!$V$13='Match Total'!A31,Scoresheet!$BU$13,IF(Scoresheet!$V$14='Match Total'!A31,Scoresheet!$BU$14,IF(Scoresheet!$V$15='Match Total'!A31,Scoresheet!$BU$15,0)))))","v":0},{"$f":"IF(Scoresheet!$V$22='Match Total'!A31,Scoresheet!$BS$22,IF(Scoresheet!$V$23='Match Total'!A31,Scoresheet!$BS$23,IF(Scoresheet!$V$24='Match Total'!A31,Scoresheet!$BS$24,IF(Scoresheet!$V$25='Match Total'!A31,Scoresheet!$BS$25,IF(Scoresheet!$V$26='Match Total'!A31,Scoresheet!$BS$26,0)))))","v":0},{"$f":"IF(Scoresheet!$V$22='Match Total'!A31,Scoresheet!$BT$22,IF(Scoresheet!$V$23='Match Total'!A31,Scoresheet!$BT$23,IF(Scoresheet!$V$24='Match Total'!A31,Scoresheet!$BT$24,IF(Scoresheet!$V$25='Match Total'!A31,Scoresheet!$BT$25,IF(Scoresheet!$V$26='Match Total'!A31,Scoresheet!$BT$26,0)))))","v":0},{"$f":"IF(Scoresheet!$V$22='Match Total'!A31,Scoresheet!$BU$22,IF(Scoresheet!$V$23='Match Total'!A31,Scoresheet!$BU$23,IF(Scoresheet!$V$24='Match Total'!A31,Scoresheet!$BU$24,IF(Scoresheet!$V$25='Match Total'!A31,Scoresheet!$BU$25,IF(Scoresheet!$V$26='Match Total'!A31,Scoresheet!$BU$26,0)))))","v":0},{"$f":"IF(Scoresheet!$V$33='Match Total'!A31,Scoresheet!$BS$33,IF(Scoresheet!$V$34='Match Total'!A31,Scoresheet!$BS$34,IF(Scoresheet!$V$35='Match Total'!A31,Scoresheet!$BS$35,IF(Scoresheet!$V$36='Match Total'!A31,Scoresheet!$BS$36,IF(Scoresheet!$V$37='Match Total'!A31,Scoresheet!$BS$37,0)))))","v":0},{"$f":"IF(Scoresheet!$V$33='Match Total'!A31,Scoresheet!$BT$33,IF(Scoresheet!$V$34='Match Total'!A31,Scoresheet!$BT$34,IF(Scoresheet!$V$35='Match Total'!A31,Scoresheet!$BT$35,IF(Scoresheet!$V$36='Match Total'!A31,Scoresheet!$BT$36,IF(Scoresheet!$V$37='Match Total'!A31,Scoresheet!$BT$37,0)))))","v":0},{"$f":"IF(Scoresheet!$V$33='Match Total'!A31,Scoresheet!$BU$33,IF(Scoresheet!$V$34='Match Total'!A31,Scoresheet!$BU$34,IF(Scoresheet!$V$35='Match Total'!A31,Scoresheet!$BU$35,IF(Scoresheet!$V$36='Match Total'!A31,Scoresheet!$BU$36,IF(Scoresheet!$V$37='Match Total'!A31,Scoresheet!$BU$37,0)))))","v":0}]
[{"$f":"'Match Set Up'!E17","v":0},{"$f":"IF(Scoresheet!$V$11='Match Total'!A32,Scoresheet!$AF$11,IF(Scoresheet!$V$12='Match Total'!A32,Scoresheet!$AF$12,IF(Scoresheet!$V$13='Match Total'!A32,Scoresheet!$AF$13,IF(Scoresheet!$V$14='Match Total'!A32,Scoresheet!$AF$14,IF(Scoresheet!$V$15='Match Total'!A32,Scoresheet!$AF$15,\"\")))))","v":0},{"$f":"IF(Scoresheet!$V$22='Match Total'!A32,Scoresheet!$AF$22,IF(Scoresheet!$V$23='Match Total'!A32,Scoresheet!$AF$23,IF(Scoresheet!$V$24='Match Total'!A32,Scoresheet!$AF$24,IF(Scoresheet!$V$25='Match Total'!A32,Scoresheet!$AF$25,IF(Scoresheet!$V$26='Match Total'!A32,Scoresheet!$AF$26,\"\")))))","v":0},{"$f":"IF(Scoresheet!$V$33='Match Total'!A32,Scoresheet!$AF$33,IF(Scoresheet!$V$34='Match Total'!A32,Scoresheet!$AF$34,IF(Scoresheet!$V$35='Match Total'!A32,Scoresheet!$AF$35,IF(Scoresheet!$V$36='Match Total'!A32,Scoresheet!$AF$36,IF(Scoresheet!$V$37='Match Total'!A32,Scoresheet!$AF$37,\"\")))))","v":0},0,"","",null,null,0,0,0,{"$f":"'Match Set Up'!F17","v":0},null,null,null,null,{"$f":"IF(Scoresheet!$V$11='Match Total'!A32,Scoresheet!$BS$11,IF(Scoresheet!$V$12='Match Total'!A32,Scoresheet!$BS$12,IF(Scoresheet!$V$13='Match Total'!A32,Scoresheet!$BS$13,IF(Scoresheet!$V$14='Match Total'!A32,Scoresheet!$BS$14,IF(Scoresheet!$V$15='Match Total'!A32,Scoresheet!$BS$15,0)))))","v":0},{"$f":"IF(Scoresheet!$V$11='Match Total'!A32,Scoresheet!$BT$11,IF(Scoresheet!$V$12='Match Total'!A32,Scoresheet!$BT$12,IF(Scoresheet!$V$13='Match Total'!A32,Scoresheet!$BT$13,IF(Scoresheet!$V$14='Match Total'!A32,Scoresheet!$BT$14,IF(Scoresheet!$V$15='Match Total'!A32,Scoresheet!$BT$15,0)))))","v":0},{"$f":"IF(Scoresheet!$V$11='Match Total'!A32,Scoresheet!$BU$11,IF(Scoresheet!$V$12='Match Total'!A32,Scoresheet!$BU$12,IF(Scoresheet!$V$13='Match Total'!A32,Scoresheet!$BU$13,IF(Scoresheet!$V$14='Match Total'!A32,Scoresheet!$BU$14,IF(Scoresheet!$V$15='Match Total'!A32,Scoresheet!$BU$15,0)))))","v":0},{"$f":"IF(Scoresheet!$V$22='Match Total'!A32,Scoresheet!$BS$22,IF(Scoresheet!$V$23='Match Total'!A32,Scoresheet!$BS$23,IF(Scoresheet!$V$24='Match Total'!A32,Scoresheet!$BS$24,IF(Scoresheet!$V$25='Match Total'!A32,Scoresheet!$BS$25,IF(Scoresheet!$V$26='Match Total'!A32,Scoresheet!$BS$26,0)))))","v":0},{"$f":"IF(Scoresheet!$V$22='Match Total'!A32,Scoresheet!$BT$22,IF(Scoresheet!$V$23='Match Total'!A32,Scoresheet!$BT$23,IF(Scoresheet!$V$24='Match Total'!A32,Scoresheet!$BT$24,IF(Scoresheet!$V$25='Match Total'!A32,Scoresheet!$BT$25,IF(Scoresheet!$V$26='Match Total'!A32,Scoresheet!$BT$26,0)))))","v":0},{"$f":"IF(Scoresheet!$V$22='Match Total'!A32,Scoresheet!$BU$22,IF(Scoresheet!$V$23='Match Total'!A32,Scoresheet!$BU$23,IF(Scoresheet!$V$24='Match Total'!A32,Scoresheet!$BU$24,IF(Scoresheet!$V$25='Match Total'!A32,Scoresheet!$BU$25,IF(Scoresheet!$V$26='Match Total'!A32,Scoresheet!$BU$26,0)))))","v":0},{"$f":"IF(Scoresheet!$V$33='Match Total'!A32,Scoresheet!$BS$33,IF(Scoresheet!$V$34='Match Total'!A32,Scoresheet!$BS$34,IF(Scoresheet!$V$35='Match Total'!A32,Scoresheet!$BS$35,IF(Scoresheet!$V$36='Match Total'!A32,Scoresheet!$BS$36,IF(Scoresheet!$V$37='Match Total'!A32,Scoresheet!$BS$37,0)))))","v":0},{"$f":"IF(Scoresheet!$V$33='Match Total'!A32,Scoresheet!$BT$33,IF(Scoresheet!$V$34='Match Total'!A32,Scoresheet!$BT$34,IF(Scoresheet!$V$35='Match Total'!A32,Scoresheet!$BT$35,IF(Scoresheet!$V$36='Match Total'!A32,Scoresheet!$BT$36,IF(Scoresheet!$V$37='Match Total'!A32,Scoresheet!$BT$37,0)))))","v":0},{"$f":"IF(Scoresheet!$V$33='Match Total'!A32,Scoresheet!$BU$33,IF(Scoresheet!$V$34='Match Total'!A32,Scoresheet!$BU$34,IF(Scoresheet!$V$35='Match Total'!A32,Scoresheet!$BU$35,IF(Scoresheet!$V$36='Match Total'!A32,Scoresheet!$BU$36,IF(Scoresheet!$V$37='Match Total'!A32,Scoresheet!$BU$37,0)))))","v":0}]
[null,null,null,null,null,null,""]
["Total",{"$f":"SUM(B21:B32)","v":0},{"$f":"SUM(C21:C32)","v":0},{"$f":"SUM(D21:D32)","v":0},{"$f":"SUM(B34:D34)","v":0},{"$f":"COUNT(B34:D34)","v":3},{"$f":"E34/F34","v":0},null,null,{"$f":"SUM(J2:J13) +SUM(J21:J32)","v":0},{"$f":"SUM(K2:K13) +SUM(K21:K32)","v":0},0]
["Difference",0,0,0,{"$f":"SUM(B35:D35)","v":0},"WINS"]
["Grand Total",{"$f":"SUM(B34:B35)","v":0},{"$f":"SUM(C34:C35)","v":0},{"$f":"SUM(D34:D35)","v":0},{"$f":"SUM(E34:E35)","v":0},{"$f":"Scoresheet!AL$43","v":0}]

{"sheet":"Graph","index":5,"n_rows":13,"n_cols":17,"rows_kept":13,"cut":false,"hidden":false,"merged":[]}
["Players ","Game Average"]
[{"$f":"Player1","v":0},29,27,9,9,9,9,9,9,9,9,9,27,22,21,43]
[{"$f":"Player2","v":0},25,22,30,36,24]
[{"$f":"Player3","v":0},26,28,34,33,39,32,24]
[{"$f":"Player4","v":0},8,15,20,22]
[{"$f":"Player5","v":0},8,12,9,9,12,9,9,9,9,9,28,33,33,19,27,22]
[{"$f":"Player6","v":0},8,9,9,12,9,9,12,9,9,9,27,16]
[{"$f":"Player7","v":0},25,9,9,9,9,9,9,9,9,9,12,20]
[{"$f":"Player8","v":0},8,33,9,9,9,9,9,9,9,9,9]
[{"$f":"Player9","v":0},8]
[{"$f":"Player10","v":0},27,24,19,22]
[{"$f":"Player11","v":0},25]
[{"$f":"Player12","v":0},27,16]

{"sheet":"Teams","index":6,"n_rows":14,"n_cols":9,"rows_kept":14,"cut":false,"hidden":false,"merged":[]}
["Team Name","Boro Riverview Buddies","William Penn Psychos","Reliance Cockroaches","West Fairview WETSU","Enola Legion Buggers","River City Team 717","Trindle Inn Honey Badgers","West Fairview Reaper Crew"]
["Leave this row blank"]
["Team Members","Toby Simko","Molly Brown","Bob Schu","Brian Duka","Jeremey Zelner","Mark Fair","Jeff Lasko","Chuck Byrd"]
[null,"Tom Teprovich","Stan Bobula","Jack Dimpsey","Matt Fritzinger","Ruth Carrera","Darin Reeder","Brian Kipp","Bill Zelner, Sr "]
[null,"Brian Ruhl","Keith Bobula","Skip Konashefski","Dave Walton","Bob Stratchko","Levi Bilger","Andy Draisey","Jim Morrow"]
[null,"Mario Reisinger","Dave Spink","John Benkowitcsh","Jeff McBride","Dave Counsil","Mike Fitzwater","Kendall Barkley","Bill Zelner, Jr "]
[null,"Bud Friedrich","Mike Peterson","Jason Shoop","Bob Minium","Ted Grothe","Aaron Hughes","Mike Hurley","Tyler Mardis"]
[null,"Dave Ochenis","Craig Peterson","Bob McCurdy","Brian Putt","Sharon Grothe","Ken Hosler","Brad Adams","Jim Beissel"]
[null,"Bob Goss","Clyde North","Joe Konupka","Scott Hall","Mike Murray","Danny Shawyer","Pete Bonnick","Casey McMillian"]
[null,"Joe Gurzenda","Chris Dejoseph",null,"Ric Mitchell","Shawn Jarmuzek","Bill Dye","Shawn Johnson","Ed Mardis"]
[null,"Rich Spitler",null,null,"Jim Bollinger","Bob Carrera",null,null,"Tommy Yeager"]
[null,null,null,null,"Brad Antes","Mark Bumgardner"]
[null,null,null,null,"Bob Patrick","Nelson May"]
[null,null,null,null,"Jim Oakley","Janet Nicholas"]

{"sheet":"Schedule","index":7,"n_rows":81,"n_cols":8,"rows_kept":81,"cut":false,"hidden":false,"merged":[]}
["Week","Away","Home",null,null,null,"Week","Date"]
[1,"West Fairview WETSU","West Fairview Reaper Crew",null,null,null,1,"2016-09-14"]
[1,"Enola Legion Buggers","Trindle Inn Honey Badgers",null,null,null,2,"2016-09-21"]
[1,"Reliance Cockroaches","William Penn Psychos",null,null,null,3,"2016-09-28"]
[1,"Boro Riverview Buddies","River City Team 717",null,null,null,4,"2016-10-05"]
[2,"West Fairview Reaper Crew","Trindle Inn Honey Badgers",null,null,null,5,"2016-10-12"]
[2,"Enola Legion Buggers","West Fairview WETSU",null,null,null,6,"2016-10-19"]
[2,"William Penn Psychos","River City Team 717",null,null,null,7,"2016-10-26"]
[2,"Boro Riverview Buddies","Reliance Cockroaches",null,null,null,8,"2016-11-02"]
[3,"West Fairview Reaper Crew","Enola Legion Buggers",null,null,null,9,"2016-11-09"]
[3,"Trindle Inn Honey Badgers","West Fairview WETSU",null,null,null,10,"2016-11-16"]
[3,"Boro Riverview Buddies","William Penn Psychos",null,null,null,11,"2016-12-07"]
[3,"River City Team 717","Reliance Cockroaches",null,null,null,12,"2016-12-14"]
[4,"West Fairview Reaper Crew","William Penn Psychos",null,null,null,13,"2016-12-21"]
[4,"Reliance Cockroaches","Boro Riverview Buddies",null,null,null,14,"2016-12-28"]
[4,"Trindle Inn Honey Badgers","River City Team 717",null,null,null,15,"2017-01-04"]
[4,"Enola Legion Buggers","West Fairview WETSU",null,null,null,16,"2017-01-11"]
[5,"Reliance Cockroaches","West Fairview Reaper Crew",null,null,null,17,"2017-01-18"]
[5,"River City Team 717","Boro Riverview Buddies",null,null,null,18,"2017-01-25"]
[5,"West Fairview WETSU","Trindle Inn Honey Badgers",null,null,null,19,"2017-02-01"]
[5,"William Penn Psychos","Enola Legion Buggers",null,null,null,20,"2017-02-08"]
[6,"West Fairview Reaper Crew","Boro Riverview Buddies"]
[6,"Trindle Inn Honey Badgers","Reliance Cockroaches"]
[6,"River City Team 717","Enola Legion Buggers"]
[6,"William Penn Psychos","West Fairview WETSU"]
[7,"Boro Riverview Buddies","William Penn Psychos"]
[7,"Trindle Inn Honey Badgers","West Fairview Reaper Crew"]
[7,"Enola Legion Buggers","Reliance Cockroaches"]
[7,"West Fairview WETSU","River City Team 717"]
[8,"Boro Riverview Buddies","Trindle Inn Honey Badgers"]
[8,"West Fairview Reaper Crew","Enola Legion Buggers"]
[8,"Reliance Cockroaches","West Fairview WETSU"]
[8,"William Penn Psychos","River City Team 717"]
[9,"Trindle Inn Honey Badgers","William Penn Psychos"]
[9,"Enola Legion Buggers","Boro Riverview Buddies"]
[9,"West Fairview WETSU","West Fairview Reaper Crew"]
[9,"River City Team 717","Reliance Cockroaches"]
[10,"Trindle Inn Honey Badgers","Enola Legion Buggers"]
[10,"West Fairview WETSU","Boro Riverview Buddies"]
[10,"River City Team 717","West Fairview Reaper Crew"]
[10,"William Penn Psychos","Reliance Cockroaches"]
[11,"West Fairview Reaper Crew","Reliance Cockroaches"]
[11,"Boro Riverview Buddies","River City Team 717"]
[11,"Trindle Inn Honey Badgers","West Fairview WETSU"]
[11,"Enola Legion Buggers","William Penn Psychos"]
[12,"Boro Riverview Buddies","West Fairview Reaper Crew"]
[12,"Reliance Cockroaches","Trindle Inn Honey Badgers"]
[12,"Enola Legion Buggers","River City Team 717"]
[12,"West Fairview WETSU","William Penn Psychos"]
[13,"William Penn Psychos","West Fairview Reaper Crew"]
[13,"Reliance Cockroaches","Boro Riverview Buddies"]
[13,"River City Team 717","Trindle Inn Honey Badgers"]
[13,"West Fairview WETSU","Enola Legion Buggers"]
[14,"William Penn Psychos","Boro Riverview Buddies"]
[14,"West Fairview Reaper Crew","Trindle Inn Honey Badgers"]
[14,"Reliance Cockroaches","Enola Legion Buggers"]
[14,"River City Team 717","West Fairview WETSU"]
[15,"Trindle Inn Honey Badgers","Boro Riverview Buddies"]
[15,"Enola Legion Buggers","West Fairview Reaper Crew"]
[15,"West Fairview WETSU","Reliance Cockroaches"]
[15,"River City Team 717","William Penn Psychos"]
[16,"Enola Legion Buggers","Trindle Inn Honey Badgers"]
[16,"Boro Riverview Buddies","West Fairview WETSU"]
[16,"West Fairview Reaper Crew","River City Team 717"]
[16,"Reliance Cockroaches","William Penn Psychos"]
[17,"William Penn Psychos","Trindle Inn Honey Badgers"]
[17,"Boro Riverview Buddies","Enola Legion Buggers"]
[17,"West Fairview Reaper Crew","West Fairview WETSU"]
[17,"Reliance Cockroaches","River City Team 717"]
[18,"Trindle Inn Honey Badgers","West Fairview Reaper Crew"]
[18,"West Fairview WETSU","Enola Legion Buggers"]
[18,"River City Team 717","William Penn Psychos"]
[18,"Boro Riverview Buddies","Reliance Cockroaches"]
[19,"Enola Legion Buggers","West Fairview Reaper Crew"]
[19,"West Fairview WETSU","Trindle Inn Honey Badgers"]
[19,"William Penn Psychos","Boro Riverview Buddies"]
[19,"Reliance Cockroaches","River City Team 717"]
[20,"West Fairview Reaper Crew","West Fairview WETSU"]
[20,"Trindle Inn Honey Badgers","Enola Legion Buggers"]
[20,"William Penn Psychos","Reliance Cockroaches"]
[20,"River City Team 717","Boro Riverview Buddies"]

{"sheet":"Treasury","index":8,"n_rows":96,"n_cols":29,"rows_kept":96,"cut":false,"hidden":false,"merged":[[78,20,78,21],[78,15,78,19],[80,20,80,21],[80,15,80,19],[74,15,74,19],[74,20,74,21],[75,15,75,19],[75,20,75,21],[0,20,0,21],[76,20,76,21],[76,15,76,19],[77,15,77,19],[77,20,77,21],[72,20,72,21],[73,20,73,21],[72,15,72,19],[73,15,73,19]]}
[{"$f":"tStatsTeam & \" Treasury\"","v":" Treasury"},null,null,null,null,null,null,null,null,null,null,null,null,null,null,null,null,null,null,"Date",{"$f":"schMatchDate","v":"00:00:00"}]
[]
[null,"Beer","Frames",null,{"$f":"IF(Player1=\"\",\"\",Player1)","v":""},null,null,{"$f":"IF(Player2=\"\",\"\",Player2)","v":""},null,null,{"$f":"IF(Player3=\"\",\"\",Player3)","v":""},null,null,{"$f":"IF(Player4=\"\",\"\",Player4)","v":""},null,null,{"$f":"IF(Player5=\"\",\"\",Player5)","v":""},null,null,{"$f":"IF(Player6=\"\",\"\",Player6)","v":""},null,null,null,null,null,null,"Treasury Adjustments - enter as negative"]
["Week","Gm1","Gm2","Gm3","Fines&Dues","Paid","Balance","Fines&Dues","Paid","Balance","Fines&Dues","Paid","Balance","Fines&Dues","Paid","Balance","Fines&Dues","Paid","Balance","Fines&Dues","Paid","Balance",null,null,null,null,"Date","Description","Amount"]
[1,null,null,null,null,null,{"$f":"SUM(E5-F5)","v":0},null,null,{"$f":"SUM(H5-I5)","v":0},null,null,{"$f":"SUM(K5-L5)","v":0},null,null,{"$f":"SUM(N5-O5)","v":0},null,null,{"$f":"SUM(Q5-R5)","v":0},null,null,{"$f":"SUM(T5-U5)","v":0}]
[2,null,null,null,null,null,{"$f":"SUM(E6,-F6,G5)","v":0},null,null,{"$f":"SUM(H6,-I6,J5)","v":0},null,null,{"$f":"SUM(K6,-L6,M5)","v":0},null,null,{"$f":"SUM(N6,-O6,P5)","v":0},null,null,{"$f":"SUM(Q6,-R6,S5)","v":0},null,null,{"$f":"SUM(T6,-U6,V5)","v":0}]
[3,-1.25,-1.25,-1.25,0,null,{"$f":"SUM(E7,-F7,G6)","v":0},2,null,{"$f":"SUM(H7,-I7,J6)","v":2},2,null,{"$f":"SUM(K7,-L7,M6)","v":2},2.25,null,{"$f":"SUM(N7,-O7,P6)","v":2.25},1.5,null,{"$f":"SUM(Q7,-R7,S6)","v":1.5},1,null,{"$f":"SUM(T7,-U7,V6)","v":1}]
[4,null,null,null,null,null,0,null,null,2,null,null,2,null,null,2.25,null,null,1.5,null,null,1]
[5,null,null,null,null,null,0,null,null,2,null,null,2,null,null,2.25,null,null,1.5,null,null,1]
[6,null,null,null,null,null,0,null,null,2,null,null,2,null,null,2.25,null,null,1.5,null,null,1]
[7,null,null,null,null,null,0,null,null,2,null,null,2,null,null,2.25,null,null,1.5,null,null,1]
[8,null,null,null,null,null,0,null,null,2,null,null,2,null,null,2.25,null,null,1.5,null,null,1]
[9,null,null,null,null,null,0,null,null,2,null,null,2,null,null,2.25,null,null,1.5,null,null,1]
[10,null,null,null,null,null,0,null,null,2,null,null,2,null,null,2.25,null,null,1.5,null,null,1]
[11,null,null,null,null,null,0,null,null,2,null,null,2,null,null,2.25,null,null,1.5,null,null,1]
[12,null,null,null,null,null,0,null,null,2,null,null,2,null,null,2.25,null,null,1.5,null,null,1]
[13,null,null,null,null,null,0,null,null,2,null,null,2,null,null,2.25,null,null,1.5,null,null,1]
[14,null,null,null,null,null,0,null,null,2,null,null,2,null,null,2.25,null,null,1.5,null,null,1]
[15,null,null,null,null,null,0,null,null,2,null,null,2,null,null,2.25,null,null,1.5,null,null,1]
[16,null,null,null,null,null,0,null,null,2,null,null,2,null,null,2.25,null,null,1.5,null,null,1]
[17,null,null,null,null,null,0,null,null,2,null,null,2,null,null,2.25,null,null,1.5,null,null,1]
[18,null,null,null,null,null,0,null,null,2,null,null,2,null,null,2.25,null,null,1.5,null,null,1]
[19,null,null,null,null,null,0,null,null,2,null,null,2,null,null,2.25,null,null,1.5,null,null,1]
[20,null,null,null,null,null,0,null,null,2,null,null,2,null,null,2.25,null,null,1.5,null,null,1]
[21,null,null,null,null,null,0,null,null,2,null,null,2,null,null,2.25,null,null,1.5,null,null,1]
[22,null,null,null,null,null,0,null,null,2,null,null,2,null,null,2.25,null,null,1.5,null,null,1]
[23,null,null,null,null,null,0,null,null,2,null,null,2,null,null,2.25,null,null,1.5,null,null,1]
[24,null,null,null,null,null,0,null,null,2,null,null,2,null,null,2.25,null,null,1.5,null,null,1]
[25,null,null,null,null,null,0,null,null,2,null,null,2,null,null,2.25,null,null,1.5,null,null,1]
[26,null,null,null,null,null,0,null,null,2,null,null,2,null,null,2.25,null,null,1.5,null,null,1,null,null,null,null,null,"Total Adjustments",{"$f":"SUM(AC5:AC29)","v":0}]
[27,null,null,null,null,null,0,null,null,2,null,null,2,null,null,2.25,null,null,1.5,null,null,1]
[28,null,null,null,null,null,0,null,null,2,null,null,2,null,null,2.25,null,null,1.5,null,null,1,null,null,null,null,"Donations"]
[29,null,null,null,null,null,0,null,null,2,null,null,2,null,null,2.25,null,null,1.5,null,null,1,null,null,null,null,"Date","Description","Amount"]
[30,null,null,null,null,null,0,null,null,2,null,null,2,null,null,2.25,null,null,1.5,null,null,1]
[null,-1.5,-1.5,-1.5]
["Beer total",{"$f":"SUM(B5:B34)","v":-1.25},{"$f":"SUM(C5:C34)","v":-1.25},{"$f":"SUM(D5:D34)","v":-1.25},{"$f":"SUM(E5:E34)","v":0},0,0,2,0,2,2,0,{"$f":"SUM(K36,-L36,M35)","v":2},2.25,0,{"$f":"SUM(N36,-O36,P35)","v":2.25},1.5,0,{"$f":"SUM(Q36,-R36,S35)","v":1.5},1,0,{"$f":"SUM(T36,-U36,V35)","v":1}]
[]
[null,null,null,null,{"$f":"IF(Player7=\"\",\"\",Player7)","v":""},null,null,{"$f":"IF(Player8=\"\",\"\",Player8)","v":""},null,null,{"$f":"IF(Player9=\"\",\"\",Player9)","v":""},null,null,{"$f":"IF(Player10=\"\",\"\",Player10)","v":""},null,null,{"$f":"IF(Player11=\"\",\"\",Player11)","v":""},null,null,{"$f":"IF(Player12=\"\",\"\",Player12)","v":""}]
["Week",null,null,null,"Fines&Dues","Paid","Balance","Fines&Dues","Paid","Balance","Fines&Dues","Paid","Balance","Fines&Dues","Paid","Balance","Fines&Dues","Paid","Balance","Fines&Dues","Paid","Balance"]
[1,null,null,null,null,null,{"$f":"SUM(E40-F40)","v":0},null,null,{"$f":"SUM(H40-I40)","v":0},null,null,{"$f":"SUM(K40-L40)","v":0},null,null,{"$f":"SUM(N40-O40)","v":0},null,null,{"$f":"SUM(Q40-R40)","v":0},0,null,{"$f":"SUM(T40-U40)","v":0}]
[2,null,null,null,null,null,{"$f":"SUM(E41,-F41,G40)","v":0},null,null,{"$f":"SUM(H41,-I41,J40)","v":0},null,null,{"$f":"SUM(K41,-L41,M40)","v":0},null,null,{"$f":"SUM(N41,-O41,P40)","v":0},null,null,{"$f":"SUM(Q41,-R41,S40)","v":0},null,null,{"$f":"SUM(T41,-U41,V40)","v":0}]
[3,null,null,null,3.25,null,{"$f":"SUM(E42,-F42,G41)","v":3.25},0,null,{"$f":"SUM(H42,-I42,J41)","v":0},0,null,{"$f":"SUM(K42,-L42,M41)","v":0},0,null,{"$f":"SUM(N42,-O42,P41)","v":0},0,null,{"$f":"SUM(Q42,-R42,S41)","v":0},0,null,{"$f":"SUM(T42,-U42,V41)","v":0}]
[4,null,null,null,null,null,3.25,null,null,0,null,null,0,null,null,0,null,null,0,null,null,0]
[5,null,null,null,null,null,3.25,null,null,0,null,null,0,null,null,0,null,null,0,null,null,0]
[6,null,null,null,null,null,3.25,null,null,0,null,null,0,null,null,0,null,null,0,null,null,0]
[7,null,null,null,null,null,3.25,null,null,0,null,null,0,null,null,0,null,null,0,null,null,0]
[8,null,null,null,null,null,3.25,null,null,0,null,null,0,null,null,0,null,null,0,null,null,0]
[9,null,null,null,null,null,3.25,null,null,0,null,null,0,null,null,0,null,null,0,null,null,0]
[10,null,null,null,null,null,3.25,null,null,0,null,null,0,null,null,0,null,null,0,null,null,0]
[11,null,null,null,null,null,3.25,null,null,0,null,null,0,null,null,0,null,null,0,null,null,0]
[12,null,null,null,null,null,3.25,null,null,0,null,null,0,null,null,0,null,null,0,null,null,0]
[13,null,null,null,null,null,3.25,null,null,0,null,null,0,null,null,0,null,null,0,null,null,0]
[14,null,null,null,null,null,3.25,null,null,0,null,null,0,null,null,0,null,null,0,null,null,0]
[15,null,null,null,null,null,3.25,null,null,0,null,null,0,null,null,0,null,null,0,null,null,0]
[16,null,null,null,null,null,3.25,null,null,0,null,null,0,null,null,0,null,null,0,null,null,0]
[17,null,null,null,null,null,3.25,null,null,0,null,null,0,null,null,0,null,null,0,null,null,0]
[18,null,null,null,null,null,3.25,null,null,0,null,null,0,null,null,0,null,null,0,null,null,0]
[19,null,null,null,null,null,3.25,null,null,0,null,null,0,null,null,0,null,null,0,null,null,0]
[20,null,null,null,null,null,3.25,null,null,0,null,null,0,null,null,0,null,null,0,null,null,0,null,null,null,null,null,"Total Donations",{"$f":"SUM(AC34:AC58)","v":0}]
[21,null,null,null,null,null,3.25,null,null,0,null,null,0,null,null,0,null,null,0,null,null,0]
[22,null,null,null,null,null,3.25,null,null,0,null,null,0,null,null,0,null,null,0,null,null,0]
[23,null,null,null,null,null,3.25,null,null,0,null,null,0,null,null,0,null,null,0,null,null,0]
[24,null,null,null,null,null,3.25,null,null,0,null,null,0,null,null,0,null,null,0,null,null,0]
[25,null,null,null,null,null,3.25,null,null,0,null,null,0,null,null,0,null,null,0,null,null,0]
[26,null,null,null,null,null,3.25,null,null,0,null,null,0,null,null,0,null,null,0,null,null,0]
[27,null,null,null,null,null,3.25,null,null,0,null,null,0,null,null,0,null,null,0,null,null,0]
[28,null,null,null,null,null,3.25,null,null,0,null,null,0,null,null,0,null,null,0,null,null,0]
[29,null,null,null,null,null,3.25,null,null,0,null,null,0,null,null,0,null,null,0,null,null,0]
[30,null,null,null,null,null,3.25,null,null,0,null,null,0,null,null,0,null,null,0,null,null,0]
[]
[null,null,null,null,{"$f":"SUM(E40:E69)","v":3.25},0,{"$f":"SUM(E71,-F71,G70)","v":3.25},0,0,{"$f":"SUM(H71,-I71,J70)","v":0},0,0,{"$f":"SUM(K71,-L71,M70)","v":0},0,0,{"$f":"SUM(N71,-O71,P70)","v":0},0,0,{"$f":"SUM(Q71,-R71,S70)","v":0},0,0,{"$f":"SUM(T71,-U71,V70)","v":0}]
[]
["high over average minus 1.00 taken off already",null,null,null,null,null,null,null,null,null,null,null,null,null,null,"Total Fines and Fees",null,null,null,null,{"$f":"SUM(E36,H36,K36,N36,Q36,T36,E71,H71,K71,N71,Q71,T71)","v":12}]
["Did   not ","shoot this week",null,null,"So did not pay previous weeks fines",null,null,null,null,"plus 1.00 dues added",null,"added",null,null,null,"Paid Fines and Fees",null,null,null,null,{"$f":"SUM(F36,I36,L36,O36,R36,U36,F71,I71,L71,O71,R71,U71)","v":0}]
["Extra Player SUBSTITUTES do not get charged",null,null,null,null,null,null,null,null,null,null,null,null,null,null,"Beer Frames Out",null,null,null,null,{"$f":"COUNTIF(BeerFrames,-1.25) *-1.25","v":-3.75}]
["Current Amount owed under balance",null,null,null,null,null,null,null,null,null,null,null,null,null,null,"Beer Frames In",null,null,null,null,{"$f":"COUNTIF(BeerFrames,1.25)*1.25","v":0}]
[null,null,null,null,null,null,null,null,null,null,null,null,null,null,null,"Adjustments Out (go to AA3)",null,null,null,null,{"$f":"AC30","v":0}]
["Programming rules",null,null,null,null,null,null,null,null,null,null,null,null,null,null,"Adjustments In (go to AA32)",null,null,null,null,{"$f":"AC59","v":0}]
["1. Maximum 12 players",null,null,null,null,null,null,null,null,null,null,null,null,null,null,"Treasury Balance",null,null,null,null,{"$f":"U74+U75+U76+U77+U78","v":-3.75}]
["2. maximum  30 weeks"]
["3. High over average change fill color to yellow ",null,null,null,null,null,null,null,null,null,null,null,null,null,null,"Balance Due from fines & fees",null,null,null,null,{"$f":"U73-U74","v":12}]
["4. If 0.00 paid change fill color to red and font to white",null,null,null,null,null,"Unless you  owed zero like Janet's week 11."]
["5. In this example ignore Rich Zyrolls missing but paid because Rosey paid his even though he wasn't there."]
["6. Update beer frames with winns and losses"]
["7. Maintain treasurary balance with payments and beer frames"]
["8. Allow for a treasury adjustments in case of donations from our treasury to some event or person or screwup to treasury."]
["9. Put a substiture indicator on match setup tab. Substitues do not pay or add to the treasury. If possible fill with grey to donote a substitue."]
["10. Change Collcetion rounds title on match setup to be fines and dues"]
["11. Allow for 4 more fines and dues",null,null,null,"This will allow us to add high over average with a minus a dollar or whatever the teams awards are."]
["12. Add a week cell so you know what week to update"]
["13. treasury tab gets replaced with treasury I made up."]
["14.remove send to treasry on match dues tab should update as the game goes on."]
["15.update match dues tab with 3 extra fines as on match setup tab see example sheet I gave you"]
["16. remove amount paid,past dues, running total dues from match dues tab"]
["17. Divide up match fines from game fines"]
["18. add per person average graph."]

{"sheet":"User Guide","index":9,"n_rows":192,"n_cols":1,"rows_kept":192,"cut":false,"hidden":false,"merged":[]}
[]
[]
["STEP 1.   When Starting a new Match always start on the \"Match set Up\" Sheet,  use the button shown below to clear the sheet for a new match"]
[]
[]
[]
[]
[]
[]
[]
[]
[]
[]
[]
[]
[]
[]
[]
[]
[]
[]
[]
[]
[]
[]
[]
[]
[]
[]
["STEP 2.   All Highlighted area's below are editable"]
[]
["             Enter Team names, then all the player names and Averages  that are going to play in the match."]
["             When you clear the Sheet fees aren't cleared because they should not change as often, they are editable because different teams have different fees"]
[]
[]
[]
[]
[]
[]
[]
[]
[]
[]
[]
[]
[]
[]
[]
[]
[]
[]
[]
[]
[]
[]
[]
[]
[]
[]
[]
[]
[]
[]
[]
[]
[]
[]
[]
[]
["STEP 3.   Fees are editable please see below "]
[]
[]
[]
[]
[]
[]
[]
[]
[]
[]
[]
[]
[]
[]
[]
[]
[]
[]
[]
[]
[]
[]
[]
[]
["Step 4.   Go to Scoresheet tab fill out sheet by selecting the players from the drop down"]
[]
[]
[]
[]
[]
[]
[]
[]
[]
[]
[]
[]
[]
[]
[]
[]
[]
[]
[]
[]
["Step 5.   As you enter data during the match the tab order will go to the proper player and inning as you progress"]
[]
[]
[]
[]
[]
[]
[]
[]
[]
[]
[]
[]
[]
[]
[]
[]
[]
[]
[]
["Step 6.   The only special Code you have to remember is to enter a \"R\" for a red six, don't worry it will caluculate as 6 points."]
[]
[]
[]
[]
[]
[]
[]
[]
[]
[]
[]
[]
[]
[]
[]
[]
[]
[]
[]
[]
["Step 7.   When the Match is complete go back to the Match Set Up sheet and click \"Match Complete save a copy\""]
[]
[]
[]
[]
[]
[]
[]
[]
[]
[]
[]
[]
[]
[]
[]
[]
[]
[]
[]
[]
[]
[]
[]
[]
[]
[]
[]
[]
[]
[]
[]
[]
[]
[]
["Step 8.   If you have to use a Ghost - enter Ghost under player Names on the \"Match Set Up\"  sheet, with an Average of 25- and fill in the following score for each frame.  Giving them a game of 18"]